{"text_format":"1","workbook":"xlsx","n_sheets":2,"sheets":["Treppenlagerliste","Parameter"],"not_rendered":{"charts":0,"images":27,"macros":0,"external_links":0,"defined_names":2,"comments":0,"pivot_tables":0},"unopened":[],"bounds":{"document_bytes":16777216,"sheet_cells":100000,"rows_first":2000,"rows_last":500,"rows_between":2000,"halvings":0,"cell_chars":16384,"cell_head_chars":4096},"cells_cut":0,"cells_raw":0,"read":"whole","date_system":"1900"}

{"sheet":"Treppenlagerliste","index":0,"n_rows":316,"n_cols":19,"rows_kept":316,"cut":false,"hidden":false,"merged":[[70,3,70,5],[314,13,314,15],[314,1,315,1],[270,2,277,2],[311,14,311,15],[311,16,311,17],[311,18,311,19],[312,14,312,15],[312,16,312,17],[312,18,312,19],[313,14,313,15],[313,16,313,17],[313,18,313,19],[308,14,308,15],[308,16,308,17],[308,18,308,19],[309,14,309,15],[309,16,309,17],[309,18,309,19],[310,14,310,15],[310,16,310,17],[310,18,310,19],[305,14,305,15],[305,16,305,17],[305,18,305,19],[306,14,306,15],[306,16,306,17],[306,18,306,19],[307,14,307,15],[307,16,307,17],[307,18,307,19],[302,14,302,15],[302,16,302,17],[302,18,302,19],[303,14,303,15],[303,16,303,17],[303,18,303,19],[304,14,304,15],[304,16,304,17],[304,18,304,19],[299,14,299,15],[299,16,299,17],[299,18,299,19],[300,14,300,15],[300,16,300,17],[300,18,300,19],[301,14,301,15],[301,16,301,17],[301,18,301,19],[296,14,296,15],[296,16,296,17],[296,18,296,19],[297,14,297,15],[297,16,297,17],[297,18,297,19],[298,14,298,15],[298,16,298,17],[298,18,298,19],[293,14,293,15],[293,16,293,17],[293,18,293,19],[294,14,294,15],[294,16,294,17],[294,18,294,19],[295,14,295,15],[295,16,295,17],[295,18,295,19],[290,14,290,15],[290,16,290,17],[290,18,290,19],[291,14,291,15],[291,16,291,17],[291,18,291,19],[292,14,292,15],[292,16,292,17],[292,18,292,19],[287,14,287,15],[287,16,287,17],[287,18,287,19],[288,14,288,15],[288,16,288,17],[288,18,288,19],[289,14,289,15],[289,16,289,17],[289,18,289,19],[284,14,284,15],[284,16,284,17],[284,18,284,19],[285,14,285,15],[285,16,285,17],[285,18,285,19],[286,14,286,15],[286,16,286,17],[286,18,286,19],[281,14,281,15],[281,16,281,17],[281,18,281,19],[282,14,282,15],[282,16,282,17],[282,18,282,19],[283,14,283,15],[283,16,283,17],[283,18,283,19],[272,18,278,19],[276,9,278,9],[276,10,278,10],[276,11,278,11],[276,12,278,12],[279,14,279,15],[279,16,279,17],[279,18,279,19],[280,14,280,15],[280,16,280,17],[280,18,280,19],[71,0,71,1],[263,14,263,15],[271,14,271,15],[271,16,271,17],[272,3,278,3],[272,4,278,4],[272,5,278,5],[272,6,278,6],[272,7,278,7],[272,8,278,8],[272,9,275,12],[272,13,278,13],[272,14,278,15],[272,16,278,17],[78,3,78,4],[78,5,78,8],[78,9,78,15],[78,16,78,18],[79,3,79,4],[79,5,79,8],[79,9,79,15],[79,16,79,18],[80,3,80,4],[80,5,80,8],[2,8,2,15],[1,8,1,15],[67,13,67,15],[61,18,61,19],[62,18,62,19],[63,18,63,19],[64,18,64,19],[65,18,65,19],[66,16,66,17],[16,14,16,15],[52,18,52,19],[53,18,53,19],[54,18,54,19],[55,18,55,19],[56,18,56,19],[57,18,57,19],[58,18,58,19],[59,18,59,19],[60,18,60,19],[61,16,61,17],[62,16,62,17],[63,16,63,17],[64,16,64,17],[65,16,65,17],[66,18,66,19],[34,18,34,19],[35,18,35,19],[36,18,36,19],[37,18,37,19],[38,18,38,19],[39,18,39,19],[40,18,40,19],[41,18,41,19],[42,18,42,19],[43,18,43,19],[44,18,44,19],[45,18,45,19],[46,18,46,19],[47,18,47,19],[48,18,48,19],[49,18,49,19],[50,18,50,19],[51,18,51,19],[52,16,52,17],[53,16,53,17],[59,16,59,17],[60,16,60,17],[43,16,43,17],[44,16,44,17],[45,16,45,17],[46,16,46,17],[47,16,47,17],[48,16,48,17],[49,16,49,17],[50,16,50,17],[51,16,51,17],[2,1,3,1],[25,18,31,19],[25,16,31,17],[32,16,32,17],[33,16,33,17],[32,18,32,19],[33,18,33,19],[24,2,30,2],[12,5,12,9],[13,5,13,9],[13,13,13,19],[12,13,12,19],[11,10,11,12],[12,10,12,12],[13,10,13,12],[29,9,31,9],[29,10,31,10],[25,9,28,12],[25,13,31,13],[25,14,31,15],[32,14,32,15],[33,14,33,15],[8,3,8,4],[9,3,9,4],[1,5,1,7],[3,3,3,4],[4,3,4,4],[5,3,5,4],[6,3,6,4],[7,3,7,4],[10,14,10,17],[9,14,9,17],[11,5,11,9],[7,5,7,9],[8,5,8,9],[9,5,9,9],[8,13,8,19],[7,13,7,19],[7,10,7,12],[8,10,8,12],[4,5,4,19],[5,5,5,19],[6,5,6,19],[1,3,2,4],[3,5,3,12],[11,13,11,19],[10,3,10,4],[11,3,11,4],[56,14,56,15],[57,14,57,15],[46,14,46,15],[47,14,47,15],[48,14,48,15],[49,14,49,15],[38,14,38,15],[39,14,39,15],[40,14,40,15],[45,14,45,15],[12,3,12,4],[13,3,13,4],[10,5,10,7],[10,8,10,9],[25,8,31,8],[29,11,31,11],[29,12,31,12],[43,14,43,15],[44,14,44,15],[24,14,24,15],[34,14,34,15],[35,14,35,15],[67,1,68,1],[25,6,31,6],[25,7,31,7],[25,4,31,4],[25,5,31,5],[25,3,31,3],[4,1,30,1],[0,1,1,1],[28,20,57,28],[62,14,62,15],[63,14,63,15],[64,14,64,15],[65,14,65,15],[66,14,66,15],[50,14,50,15],[51,14,51,15],[52,14,52,15],[53,14,53,15],[54,14,54,15],[55,14,55,15],[58,14,58,15],[60,14,60,15],[41,14,41,15],[42,14,42,15],[59,14,59,15],[61,14,61,15],[36,14,36,15],[24,16,24,17],[76,16,76,18],[77,3,77,4],[77,5,77,8],[77,9,77,15],[77,16,77,18],[37,14,37,15],[34,16,34,17],[35,16,35,17],[36,16,36,17],[37,16,37,17],[38,16,38,17],[39,16,39,17],[40,16,40,17],[41,16,41,17],[42,16,42,17],[54,16,54,17],[55,16,55,17],[56,16,56,17],[57,16,57,17],[58,16,58,17],[80,9,80,15],[80,16,80,18],[81,3,81,4],[81,5,81,8],[81,9,81,15],[81,16,81,18],[82,3,82,4],[82,5,82,8],[82,9,82,15],[82,16,82,18],[85,3,89,4],[85,14,85,15],[85,16,85,18],[86,14,86,15],[86,16,86,18],[87,14,87,15],[87,16,87,18],[88,14,88,15],[88,16,88,18],[89,7,89,18],[92,3,94,4],[92,14,92,15],[92,16,92,18],[93,14,93,15],[93,16,93,18],[94,7,94,18],[96,14,96,18],[97,14,97,15],[97,16,97,18],[98,3,105,4],[98,14,98,15],[98,16,104,18],[99,14,99,15],[100,12,101,12],[100,13,101,13],[100,14,101,15],[102,14,102,15],[103,14,103,15],[104,14,104,15],[105,7,105,18],[108,14,108,15],[108,16,108,18],[109,14,109,15],[109,16,109,18],[110,14,110,15],[110,16,110,18],[111,14,111,15],[111,16,111,18],[112,3,113,4],[112,7,112,18],[115,14,115,18],[116,14,116,15],[116,16,116,18],[117,3,122,4],[117,14,117,15],[117,16,121,18],[118,14,118,15],[119,14,120,15],[121,14,121,15],[122,7,122,18],[125,16,125,18],[126,16,126,18],[127,16,127,18],[128,16,128,18],[129,3,130,4],[129,7,129,18],[132,14,132,18],[133,14,133,15],[133,16,133,18],[134,3,141,4],[134,14,134,15],[134,16,140,18],[135,14,135,15],[136,12,137,12],[136,13,137,13],[136,14,137,15],[138,14,138,15],[139,14,139,15],[140,14,140,15],[141,7,141,18],[144,14,144,15],[144,16,144,18],[145,14,145,15],[145,16,145,18],[146,14,146,15],[146,16,146,18],[147,14,147,15],[147,16,147,18],[148,14,148,15],[148,16,148,18],[149,3,150,4],[149,7,149,18],[152,14,152,18],[153,3,159,4],[153,14,153,15],[153,16,153,18],[154,14,154,15],[154,16,158,18],[155,14,155,15],[156,13,157,13],[156,14,157,15],[158,14,158,15],[159,7,159,18],[162,16,162,18],[163,16,163,18],[164,16,164,18],[165,16,165,18],[166,3,167,4],[166,7,166,18],[169,14,169,18],[170,14,170,15],[170,16,170,18],[171,14,171,15],[171,16,174,18],[172,14,172,15],[173,14,173,15],[174,14,174,15],[175,7,175,18],[177,14,177,18],[178,14,178,15],[178,16,178,18],[179,14,179,15],[179,16,182,18],[180,14,180,15],[181,14,181,15],[182,14,182,15],[183,7,183,18],[185,14,185,18],[186,14,186,15],[186,16,186,18],[187,14,187,15],[187,16,190,18],[188,14,188,15],[189,14,189,15],[190,14,190,15],[191,7,191,18],[193,14,193,18],[194,14,194,15],[194,16,194,18],[195,14,195,15],[195,16,197,18],[196,14,196,15],[197,14,197,15],[198,7,198,18],[201,14,201,15],[201,16,201,18],[202,14,202,15],[202,16,202,18],[202,11,202,12],[202,7,202,8],[204,7,204,18],[207,14,207,15],[207,16,207,18],[208,14,208,15],[208,16,208,18],[210,7,210,18],[213,14,213,15],[213,16,213,18],[208,11,208,12],[208,7,208,8],[220,3,224,4],[220,14,220,15],[220,16,220,18],[221,10,221,11],[221,14,221,15],[221,16,221,18],[222,10,222,11],[222,14,222,15],[222,16,222,18],[223,10,223,11],[223,14,223,15],[223,16,223,18],[224,7,224,18],[227,16,227,18],[228,14,228,15],[228,16,228,18],[230,7,230,18],[233,14,233,15],[233,16,233,18],[234,14,234,15],[234,16,234,18],[214,14,214,15],[214,16,214,18],[215,14,215,15],[215,16,215,18],[216,14,216,15],[216,16,216,18],[217,7,217,18],[260,7,260,18],[3,13,3,19],[248,7,248,18],[251,14,251,15],[251,16,251,18],[252,14,252,15],[252,16,252,18],[254,7,254,18],[257,14,257,15],[257,16,257,18],[258,14,258,15],[258,16,258,18],[236,7,236,18],[239,14,239,15],[239,16,239,18],[240,14,240,15],[240,16,240,18],[242,7,242,18],[245,14,245,15],[245,16,245,18],[246,14,246,15],[246,16,246,18],[227,5,227,12],[227,14,227,15]]}
[null,"Informazioni sulla gestione di questo documento"]
[null,null,null,"Ordini\nElenco degli ordini valido dal: 15.05.2023",null,"Azienda"]
[null,"IMPORTANTE - Non spostare le celle ed evitare il copia/incolla e il taglia/incolla tra le righe.",null,null,null,null,null,null,{"$f":"\"max. \"&Parameter!C15&\" caratteri per il nome dell'azienda, attualmente: \"&LEN(I2)&IF(LEN(I2)>Parameter!C15, \" | Si prega di abbreviare.\", \"\")","v":"max. 20 caratteri per il nome dell'azienda, attualmente: 0"}]
[null,null,null,"Oggetto",null,null,null,null,null,null,null,null,null,{"$f":"\"max. \"&Parameter!C14&\" caratteri per l'oggetto, attualmente: \"&LEN(F4)&IF(LEN(F4)>Parameter!C14, \" | Accorciare.\", \"\")","v":"max. 35 caratteri per l'oggetto, attualmente: 0"}]
[null,null,null,"Indirizzo di consegna del cantiere"]
[null,null,null,"Indirizzo di consegna del magazino"]
[null,null,null,"Imprenditore"]
[null,null,null,"Capocantiere",null,null,null,null,null,null,"Tel. del capocantiere"]
[null,null,null,"Cliente",null,null,null,null,null,null,"Tel. del Cliente"]
[null,null,null,"Ingegnere"]
[null,null,null,"Punto di consenga/Data di consegna",null,"Selezionare!"]
[null,null,null,"Riempito da",null,null,null,null,null,null,"Data",null,null,{"$f":"TODAY()","v":"2023-10-26"}]
[null,null,null,"Piano - Elenco materiali n.",null,null,null,null,null,null,"HBT-ISOL Nr. Oggetto",null,null,"sarà compilato da HBT"]
[null,null,null,"Commissione - Ordine n.",null,null,null,null,null,null,"Numero d'ordine",null,null,"sarà compilato da HBT"]
[]
[null,null,null,"ISOTREPP"]
[null,null,null,null,"Forma a F",null,"Forma a L",null,null,null,"Forma a Z",null,null,null,"Forma a U"]
[]
[]
[]
[]
[]
[]
[]
[null,null,"Descrizione lunghezza"]
[null,null,null,"#",{"$f":"\"Descrizione (testo libero)                                       (max. \"&Parameter!$C$2&\" caratteri)\"","v":"Descrizione (testo libero)                                       (max. 25 caratteri)"}," \nIngresso\nUscita\nPianero. \nParete","Tipo     "," Forma (F/L/Z/U)","Suono di impatto \nΔL*W  (24 / 33 dB)","Dimensioni mm",null,null,null,"Quantità \n(pezzi)","Se A > 600mm                         4-Punti                          ",null,"Inviare i piani ",null,"Omissione di \npunti di sosta"]
[]
[]
[]
[null,null,null,null,null,null,null,null,null,"A","B","C","Lunghezza"]
[]
[null,null,null,null,null,null,null,null,null,null,"Mass b","Mass c","Mass l"]
[null,{"$f":"IF(LEN(D33)=0,\"\", IF(LEN(E33)>Parameter!$C$2,\"Descrizione troppo lunga, si prega accorciare\",IF(NOT(COUNTIF(Parameter!$C$3:$G$3, F33)),\"Inserire la descrizione (facoltativa) e selezionare ingresso/uscita/pianerottolo/parete/vuoto\",IF(ISBLANK(G33),\"Ricerca Cuscinetto Scala\", IF(NOT(COUNTIF(Parameter!$C$4:$M$4, G33)),\"Si prega inserire un tipo Cuscinetto scala corretto\",IF(ISBLANK(H33),\"Selezionare la forma\", IF(NOT(COUNTIF(Parameter!$C$5:$F$5, H33)),\"Si prega inserire una forma corretta\",IF(ISBLANK(I33),\"Selezionare la riduzione del suono d'impatto\",IF(NOT(COUNTIF(Parameter!$C$6:$D$6, I33)),\"Si prega selezionare la riduzione del suono d'impatto\",  IF(AND(COUNTIF(Parameter!$L$4:$M$4,G33),I33=Parameter!$C$6), \"Attenzione: TL-14000 e TL-16000 sono disponibili solo con 32dB. Si prega di correggere!\", IF(AND(H33=\"F\", ISBLANK(J33)),\"Inserire la dimensione A in mm\", IF(AND(H33=\"L\", OR(ISBLANK(J33), ISBLANK(K33))),\"Inserire le dimensioni A e B in mm\", IF(AND(OR(H33=\"Z\", H33=\"U\"), OR(ISBLANK(J33), ISBLANK(K33), ISBLANK(L33))),\"Inserire le dimensioni A, B e C in mm\", IF(AND(H33=\"F\", OR(NOT(ISBLANK(K33)),NOT(ISBLANK(L33)))),\"Inserire solo A per la forma F, si prega cancellare le dimensioni B e C\", IF(AND(H33=\"L\", NOT(ISBLANK(L33))),\"Inserire solo A e B per la forma a L, si prega cancellare la dimensione C\", IF(OR(AND(OR(Parameter!$D$7>J33, J33>Parameter!F7), OR(H33=\"F\", H33=\"U\")), AND(OR(Parameter!$H$7>J33, J33>Parameter!$J$7), OR(H33=\"L\", H33=\"Z\"))),\"Si prega correggere la dimensione A\", IF(AND(OR(Parameter!$D$8>K33, K33>Parameter!$F$8), OR(H33=\"L\", H33=\"Z\", H33=\"U\")),\"Si prega correggere la dimensione B\", IF(AND(OR(Parameter!$D$9>L33, L33>Parameter!$F$9), OR(H33=\"Z\", H33=\"U\")),\"Si prega correggere la dimensione C\", IF(ISBLANK(M33),\"Inserire la lunghezza in mm\", IF(OR(Parameter!$D$10>M33, M33>Parameter!$F$10),\"Si prega correggere la lunghezza\", IF(ISBLANK(N33),\"Inserire la quantità\", IF(NOT(ISNUMBER(N33)),\"Si prega correggere la quantità\", \"OK\"))))))))))))))))))))))","v":"Inserire la descrizione (facoltativa) e selezionare ingresso/uscita/pianerottolo/parete/vuoto"},{"$f":"LEN(E33)","v":0},1,null,null,null,null,null,null,null,null,null,null,{"$f":"IF(NOT(D33=\"\"), IF(J33 > 600, \"Si\", \"Non\"),\"\")","v":"Non"},null,{"$f":"IF(NOT(D33=\"\"), IF(O33=\"Si\", \"X\", \"\"), \"\")","v":""},null,{"$f":"IF(NOT(D33=\"\"), IF(AND(K33<53,NOT(ISBLANK(K33)), OR(H33=\"L\", H33=\"Z\")), \"X\", \"\"), \"\")","v":""}]
[null,{"$f":"IF(LEN(D34)=0,IF(NOT(B33=\"OK\"),IF(SUMPRODUCT(--(D33:P33<>\"\"))=0,IF(AND(NOT(SUMPRODUCT(--(E34:P34<>\"\"))=0),D33=\"\"),\"Si prega di non utilizzare righe vuote\",\"\"),IF(NOT(SUMPRODUCT(--(E34:P34<>\"\"))=0),\"Si prega correggere prima la riga precedente\",\"\")),\"\"),IF(LEN(E34)>Parameter!$C$2,\"Descrizione troppo lunga, si prega accorciare\",IF(NOT(COUNTIF(Parameter!$C$3:$G$3,F34)),\"Inserire la descrizione (facoltativa) e selezionare ingresso/uscita/pianerottolo/parete/vuoto\",IF(ISBLANK(G34),\"Ricerca Cuscinetto Scala\",IF(NOT(COUNTIF(Parameter!$C$4:$M$4,G34)),\"Si prega inserire un tipo Cuscinetto scala corretto \",IF(ISBLANK(H34),\"Selezionare la forma\",IF(NOT(COUNTIF(Parameter!$C$5:$F$5,H34)),\"Si prega inserire una forma corretta\",IF(ISBLANK(I34),\"Selezionare la riduzione del suono d'impatto\",IF(NOT(COUNTIF(Parameter!$C$6:$D$6,I34)),\"Si prega selezionare la riduzione del suono d'impatto\",IF(AND(COUNTIF(Parameter!$L$4:$M$4,G33),I33=Parameter!$C$6),\"Attenzione: TL-14000 e TL-16000 sono disponibili solo con 32dB. Si prega di correggere!\",IF(AND(H34=\"F\",ISBLANK(J34)),\"Inserire la dimensione A in mm\",IF(AND(H34=\"L\",OR(ISBLANK(J34),ISBLANK(K34))),\"Inserire le dimensioni A e B in mm\",IF(AND(OR(H34=\"Z\",H34=\"U\"),OR(ISBLANK(J34),ISBLANK(K34),ISBLANK(L34))),\"Inserire le dimensioni A, B e C in mm\",IF(AND(H34=\"F\",OR(NOT(ISBLANK(K34)),NOT(ISBLANK(L34)))),\"Inserire solo A per la forma F, si prega cancellare le dimensioni B e C\",IF(AND(H34=\"L\",NOT(ISBLANK(L34))),\"Inserire solo A e B per la forma a L, si prega cancellare la dimensione C\",IF(OR(AND(OR(Parameter!$D$7>J34,J34>Parameter!$F$7),OR(H34=\"F\",H34=\"U\")),AND(OR(Parameter!$H$7>J34,J34>Parameter!$J$7),OR(H34=\"L\",H34=\"Z\"))),\"Si prega correggere la dimensione A\",IF(AND(OR(Parameter!$D$8>K34,K34>Parameter!$F$8),OR(H34=\"L\",H34=\"Z\",H34=\"U\")),\"Si prega correggere la dimensione B\",IF(AND(OR(Parameter!$D$9>L34,L34>Parameter!$F$9),OR(H34=\"Z\",H34=\"U\")),\"Si prega correggere la dimensione C\",IF(ISBLANK(M34),\"Inserire la lunghezza in mm\",IF(OR(Parameter!$D$10>M34,M34>Parameter!$F$10),\"Si prega correggere la lunghezza\",IF(ISBLANK(N34),\"Inserire la quantità\",IF(NOT(ISNUMBER(N34)),\"Si prega correggere la quantità\",\"OK\"))))))))))))))))))))))","v":""},{"$f":"LEN(E34)","v":0},{"$f":"IF(OR(ISBLANK(N33), NOT(B33=\"OK\")),\"\",D33+1)","v":""},null,null,null,null,null,null,null,null,null,null,{"$f":"IF(NOT(D34=\"\"), IF(J34 > 600, \"Si\", \"Non\"),\"\")","v":""},null,{"$f":"IF(NOT(D34=\"\"), IF(O34=\"Si\", \"X\", \"\"), \"\")","v":""},null,{"$f":"IF(NOT(D34=\"\"), IF(AND(K34<53,NOT(ISBLANK(K34)), OR(H34=\"L\", H34=\"Z\")), \"X\", \"\"), \"\")","v":""}]
[null,{"$f":"IF(LEN(D35)=0,IF(NOT(B34=\"OK\"),IF(SUMPRODUCT(--(D34:P34<>\"\"))=0,IF(AND(NOT(SUMPRODUCT(--(E35:P35<>\"\"))=0),D34=\"\"),\"Si prega di non utilizzare righe vuote\",\"\"),IF(NOT(SUMPRODUCT(--(E35:P35<>\"\"))=0),\"Si prega correggere prima la riga precedente\",\"\")),\"\"),IF(LEN(E35)>Parameter!$C$2,\"Descrizione troppo lunga, si prega accorciare\",IF(NOT(COUNTIF(Parameter!$C$3:$G$3,F35)),\"Inserire la descrizione (facoltativa) e selezionare ingresso/uscita/pianerottolo/parete/vuoto\",IF(ISBLANK(G35),\"Ricerca Cuscinetto Scala\",IF(NOT(COUNTIF(Parameter!$C$4:$M$4,G35)),\"Si prega inserire un tipo Cuscinetto scala corretto \",IF(ISBLANK(H35),\"Selezionare la forma\",IF(NOT(COUNTIF(Parameter!$C$5:$F$5,H35)),\"Si prega inserire una forma corretta\",IF(ISBLANK(I35),\"Selezionare la riduzione del suono d'impatto\",IF(NOT(COUNTIF(Parameter!$C$6:$D$6,I35)),\"Si prega selezionare la riduzione del suono d'impatto\",IF(AND(COUNTIF(Parameter!$L$4:$M$4,G34),I34=Parameter!$C$6),\"Attenzione: TL-14000 e TL-16000 sono disponibili solo con 32dB. Si prega di correggere!\",IF(AND(H35=\"F\",ISBLANK(J35)),\"Inserire la dimensione A in mm\",IF(AND(H35=\"L\",OR(ISBLANK(J35),ISBLANK(K35))),\"Inserire le dimensioni A e B in mm\",IF(AND(OR(H35=\"Z\",H35=\"U\"),OR(ISBLANK(J35),ISBLANK(K35),ISBLANK(L35))),\"Inserire le dimensioni A, B e C in mm\",IF(AND(H35=\"F\",OR(NOT(ISBLANK(K35)),NOT(ISBLANK(L35)))),\"Inserire solo A per la forma F, si prega cancellare le dimensioni B e C\",IF(AND(H35=\"L\",NOT(ISBLANK(L35))),\"Inserire solo A e B per la forma a L, si prega cancellare la dimensione C\",IF(OR(AND(OR(Parameter!$D$7>J35,J35>Parameter!$F$7),OR(H35=\"F\",H35=\"U\")),AND(OR(Parameter!$H$7>J35,J35>Parameter!$J$7),OR(H35=\"L\",H35=\"Z\"))),\"Si prega correggere la dimensione A\",IF(AND(OR(Parameter!$D$8>K35,K35>Parameter!$F$8),OR(H35=\"L\",H35=\"Z\",H35=\"U\")),\"Si prega correggere la dimensione B\",IF(AND(OR(Parameter!$D$9>L35,L35>Parameter!$F$9),OR(H35=\"Z\",H35=\"U\")),\"Si prega correggere la dimensione C\",IF(ISBLANK(M35),\"Inserire la lunghezza in mm\",IF(OR(Parameter!$D$10>M35,M35>Parameter!$F$10),\"Si prega correggere la lunghezza\",IF(ISBLANK(N35),\"Inserire la quantità\",IF(NOT(ISNUMBER(N35)),\"Si prega correggere la quantità\",\"OK\"))))))))))))))))))))))","v":""},{"$f":"LEN(E35)","v":0},{"$f":"IF(OR(ISBLANK(N34), NOT(B34=\"OK\")),\"\",D34+1)","v":""},null,null,null,null,null,null,null,null,null,null,{"$f":"IF(NOT(D35=\"\"), IF(J35 > 600, \"Si\", \"Non\"),\"\")","v":""},null,"",null,{"$f":"IF(NOT(D35=\"\"), IF(AND(K35<53,NOT(ISBLANK(K35)), OR(H35=\"L\", H35=\"Z\")), \"X\", \"\"), \"\")","v":""}]
[null,{"$f":"IF(LEN(D36)=0,IF(NOT(B35=\"OK\"),IF(SUMPRODUCT(--(D35:P35<>\"\"))=0,IF(AND(NOT(SUMPRODUCT(--(E36:P36<>\"\"))=0),D35=\"\"),\"Si prega di non utilizzare righe vuote\",\"\"),IF(NOT(SUMPRODUCT(--(E36:P36<>\"\"))=0),\"Si prega correggere prima la riga precedente\",\"\")),\"\"),IF(LEN(E36)>Parameter!$C$2,\"Descrizione troppo lunga, si prega accorciare\",IF(NOT(COUNTIF(Parameter!$C$3:$G$3,F36)),\"Inserire la descrizione (facoltativa) e selezionare ingresso/uscita/pianerottolo/parete/vuoto\",IF(ISBLANK(G36),\"Ricerca Cuscinetto Scala\",IF(NOT(COUNTIF(Parameter!$C$4:$M$4,G36)),\"Si prega inserire un tipo Cuscinetto scala corretto \",IF(ISBLANK(H36),\"Selezionare la forma\",IF(NOT(COUNTIF(Parameter!$C$5:$F$5,H36)),\"Si prega inserire una forma corretta\",IF(ISBLANK(I36),\"Selezionare la riduzione del suono d'impatto\",IF(NOT(COUNTIF(Parameter!$C$6:$D$6,I36)),\"Si prega selezionare la riduzione del suono d'impatto\",IF(AND(COUNTIF(Parameter!$L$4:$M$4,G35),I35=Parameter!$C$6),\"Attenzione: TL-14000 e TL-16000 sono disponibili solo con 32dB. Si prega di correggere!\",IF(AND(H36=\"F\",ISBLANK(J36)),\"Inserire la dimensione A in mm\",IF(AND(H36=\"L\",OR(ISBLANK(J36),ISBLANK(K36))),\"Inserire le dimensioni A e B in mm\",IF(AND(OR(H36=\"Z\",H36=\"U\"),OR(ISBLANK(J36),ISBLANK(K36),ISBLANK(L36))),\"Inserire le dimensioni A, B e C in mm\",IF(AND(H36=\"F\",OR(NOT(ISBLANK(K36)),NOT(ISBLANK(L36)))),\"Inserire solo A per la forma F, si prega cancellare le dimensioni B e C\",IF(AND(H36=\"L\",NOT(ISBLANK(L36))),\"Inserire solo A e B per la forma a L, si prega cancellare la dimensione C\",IF(OR(AND(OR(Parameter!$D$7>J36,J36>Parameter!$F$7),OR(H36=\"F\",H36=\"U\")),AND(OR(Parameter!$H$7>J36,J36>Parameter!$J$7),OR(H36=\"L\",H36=\"Z\"))),\"Si prega correggere la dimensione A\",IF(AND(OR(Parameter!$D$8>K36,K36>Parameter!$F$8),OR(H36=\"L\",H36=\"Z\",H36=\"U\")),\"Si prega correggere la dimensione B\",IF(AND(OR(Parameter!$D$9>L36,L36>Parameter!$F$9),OR(H36=\"Z\",H36=\"U\")),\"Si prega correggere la dimensione C\",IF(ISBLANK(M36),\"Inserire la lunghezza in mm\",IF(OR(Parameter!$D$10>M36,M36>Parameter!$F$10),\"Si prega correggere la lunghezza\",IF(ISBLANK(N36),\"Inserire la quantità\",IF(NOT(ISNUMBER(N36)),\"Si prega correggere la quantità\",\"OK\"))))))))))))))))))))))","v":""},{"$f":"LEN(E36)","v":0},"",null,null,null,null,null,null,null,null,null,null,"",null,"",null,""]
[null,{"$f":"IF(LEN(D37)=0,IF(NOT(B36=\"OK\"),IF(SUMPRODUCT(--(D36:P36<>\"\"))=0,IF(AND(NOT(SUMPRODUCT(--(E37:P37<>\"\"))=0),D36=\"\"),\"Si prega di non utilizzare righe vuote\",\"\"),IF(NOT(SUMPRODUCT(--(E37:P37<>\"\"))=0),\"Si prega correggere prima la riga precedente\",\"\")),\"\"),IF(LEN(E37)>Parameter!$C$2,\"Descrizione troppo lunga, si prega accorciare\",IF(NOT(COUNTIF(Parameter!$C$3:$G$3,F37)),\"Inserire la descrizione (facoltativa) e selezionare ingresso/uscita/pianerottolo/parete/vuoto\",IF(ISBLANK(G37),\"Ricerca Cuscinetto Scala\",IF(NOT(COUNTIF(Parameter!$C$4:$M$4,G37)),\"Si prega inserire un tipo Cuscinetto scala corretto \",IF(ISBLANK(H37),\"Selezionare la forma\",IF(NOT(COUNTIF(Parameter!$C$5:$F$5,H37)),\"Si prega inserire una forma corretta\",IF(ISBLANK(I37),\"Selezionare la riduzione del suono d'impatto\",IF(NOT(COUNTIF(Parameter!$C$6:$D$6,I37)),\"Si prega selezionare la riduzione del suono d'impatto\",IF(AND(COUNTIF(Parameter!$L$4:$M$4,G36),I36=Parameter!$C$6),\"Attenzione: TL-14000 e TL-16000 sono disponibili solo con 32dB. Si prega di correggere!\",IF(AND(H37=\"F\",ISBLANK(J37)),\"Inserire la dimensione A in mm\",IF(AND(H37=\"L\",OR(ISBLANK(J37),ISBLANK(K37))),\"Inserire le dimensioni A e B in mm\",IF(AND(OR(H37=\"Z\",H37=\"U\"),OR(ISBLANK(J37),ISBLANK(K37),ISBLANK(L37))),\"Inserire le dimensioni A, B e C in mm\",IF(AND(H37=\"F\",OR(NOT(ISBLANK(K37)),NOT(ISBLANK(L37)))),\"Inserire solo A per la forma F, si prega cancellare le dimensioni B e C\",IF(AND(H37=\"L\",NOT(ISBLANK(L37))),\"Inserire solo A e B per la forma a L, si prega cancellare la dimensione C\",IF(OR(AND(OR(Parameter!$D$7>J37,J37>Parameter!$F$7),OR(H37=\"F\",H37=\"U\")),AND(OR(Parameter!$H$7>J37,J37>Parameter!$J$7),OR(H37=\"L\",H37=\"Z\"))),\"Si prega correggere la dimensione A\",IF(AND(OR(Parameter!$D$8>K37,K37>Parameter!$F$8),OR(H37=\"L\",H37=\"Z\",H37=\"U\")),\"Si prega correggere la dimensione B\",IF(AND(OR(Parameter!$D$9>L37,L37>Parameter!$F$9),OR(H37=\"Z\",H37=\"U\")),\"Si prega correggere la dimensione C\",IF(ISBLANK(M37),\"Inserire la lunghezza in mm\",IF(OR(Parameter!$D$10>M37,M37>Parameter!$F$10),\"Si prega correggere la lunghezza\",IF(ISBLANK(N37),\"Inserire la quantità\",IF(NOT(ISNUMBER(N37)),\"Si prega correggere la quantità\",\"OK\"))))))))))))))))))))))","v":""},0,"",null,null,null,null,null,null,null,null,null,null,"",null,"",null,""]
[null,{"$f":"IF(LEN(D38)=0,IF(NOT(B37=\"OK\"),IF(SUMPRODUCT(--(D37:P37<>\"\"))=0,IF(AND(NOT(SUMPRODUCT(--(E38:P38<>\"\"))=0),D37=\"\"),\"Si prega di non utilizzare righe vuote\",\"\"),IF(NOT(SUMPRODUCT(--(E38:P38<>\"\"))=0),\"Si prega correggere prima la riga precedente\",\"\")),\"\"),IF(LEN(E38)>Parameter!$C$2,\"Descrizione troppo lunga, si prega accorciare\",IF(NOT(COUNTIF(Parameter!$C$3:$G$3,F38)),\"Inserire la descrizione (facoltativa) e selezionare ingresso/uscita/pianerottolo/parete/vuoto\",IF(ISBLANK(G38),\"Ricerca Cuscinetto Scala\",IF(NOT(COUNTIF(Parameter!$C$4:$M$4,G38)),\"Si prega inserire un tipo Cuscinetto scala corretto \",IF(ISBLANK(H38),\"Selezionare la forma\",IF(NOT(COUNTIF(Parameter!$C$5:$F$5,H38)),\"Si prega inserire una forma corretta\",IF(ISBLANK(I38),\"Selezionare la riduzione del suono d'impatto\",IF(NOT(COUNTIF(Parameter!$C$6:$D$6,I38)),\"Si prega selezionare la riduzione del suono d'impatto\",IF(AND(COUNTIF(Parameter!$L$4:$M$4,G37),I37=Parameter!$C$6),\"Attenzione: TL-14000 e TL-16000 sono disponibili solo con 32dB. Si prega di correggere!\",IF(AND(H38=\"F\",ISBLANK(J38)),\"Inserire la dimensione A in mm\",IF(AND(H38=\"L\",OR(ISBLANK(J38),ISBLANK(K38))),\"Inserire le dimensioni A e B in mm\",IF(AND(OR(H38=\"Z\",H38=\"U\"),OR(ISBLANK(J38),ISBLANK(K38),ISBLANK(L38))),\"Inserire le dimensioni A, B e C in mm\",IF(AND(H38=\"F\",OR(NOT(ISBLANK(K38)),NOT(ISBLANK(L38)))),\"Inserire solo A per la forma F, si prega cancellare le dimensioni B e C\",IF(AND(H38=\"L\",NOT(ISBLANK(L38))),\"Inserire solo A e B per la forma a L, si prega cancellare la dimensione C\",IF(OR(AND(OR(Parameter!$D$7>J38,J38>Parameter!$F$7),OR(H38=\"F\",H38=\"U\")),AND(OR(Parameter!$H$7>J38,J38>Parameter!$J$7),OR(H38=\"L\",H38=\"Z\"))),\"Si prega correggere la dimensione A\",IF(AND(OR(Parameter!$D$8>K38,K38>Parameter!$F$8),OR(H38=\"L\",H38=\"Z\",H38=\"U\")),\"Si prega correggere la dimensione B\",IF(AND(OR(Parameter!$D$9>L38,L38>Parameter!$F$9),OR(H38=\"Z\",H38=\"U\")),\"Si prega correggere la dimensione C\",IF(ISBLANK(M38),\"Inserire la lunghezza in mm\",IF(OR(Parameter!$D$10>M38,M38>Parameter!$F$10),\"Si prega correggere la lunghezza\",IF(ISBLANK(N38),\"Inserire la quantità\",IF(NOT(ISNUMBER(N38)),\"Si prega correggere la quantità\",\"OK\"))))))))))))))))))))))","v":""},0,"",null,null,null,null,null,null,null,null,null,null,"",null,"",null,""]
[null,{"$f":"IF(LEN(D39)=0,IF(NOT(B38=\"OK\"),IF(SUMPRODUCT(--(D38:P38<>\"\"))=0,IF(AND(NOT(SUMPRODUCT(--(E39:P39<>\"\"))=0),D38=\"\"),\"Si prega di non utilizzare righe vuote\",\"\"),IF(NOT(SUMPRODUCT(--(E39:P39<>\"\"))=0),\"Si prega correggere prima la riga precedente\",\"\")),\"\"),IF(LEN(E39)>Parameter!$C$2,\"Descrizione troppo lunga, si prega accorciare\",IF(NOT(COUNTIF(Parameter!$C$3:$G$3,F39)),\"Inserire la descrizione (facoltativa) e selezionare ingresso/uscita/pianerottolo/parete/vuoto\",IF(ISBLANK(G39),\"Ricerca Cuscinetto Scala\",IF(NOT(COUNTIF(Parameter!$C$4:$M$4,G39)),\"Si prega inserire un tipo Cuscinetto scala corretto \",IF(ISBLANK(H39),\"Selezionare la forma\",IF(NOT(COUNTIF(Parameter!$C$5:$F$5,H39)),\"Si prega inserire una forma corretta\",IF(ISBLANK(I39),\"Selezionare la riduzione del suono d'impatto\",IF(NOT(COUNTIF(Parameter!$C$6:$D$6,I39)),\"Si prega selezionare la riduzione del suono d'impatto\",IF(AND(COUNTIF(Parameter!$L$4:$M$4,G38),I38=Parameter!$C$6),\"Attenzione: TL-14000 e TL-16000 sono disponibili solo con 32dB. Si prega di correggere!\",IF(AND(H39=\"F\",ISBLANK(J39)),\"Inserire la dimensione A in mm\",IF(AND(H39=\"L\",OR(ISBLANK(J39),ISBLANK(K39))),\"Inserire le dimensioni A e B in mm\",IF(AND(OR(H39=\"Z\",H39=\"U\"),OR(ISBLANK(J39),ISBLANK(K39),ISBLANK(L39))),\"Inserire le dimensioni A, B e C in mm\",IF(AND(H39=\"F\",OR(NOT(ISBLANK(K39)),NOT(ISBLANK(L39)))),\"Inserire solo A per la forma F, si prega cancellare le dimensioni B e C\",IF(AND(H39=\"L\",NOT(ISBLANK(L39))),\"Inserire solo A e B per la forma a L, si prega cancellare la dimensione C\",IF(OR(AND(OR(Parameter!$D$7>J39,J39>Parameter!$F$7),OR(H39=\"F\",H39=\"U\")),AND(OR(Parameter!$H$7>J39,J39>Parameter!$J$7),OR(H39=\"L\",H39=\"Z\"))),\"Si prega correggere la dimensione A\",IF(AND(OR(Parameter!$D$8>K39,K39>Parameter!$F$8),OR(H39=\"L\",H39=\"Z\",H39=\"U\")),\"Si prega correggere la dimensione B\",IF(AND(OR(Parameter!$D$9>L39,L39>Parameter!$F$9),OR(H39=\"Z\",H39=\"U\")),\"Si prega correggere la dimensione C\",IF(ISBLANK(M39),\"Inserire la lunghezza in mm\",IF(OR(Parameter!$D$10>M39,M39>Parameter!$F$10),\"Si prega correggere la lunghezza\",IF(ISBLANK(N39),\"Inserire la quantità\",IF(NOT(ISNUMBER(N39)),\"Si prega correggere la quantità\",\"OK\"))))))))))))))))))))))","v":""},0,"",null,null,null,null,null,null,null,null,null,null,"",null,"",null,""]
[null,{"$f":"IF(LEN(D40)=0,IF(NOT(B39=\"OK\"),IF(SUMPRODUCT(--(D39:P39<>\"\"))=0,IF(AND(NOT(SUMPRODUCT(--(E40:P40<>\"\"))=0),D39=\"\"),\"Si prega di non utilizzare righe vuote\",\"\"),IF(NOT(SUMPRODUCT(--(E40:P40<>\"\"))=0),\"Si prega correggere prima la riga precedente\",\"\")),\"\"),IF(LEN(E40)>Parameter!$C$2,\"Descrizione troppo lunga, si prega accorciare\",IF(NOT(COUNTIF(Parameter!$C$3:$G$3,F40)),\"Inserire la descrizione (facoltativa) e selezionare ingresso/uscita/pianerottolo/parete/vuoto\",IF(ISBLANK(G40),\"Ricerca Cuscinetto Scala\",IF(NOT(COUNTIF(Parameter!$C$4:$M$4,G40)),\"Si prega inserire un tipo Cuscinetto scala corretto \",IF(ISBLANK(H40),\"Selezionare la forma\",IF(NOT(COUNTIF(Parameter!$C$5:$F$5,H40)),\"Si prega inserire una forma corretta\",IF(ISBLANK(I40),\"Selezionare la riduzione del suono d'impatto\",IF(NOT(COUNTIF(Parameter!$C$6:$D$6,I40)),\"Si prega selezionare la riduzione del suono d'impatto\",IF(AND(COUNTIF(Parameter!$L$4:$M$4,G39),I39=Parameter!$C$6),\"Attenzione: TL-14000 e TL-16000 sono disponibili solo con 32dB. Si prega di correggere!\",IF(AND(H40=\"F\",ISBLANK(J40)),\"Inserire la dimensione A in mm\",IF(AND(H40=\"L\",OR(ISBLANK(J40),ISBLANK(K40))),\"Inserire le dimensioni A e B in mm\",IF(AND(OR(H40=\"Z\",H40=\"U\"),OR(ISBLANK(J40),ISBLANK(K40),ISBLANK(L40))),\"Inserire le dimensioni A, B e C in mm\",IF(AND(H40=\"F\",OR(NOT(ISBLANK(K40)),NOT(ISBLANK(L40)))),\"Inserire solo A per la forma F, si prega cancellare le dimensioni B e C\",IF(AND(H40=\"L\",NOT(ISBLANK(L40))),\"Inserire solo A e B per la forma a L, si prega cancellare la dimensione C\",IF(OR(AND(OR(Parameter!$D$7>J40,J40>Parameter!$F$7),OR(H40=\"F\",H40=\"U\")),AND(OR(Parameter!$H$7>J40,J40>Parameter!$J$7),OR(H40=\"L\",H40=\"Z\"))),\"Si prega correggere la dimensione A\",IF(AND(OR(Parameter!$D$8>K40,K40>Parameter!$F$8),OR(H40=\"L\",H40=\"Z\",H40=\"U\")),\"Si prega correggere la dimensione B\",IF(AND(OR(Parameter!$D$9>L40,L40>Parameter!$F$9),OR(H40=\"Z\",H40=\"U\")),\"Si prega correggere la dimensione C\",IF(ISBLANK(M40),\"Inserire la lunghezza in mm\",IF(OR(Parameter!$D$10>M40,M40>Parameter!$F$10),\"Si prega correggere la lunghezza\",IF(ISBLANK(N40),\"Inserire la quantità\",IF(NOT(ISNUMBER(N40)),\"Si prega correggere la quantità\",\"OK\"))))))))))))))))))))))","v":""},0,"",null,null,null,null,null,null,null,null,null,null,"",null,"",null,""]
[null,{"$f":"IF(LEN(D41)=0,IF(NOT(B40=\"OK\"),IF(SUMPRODUCT(--(D40:P40<>\"\"))=0,IF(AND(NOT(SUMPRODUCT(--(E41:P41<>\"\"))=0),D40=\"\"),\"Si prega di non utilizzare righe vuote\",\"\"),IF(NOT(SUMPRODUCT(--(E41:P41<>\"\"))=0),\"Si prega correggere prima la riga precedente\",\"\")),\"\"),IF(LEN(E41)>Parameter!$C$2,\"Descrizione troppo lunga, si prega accorciare\",IF(NOT(COUNTIF(Parameter!$C$3:$G$3,F41)),\"Inserire la descrizione (facoltativa) e selezionare ingresso/uscita/pianerottolo/parete/vuoto\",IF(ISBLANK(G41),\"Ricerca Cuscinetto Scala\",IF(NOT(COUNTIF(Parameter!$C$4:$M$4,G41)),\"Si prega inserire un tipo Cuscinetto scala corretto \",IF(ISBLANK(H41),\"Selezionare la forma\",IF(NOT(COUNTIF(Parameter!$C$5:$F$5,H41)),\"Si prega inserire una forma corretta\",IF(ISBLANK(I41),\"Selezionare la riduzione del suono d'impatto\",IF(NOT(COUNTIF(Parameter!$C$6:$D$6,I41)),\"Si prega selezionare la riduzione del suono d'impatto\",IF(AND(COUNTIF(Parameter!$L$4:$M$4,G40),I40=Parameter!$C$6),\"Attenzione: TL-14000 e TL-16000 sono disponibili solo con 32dB. Si prega di correggere!\",IF(AND(H41=\"F\",ISBLANK(J41)),\"Inserire la dimensione A in mm\",IF(AND(H41=\"L\",OR(ISBLANK(J41),ISBLANK(K41))),\"Inserire le dimensioni A e B in mm\",IF(AND(OR(H41=\"Z\",H41=\"U\"),OR(ISBLANK(J41),ISBLANK(K41),ISBLANK(L41))),\"Inserire le dimensioni A, B e C in mm\",IF(AND(H41=\"F\",OR(NOT(ISBLANK(K41)),NOT(ISBLANK(L41)))),\"Inserire solo A per la forma F, si prega cancellare le dimensioni B e C\",IF(AND(H41=\"L\",NOT(ISBLANK(L41))),\"Inserire solo A e B per la forma a L, si prega cancellare la dimensione C\",IF(OR(AND(OR(Parameter!$D$7>J41,J41>Parameter!$F$7),OR(H41=\"F\",H41=\"U\")),AND(OR(Parameter!$H$7>J41,J41>Parameter!$J$7),OR(H41=\"L\",H41=\"Z\"))),\"Si prega correggere la dimensione A\",IF(AND(OR(Parameter!$D$8>K41,K41>Parameter!$F$8),OR(H41=\"L\",H41=\"Z\",H41=\"U\")),\"Si prega correggere la dimensione B\",IF(AND(OR(Parameter!$D$9>L41,L41>Parameter!$F$9),OR(H41=\"Z\",H41=\"U\")),\"Si prega correggere la dimensione C\",IF(ISBLANK(M41),\"Inserire la lunghezza in mm\",IF(OR(Parameter!$D$10>M41,M41>Parameter!$F$10),\"Si prega correggere la lunghezza\",IF(ISBLANK(N41),\"Inserire la quantità\",IF(NOT(ISNUMBER(N41)),\"Si prega correggere la quantità\",\"OK\"))))))))))))))))))))))","v":""},0,"",null,null,null,null,null,null,null,null,null,null,"",null,"",null,""]
[null,{"$f":"IF(LEN(D42)=0,IF(NOT(B41=\"OK\"),IF(SUMPRODUCT(--(D41:P41<>\"\"))=0,IF(AND(NOT(SUMPRODUCT(--(E42:P42<>\"\"))=0),D41=\"\"),\"Si prega di non utilizzare righe vuote\",\"\"),IF(NOT(SUMPRODUCT(--(E42:P42<>\"\"))=0),\"Si prega correggere prima la riga precedente\",\"\")),\"\"),IF(LEN(E42)>Parameter!$C$2,\"Descrizione troppo lunga, si prega accorciare\",IF(NOT(COUNTIF(Parameter!$C$3:$G$3,F42)),\"Inserire la descrizione (facoltativa) e selezionare ingresso/uscita/pianerottolo/parete/vuoto\",IF(ISBLANK(G42),\"Ricerca Cuscinetto Scala\",IF(NOT(COUNTIF(Parameter!$C$4:$M$4,G42)),\"Si prega inserire un tipo Cuscinetto scala corretto \",IF(ISBLANK(H42),\"Selezionare la forma\",IF(NOT(COUNTIF(Parameter!$C$5:$F$5,H42)),\"Si prega inserire una forma corretta\",IF(ISBLANK(I42),\"Selezionare la riduzione del suono d'impatto\",IF(NOT(COUNTIF(Parameter!$C$6:$D$6,I42)),\"Si prega selezionare la riduzione del suono d'impatto\",IF(AND(COUNTIF(Parameter!$L$4:$M$4,G41),I41=Parameter!$C$6),\"Attenzione: TL-14000 e TL-16000 sono disponibili solo con 32dB. Si prega di correggere!\",IF(AND(H42=\"F\",ISBLANK(J42)),\"Inserire la dimensione A in mm\",IF(AND(H42=\"L\",OR(ISBLANK(J42),ISBLANK(K42))),\"Inserire le dimensioni A e B in mm\",IF(AND(OR(H42=\"Z\",H42=\"U\"),OR(ISBLANK(J42),ISBLANK(K42),ISBLANK(L42))),\"Inserire le dimensioni A, B e C in mm\",IF(AND(H42=\"F\",OR(NOT(ISBLANK(K42)),NOT(ISBLANK(L42)))),\"Inserire solo A per la forma F, si prega cancellare le dimensioni B e C\",IF(AND(H42=\"L\",NOT(ISBLANK(L42))),\"Inserire solo A e B per la forma a L, si prega cancellare la dimensione C\",IF(OR(AND(OR(Parameter!$D$7>J42,J42>Parameter!$F$7),OR(H42=\"F\",H42=\"U\")),AND(OR(Parameter!$H$7>J42,J42>Parameter!$J$7),OR(H42=\"L\",H42=\"Z\"))),\"Si prega correggere la dimensione A\",IF(AND(OR(Parameter!$D$8>K42,K42>Parameter!$F$8),OR(H42=\"L\",H42=\"Z\",H42=\"U\")),\"Si prega correggere la dimensione B\",IF(AND(OR(Parameter!$D$9>L42,L42>Parameter!$F$9),OR(H42=\"Z\",H42=\"U\")),\"Si prega correggere la dimensione C\",IF(ISBLANK(M42),\"Inserire la lunghezza in mm\",IF(OR(Parameter!$D$10>M42,M42>Parameter!$F$10),\"Si prega correggere la lunghezza\",IF(ISBLANK(N42),\"Inserire la quantità\",IF(NOT(ISNUMBER(N42)),\"Si prega correggere la quantità\",\"OK\"))))))))))))))))))))))","v":""},{"$f":"LEN(E42)","v":0},"",null,null,null,null,null,null,null,null,null,null,"",null,"",null,""]
[null,{"$f":"IF(LEN(D43)=0,IF(NOT(B42=\"OK\"),IF(SUMPRODUCT(--(D42:P42<>\"\"))=0,IF(AND(NOT(SUMPRODUCT(--(E43:P43<>\"\"))=0),D42=\"\"),\"Si prega di non utilizzare righe vuote\",\"\"),IF(NOT(SUMPRODUCT(--(E43:P43<>\"\"))=0),\"Si prega correggere prima la riga precedente\",\"\")),\"\"),IF(LEN(E43)>Parameter!$C$2,\"Descrizione troppo lunga, si prega accorciare\",IF(NOT(COUNTIF(Parameter!$C$3:$G$3,F43)),\"Inserire la descrizione (facoltativa) e selezionare ingresso/uscita/pianerottolo/parete/vuoto\",IF(ISBLANK(G43),\"Ricerca Cuscinetto Scala\",IF(NOT(COUNTIF(Parameter!$C$4:$M$4,G43)),\"Si prega inserire un tipo Cuscinetto scala corretto \",IF(ISBLANK(H43),\"Selezionare la forma\",IF(NOT(COUNTIF(Parameter!$C$5:$F$5,H43)),\"Si prega inserire una forma corretta\",IF(ISBLANK(I43),\"Selezionare la riduzione del suono d'impatto\",IF(NOT(COUNTIF(Parameter!$C$6:$D$6,I43)),\"Si prega selezionare la riduzione del suono d'impatto\",IF(AND(COUNTIF(Parameter!$L$4:$M$4,G42),I42=Parameter!$C$6),\"Attenzione: TL-14000 e TL-16000 sono disponibili solo con 32dB. Si prega di correggere!\",IF(AND(H43=\"F\",ISBLANK(J43)),\"Inserire la dimensione A in mm\",IF(AND(H43=\"L\",OR(ISBLANK(J43),ISBLANK(K43))),\"Inserire le dimensioni A e B in mm\",IF(AND(OR(H43=\"Z\",H43=\"U\"),OR(ISBLANK(J43),ISBLANK(K43),ISBLANK(L43))),\"Inserire le dimensioni A, B e C in mm\",IF(AND(H43=\"F\",OR(NOT(ISBLANK(K43)),NOT(ISBLANK(L43)))),\"Inserire solo A per la forma F, si prega cancellare le dimensioni B e C\",IF(AND(H43=\"L\",NOT(ISBLANK(L43))),\"Inserire solo A e B per la forma a L, si prega cancellare la dimensione C\",IF(OR(AND(OR(Parameter!$D$7>J43,J43>Parameter!$F$7),OR(H43=\"F\",H43=\"U\")),AND(OR(Parameter!$H$7>J43,J43>Parameter!$J$7),OR(H43=\"L\",H43=\"Z\"))),\"Si prega correggere la dimensione A\",IF(AND(OR(Parameter!$D$8>K43,K43>Parameter!$F$8),OR(H43=\"L\",H43=\"Z\",H43=\"U\")),\"Si prega correggere la dimensione B\",IF(AND(OR(Parameter!$D$9>L43,L43>Parameter!$F$9),OR(H43=\"Z\",H43=\"U\")),\"Si prega correggere la dimensione C\",IF(ISBLANK(M43),\"Inserire la lunghezza in mm\",IF(OR(Parameter!$D$10>M43,M43>Parameter!$F$10),\"Si prega correggere la lunghezza\",IF(ISBLANK(N43),\"Inserire la quantità\",IF(NOT(ISNUMBER(N43)),\"Si prega correggere la quantità\",\"OK\"))))))))))))))))))))))","v":""},{"$f":"LEN(E43)","v":0},"",null,null,null,null,null,null,null,null,null,null,"",null,"",null,""]
[null,{"$f":"IF(LEN(D44)=0,IF(NOT(B43=\"OK\"),IF(SUMPRODUCT(--(D43:P43<>\"\"))=0,IF(AND(NOT(SUMPRODUCT(--(E44:P44<>\"\"))=0),D43=\"\"),\"Si prega di non utilizzare righe vuote\",\"\"),IF(NOT(SUMPRODUCT(--(E44:P44<>\"\"))=0),\"Si prega correggere prima la riga precedente\",\"\")),\"\"),IF(LEN(E44)>Parameter!$C$2,\"Descrizione troppo lunga, si prega accorciare\",IF(NOT(COUNTIF(Parameter!$C$3:$G$3,F44)),\"Inserire la descrizione (facoltativa) e selezionare ingresso/uscita/pianerottolo/parete/vuoto\",IF(ISBLANK(G44),\"Ricerca Cuscinetto Scala\",IF(NOT(COUNTIF(Parameter!$C$4:$M$4,G44)),\"Si prega inserire un tipo Cuscinetto scala corretto \",IF(ISBLANK(H44),\"Selezionare la forma\",IF(NOT(COUNTIF(Parameter!$C$5:$F$5,H44)),\"Si prega inserire una forma corretta\",IF(ISBLANK(I44),\"Selezionare la riduzione del suono d'impatto\",IF(NOT(COUNTIF(Parameter!$C$6:$D$6,I44)),\"Si prega selezionare la riduzione del suono d'impatto\",IF(AND(COUNTIF(Parameter!$L$4:$M$4,G43),I43=Parameter!$C$6),\"Attenzione: TL-14000 e TL-16000 sono disponibili solo con 32dB. Si prega di correggere!\",IF(AND(H44=\"F\",ISBLANK(J44)),\"Inserire la dimensione A in mm\",IF(AND(H44=\"L\",OR(ISBLANK(J44),ISBLANK(K44))),\"Inserire le dimensioni A e B in mm\",IF(AND(OR(H44=\"Z\",H44=\"U\"),OR(ISBLANK(J44),ISBLANK(K44),ISBLANK(L44))),\"Inserire le dimensioni A, B e C in mm\",IF(AND(H44=\"F\",OR(NOT(ISBLANK(K44)),NOT(ISBLANK(L44)))),\"Inserire solo A per la forma F, si prega cancellare le dimensioni B e C\",IF(AND(H44=\"L\",NOT(ISBLANK(L44))),\"Inserire solo A e B per la forma a L, si prega cancellare la dimensione C\",IF(OR(AND(OR(Parameter!$D$7>J44,J44>Parameter!$F$7),OR(H44=\"F\",H44=\"U\")),AND(OR(Parameter!$H$7>J44,J44>Parameter!$J$7),OR(H44=\"L\",H44=\"Z\"))),\"Si prega correggere la dimensione A\",IF(AND(OR(Parameter!$D$8>K44,K44>Parameter!$F$8),OR(H44=\"L\",H44=\"Z\",H44=\"U\")),\"Si prega correggere la dimensione B\",IF(AND(OR(Parameter!$D$9>L44,L44>Parameter!$F$9),OR(H44=\"Z\",H44=\"U\")),\"Si prega correggere la dimensione C\",IF(ISBLANK(M44),\"Inserire la lunghezza in mm\",IF(OR(Parameter!$D$10>M44,M44>Parameter!$F$10),\"Si prega correggere la lunghezza\",IF(ISBLANK(N44),\"Inserire la quantità\",IF(NOT(ISNUMBER(N44)),\"Si prega correggere la quantità\",\"OK\"))))))))))))))))))))))","v":""},0,"",null,null,null,null,null,null,null,null,null,null,"",null,"",null,""]
[null,{"$f":"IF(LEN(D45)=0,IF(NOT(B44=\"OK\"),IF(SUMPRODUCT(--(D44:P44<>\"\"))=0,IF(AND(NOT(SUMPRODUCT(--(E45:P45<>\"\"))=0),D44=\"\"),\"Si prega di non utilizzare righe vuote\",\"\"),IF(NOT(SUMPRODUCT(--(E45:P45<>\"\"))=0),\"Si prega correggere prima la riga precedente\",\"\")),\"\"),IF(LEN(E45)>Parameter!$C$2,\"Descrizione troppo lunga, si prega accorciare\",IF(NOT(COUNTIF(Parameter!$C$3:$G$3,F45)),\"Inserire la descrizione (facoltativa) e selezionare ingresso/uscita/pianerottolo/parete/vuoto\",IF(ISBLANK(G45),\"Ricerca Cuscinetto Scala\",IF(NOT(COUNTIF(Parameter!$C$4:$M$4,G45)),\"Si prega inserire un tipo Cuscinetto scala corretto \",IF(ISBLANK(H45),\"Selezionare la forma\",IF(NOT(COUNTIF(Parameter!$C$5:$F$5,H45)),\"Si prega inserire una forma corretta\",IF(ISBLANK(I45),\"Selezionare la riduzione del suono d'impatto\",IF(NOT(COUNTIF(Parameter!$C$6:$D$6,I45)),\"Si prega selezionare la riduzione del suono d'impatto\",IF(AND(COUNTIF(Parameter!$L$4:$M$4,G44),I44=Parameter!$C$6),\"Attenzione: TL-14000 e TL-16000 sono disponibili solo con 32dB. Si prega di correggere!\",IF(AND(H45=\"F\",ISBLANK(J45)),\"Inserire la dimensione A in mm\",IF(AND(H45=\"L\",OR(ISBLANK(J45),ISBLANK(K45))),\"Inserire le dimensioni A e B in mm\",IF(AND(OR(H45=\"Z\",H45=\"U\"),OR(ISBLANK(J45),ISBLANK(K45),ISBLANK(L45))),\"Inserire le dimensioni A, B e C in mm\",IF(AND(H45=\"F\",OR(NOT(ISBLANK(K45)),NOT(ISBLANK(L45)))),\"Inserire solo A per la forma F, si prega cancellare le dimensioni B e C\",IF(AND(H45=\"L\",NOT(ISBLANK(L45))),\"Inserire solo A e B per la forma a L, si prega cancellare la dimensione C\",IF(OR(AND(OR(Parameter!$D$7>J45,J45>Parameter!$F$7),OR(H45=\"F\",H45=\"U\")),AND(OR(Parameter!$H$7>J45,J45>Parameter!$J$7),OR(H45=\"L\",H45=\"Z\"))),\"Si prega correggere la dimensione A\",IF(AND(OR(Parameter!$D$8>K45,K45>Parameter!$F$8),OR(H45=\"L\",H45=\"Z\",H45=\"U\")),\"Si prega correggere la dimensione B\",IF(AND(OR(Parameter!$D$9>L45,L45>Parameter!$F$9),OR(H45=\"Z\",H45=\"U\")),\"Si prega correggere la dimensione C\",IF(ISBLANK(M45),\"Inserire la lunghezza in mm\",IF(OR(Parameter!$D$10>M45,M45>Parameter!$F$10),\"Si prega correggere la lunghezza\",IF(ISBLANK(N45),\"Inserire la quantità\",IF(NOT(ISNUMBER(N45)),\"Si prega correggere la quantità\",\"OK\"))))))))))))))))))))))","v":""},{"$f":"LEN(E45)","v":0},"",null,null,null,null,null,null,null,null,null,null,"",null,"",null,""]
[null,{"$f":"IF(LEN(D46)=0,IF(NOT(B45=\"OK\"),IF(SUMPRODUCT(--(D45:P45<>\"\"))=0,IF(AND(NOT(SUMPRODUCT(--(E46:P46<>\"\"))=0),D45=\"\"),\"Si prega di non utilizzare righe vuote\",\"\"),IF(NOT(SUMPRODUCT(--(E46:P46<>\"\"))=0),\"Si prega correggere prima la riga precedente\",\"\")),\"\"),IF(LEN(E46)>Parameter!$C$2,\"Descrizione troppo lunga, si prega accorciare\",IF(NOT(COUNTIF(Parameter!$C$3:$G$3,F46)),\"Inserire la descrizione (facoltativa) e selezionare ingresso/uscita/pianerottolo/parete/vuoto\",IF(ISBLANK(G46),\"Ricerca Cuscinetto Scala\",IF(NOT(COUNTIF(Parameter!$C$4:$M$4,G46)),\"Si prega inserire un tipo Cuscinetto scala corretto \",IF(ISBLANK(H46),\"Selezionare la forma\",IF(NOT(COUNTIF(Parameter!$C$5:$F$5,H46)),\"Si prega inserire una forma corretta\",IF(ISBLANK(I46),\"Selezionare la riduzione del suono d'impatto\",IF(NOT(COUNTIF(Parameter!$C$6:$D$6,I46)),\"Si prega selezionare la riduzione del suono d'impatto\",IF(AND(COUNTIF(Parameter!$L$4:$M$4,G45),I45=Parameter!$C$6),\"Attenzione: TL-14000 e TL-16000 sono disponibili solo con 32dB. Si prega di correggere!\",IF(AND(H46=\"F\",ISBLANK(J46)),\"Inserire la dimensione A in mm\",IF(AND(H46=\"L\",OR(ISBLANK(J46),ISBLANK(K46))),\"Inserire le dimensioni A e B in mm\",IF(AND(OR(H46=\"Z\",H46=\"U\"),OR(ISBLANK(J46),ISBLANK(K46),ISBLANK(L46))),\"Inserire le dimensioni A, B e C in mm\",IF(AND(H46=\"F\",OR(NOT(ISBLANK(K46)),NOT(ISBLANK(L46)))),\"Inserire solo A per la forma F, si prega cancellare le dimensioni B e C\",IF(AND(H46=\"L\",NOT(ISBLANK(L46))),\"Inserire solo A e B per la forma a L, si prega cancellare la dimensione C\",IF(OR(AND(OR(Parameter!$D$7>J46,J46>Parameter!$F$7),OR(H46=\"F\",H46=\"U\")),AND(OR(Parameter!$H$7>J46,J46>Parameter!$J$7),OR(H46=\"L\",H46=\"Z\"))),\"Si prega correggere la dimensione A\",IF(AND(OR(Parameter!$D$8>K46,K46>Parameter!$F$8),OR(H46=\"L\",H46=\"Z\",H46=\"U\")),\"Si prega correggere la dimensione B\",IF(AND(OR(Parameter!$D$9>L46,L46>Parameter!$F$9),OR(H46=\"Z\",H46=\"U\")),\"Si prega correggere la dimensione C\",IF(ISBLANK(M46),\"Inserire la lunghezza in mm\",IF(OR(Parameter!$D$10>M46,M46>Parameter!$F$10),\"Si prega correggere la lunghezza\",IF(ISBLANK(N46),\"Inserire la quantità\",IF(NOT(ISNUMBER(N46)),\"Si prega correggere la quantità\",\"OK\"))))))))))))))))))))))","v":""},{"$f":"LEN(E46)","v":0},"",null,null,null,null,null,null,null,null,null,null,"",null,"",null,""]
[null,{"$f":"IF(LEN(D47)=0,IF(NOT(B46=\"OK\"),IF(SUMPRODUCT(--(D46:P46<>\"\"))=0,IF(AND(NOT(SUMPRODUCT(--(E47:P47<>\"\"))=0),D46=\"\"),\"Si prega di non utilizzare righe vuote\",\"\"),IF(NOT(SUMPRODUCT(--(E47:P47<>\"\"))=0),\"Si prega correggere prima la riga precedente\",\"\")),\"\"),IF(LEN(E47)>Parameter!$C$2,\"Descrizione troppo lunga, si prega accorciare\",IF(NOT(COUNTIF(Parameter!$C$3:$G$3,F47)),\"Inserire la descrizione (facoltativa) e selezionare ingresso/uscita/pianerottolo/parete/vuoto\",IF(ISBLANK(G47),\"Ricerca Cuscinetto Scala\",IF(NOT(COUNTIF(Parameter!$C$4:$M$4,G47)),\"Si prega inserire un tipo Cuscinetto scala corretto \",IF(ISBLANK(H47),\"Selezionare la forma\",IF(NOT(COUNTIF(Parameter!$C$5:$F$5,H47)),\"Si prega inserire una forma corretta\",IF(ISBLANK(I47),\"Selezionare la riduzione del suono d'impatto\",IF(NOT(COUNTIF(Parameter!$C$6:$D$6,I47)),\"Si prega selezionare la riduzione del suono d'impatto\",IF(AND(COUNTIF(Parameter!$L$4:$M$4,G46),I46=Parameter!$C$6),\"Attenzione: TL-14000 e TL-16000 sono disponibili solo con 32dB. Si prega di correggere!\",IF(AND(H47=\"F\",ISBLANK(J47)),\"Inserire la dimensione A in mm\",IF(AND(H47=\"L\",OR(ISBLANK(J47),ISBLANK(K47))),\"Inserire le dimensioni A e B in mm\",IF(AND(OR(H47=\"Z\",H47=\"U\"),OR(ISBLANK(J47),ISBLANK(K47),ISBLANK(L47))),\"Inserire le dimensioni A, B e C in mm\",IF(AND(H47=\"F\",OR(NOT(ISBLANK(K47)),NOT(ISBLANK(L47)))),\"Inserire solo A per la forma F, si prega cancellare le dimensioni B e C\",IF(AND(H47=\"L\",NOT(ISBLANK(L47))),\"Inserire solo A e B per la forma a L, si prega cancellare la dimensione C\",IF(OR(AND(OR(Parameter!$D$7>J47,J47>Parameter!$F$7),OR(H47=\"F\",H47=\"U\")),AND(OR(Parameter!$H$7>J47,J47>Parameter!$J$7),OR(H47=\"L\",H47=\"Z\"))),\"Si prega correggere la dimensione A\",IF(AND(OR(Parameter!$D$8>K47,K47>Parameter!$F$8),OR(H47=\"L\",H47=\"Z\",H47=\"U\")),\"Si prega correggere la dimensione B\",IF(AND(OR(Parameter!$D$9>L47,L47>Parameter!$F$9),OR(H47=\"Z\",H47=\"U\")),\"Si prega correggere la dimensione C\",IF(ISBLANK(M47),\"Inserire la lunghezza in mm\",IF(OR(Parameter!$D$10>M47,M47>Parameter!$F$10),\"Si prega correggere la lunghezza\",IF(ISBLANK(N47),\"Inserire la quantità\",IF(NOT(ISNUMBER(N47)),\"Si prega correggere la quantità\",\"OK\"))))))))))))))))))))))","v":""},0,"",null,null,null,null,null,null,null,null,null,null,"",null,"",null,""]
[null,{"$f":"IF(LEN(D48)=0,IF(NOT(B47=\"OK\"),IF(SUMPRODUCT(--(D47:P47<>\"\"))=0,IF(AND(NOT(SUMPRODUCT(--(E48:P48<>\"\"))=0),D47=\"\"),\"Si prega di non utilizzare righe vuote\",\"\"),IF(NOT(SUMPRODUCT(--(E48:P48<>\"\"))=0),\"Si prega correggere prima la riga precedente\",\"\")),\"\"),IF(LEN(E48)>Parameter!$C$2,\"Descrizione troppo lunga, si prega accorciare\",IF(NOT(COUNTIF(Parameter!$C$3:$G$3,F48)),\"Inserire la descrizione (facoltativa) e selezionare ingresso/uscita/pianerottolo/parete/vuoto\",IF(ISBLANK(G48),\"Ricerca Cuscinetto Scala\",IF(NOT(COUNTIF(Parameter!$C$4:$M$4,G48)),\"Si prega inserire un tipo Cuscinetto scala corretto \",IF(ISBLANK(H48),\"Selezionare la forma\",IF(NOT(COUNTIF(Parameter!$C$5:$F$5,H48)),\"Si prega inserire una forma corretta\",IF(ISBLANK(I48),\"Selezionare la riduzione del suono d'impatto\",IF(NOT(COUNTIF(Parameter!$C$6:$D$6,I48)),\"Si prega selezionare la riduzione del suono d'impatto\",IF(AND(COUNTIF(Parameter!$L$4:$M$4,G47),I47=Parameter!$C$6),\"Attenzione: TL-14000 e TL-16000 sono disponibili solo con 32dB. Si prega di correggere!\",IF(AND(H48=\"F\",ISBLANK(J48)),\"Inserire la dimensione A in mm\",IF(AND(H48=\"L\",OR(ISBLANK(J48),ISBLANK(K48))),\"Inserire le dimensioni A e B in mm\",IF(AND(OR(H48=\"Z\",H48=\"U\"),OR(ISBLANK(J48),ISBLANK(K48),ISBLANK(L48))),\"Inserire le dimensioni A, B e C in mm\",IF(AND(H48=\"F\",OR(NOT(ISBLANK(K48)),NOT(ISBLANK(L48)))),\"Inserire solo A per la forma F, si prega cancellare le dimensioni B e C\",IF(AND(H48=\"L\",NOT(ISBLANK(L48))),\"Inserire solo A e B per la forma a L, si prega cancellare la dimensione C\",IF(OR(AND(OR(Parameter!$D$7>J48,J48>Parameter!$F$7),OR(H48=\"F\",H48=\"U\")),AND(OR(Parameter!$H$7>J48,J48>Parameter!$J$7),OR(H48=\"L\",H48=\"Z\"))),\"Si prega correggere la dimensione A\",IF(AND(OR(Parameter!$D$8>K48,K48>Parameter!$F$8),OR(H48=\"L\",H48=\"Z\",H48=\"U\")),\"Si prega correggere la dimensione B\",IF(AND(OR(Parameter!$D$9>L48,L48>Parameter!$F$9),OR(H48=\"Z\",H48=\"U\")),\"Si prega correggere la dimensione C\",IF(ISBLANK(M48),\"Inserire la lunghezza in mm\",IF(OR(Parameter!$D$10>M48,M48>Parameter!$F$10),\"Si prega correggere la lunghezza\",IF(ISBLANK(N48),\"Inserire la quantità\",IF(NOT(ISNUMBER(N48)),\"Si prega correggere la quantità\",\"OK\"))))))))))))))))))))))","v":""},0,"",null,null,null,null,null,null,null,null,null,null,"",null,"",null,""]
[null,{"$f":"IF(LEN(D49)=0,IF(NOT(B48=\"OK\"),IF(SUMPRODUCT(--(D48:P48<>\"\"))=0,IF(AND(NOT(SUMPRODUCT(--(E49:P49<>\"\"))=0),D48=\"\"),\"Si prega di non utilizzare righe vuote\",\"\"),IF(NOT(SUMPRODUCT(--(E49:P49<>\"\"))=0),\"Si prega correggere prima la riga precedente\",\"\")),\"\"),IF(LEN(E49)>Parameter!$C$2,\"Descrizione troppo lunga, si prega accorciare\",IF(NOT(COUNTIF(Parameter!$C$3:$G$3,F49)),\"Inserire la descrizione (facoltativa) e selezionare ingresso/uscita/pianerottolo/parete/vuoto\",IF(ISBLANK(G49),\"Ricerca Cuscinetto Scala\",IF(NOT(COUNTIF(Parameter!$C$4:$M$4,G49)),\"Si prega inserire un tipo Cuscinetto scala corretto \",IF(ISBLANK(H49),\"Selezionare la forma\",IF(NOT(COUNTIF(Parameter!$C$5:$F$5,H49)),\"Si prega inserire una forma corretta\",IF(ISBLANK(I49),\"Selezionare la riduzione del suono d'impatto\",IF(NOT(COUNTIF(Parameter!$C$6:$D$6,I49)),\"Si prega selezionare la riduzione del suono d'impatto\",IF(AND(COUNTIF(Parameter!$L$4:$M$4,G48),I48=Parameter!$C$6),\"Attenzione: TL-14000 e TL-16000 sono disponibili solo con 32dB. Si prega di correggere!\",IF(AND(H49=\"F\",ISBLANK(J49)),\"Inserire la dimensione A in mm\",IF(AND(H49=\"L\",OR(ISBLANK(J49),ISBLANK(K49))),\"Inserire le dimensioni A e B in mm\",IF(AND(OR(H49=\"Z\",H49=\"U\"),OR(ISBLANK(J49),ISBLANK(K49),ISBLANK(L49))),\"Inserire le dimensioni A, B e C in mm\",IF(AND(H49=\"F\",OR(NOT(ISBLANK(K49)),NOT(ISBLANK(L49)))),\"Inserire solo A per la forma F, si prega cancellare le dimensioni B e C\",IF(AND(H49=\"L\",NOT(ISBLANK(L49))),\"Inserire solo A e B per la forma a L, si prega cancellare la dimensione C\",IF(OR(AND(OR(Parameter!$D$7>J49,J49>Parameter!$F$7),OR(H49=\"F\",H49=\"U\")),AND(OR(Parameter!$H$7>J49,J49>Parameter!$J$7),OR(H49=\"L\",H49=\"Z\"))),\"Si prega correggere la dimensione A\",IF(AND(OR(Parameter!$D$8>K49,K49>Parameter!$F$8),OR(H49=\"L\",H49=\"Z\",H49=\"U\")),\"Si prega correggere la dimensione B\",IF(AND(OR(Parameter!$D$9>L49,L49>Parameter!$F$9),OR(H49=\"Z\",H49=\"U\")),\"Si prega correggere la dimensione C\",IF(ISBLANK(M49),\"Inserire la lunghezza in mm\",IF(OR(Parameter!$D$10>M49,M49>Parameter!$F$10),\"Si prega correggere la lunghezza\",IF(ISBLANK(N49),\"Inserire la quantità\",IF(NOT(ISNUMBER(N49)),\"Si prega correggere la quantità\",\"OK\"))))))))))))))))))))))","v":""},0,"",null,null,null,null,null,null,null,null,null,null,"",null,"",null,""]
[null,{"$f":"IF(LEN(D50)=0,IF(NOT(B49=\"OK\"),IF(SUMPRODUCT(--(D49:P49<>\"\"))=0,IF(AND(NOT(SUMPRODUCT(--(E50:P50<>\"\"))=0),D49=\"\"),\"Si prega di non utilizzare righe vuote\",\"\"),IF(NOT(SUMPRODUCT(--(E50:P50<>\"\"))=0),\"Si prega correggere prima la riga precedente\",\"\")),\"\"),IF(LEN(E50)>Parameter!$C$2,\"Descrizione troppo lunga, si prega accorciare\",IF(NOT(COUNTIF(Parameter!$C$3:$G$3,F50)),\"Inserire la descrizione (facoltativa) e selezionare ingresso/uscita/pianerottolo/parete/vuoto\",IF(ISBLANK(G50),\"Ricerca Cuscinetto Scala\",IF(NOT(COUNTIF(Parameter!$C$4:$M$4,G50)),\"Si prega inserire un tipo Cuscinetto scala corretto \",IF(ISBLANK(H50),\"Selezionare la forma\",IF(NOT(COUNTIF(Parameter!$C$5:$F$5,H50)),\"Si prega inserire una forma corretta\",IF(ISBLANK(I50),\"Selezionare la riduzione del suono d'impatto\",IF(NOT(COUNTIF(Parameter!$C$6:$D$6,I50)),\"Si prega selezionare la riduzione del suono d'impatto\",IF(AND(COUNTIF(Parameter!$L$4:$M$4,G49),I49=Parameter!$C$6),\"Attenzione: TL-14000 e TL-16000 sono disponibili solo con 32dB. Si prega di correggere!\",IF(AND(H50=\"F\",ISBLANK(J50)),\"Inserire la dimensione A in mm\",IF(AND(H50=\"L\",OR(ISBLANK(J50),ISBLANK(K50))),\"Inserire le dimensioni A e B in mm\",IF(AND(OR(H50=\"Z\",H50=\"U\"),OR(ISBLANK(J50),ISBLANK(K50),ISBLANK(L50))),\"Inserire le dimensioni A, B e C in mm\",IF(AND(H50=\"F\",OR(NOT(ISBLANK(K50)),NOT(ISBLANK(L50)))),\"Inserire solo A per la forma F, si prega cancellare le dimensioni B e C\",IF(AND(H50=\"L\",NOT(ISBLANK(L50))),\"Inserire solo A e B per la forma a L, si prega cancellare la dimensione C\",IF(OR(AND(OR(Parameter!$D$7>J50,J50>Parameter!$F$7),OR(H50=\"F\",H50=\"U\")),AND(OR(Parameter!$H$7>J50,J50>Parameter!$J$7),OR(H50=\"L\",H50=\"Z\"))),\"Si prega correggere la dimensione A\",IF(AND(OR(Parameter!$D$8>K50,K50>Parameter!$F$8),OR(H50=\"L\",H50=\"Z\",H50=\"U\")),\"Si prega correggere la dimensione B\",IF(AND(OR(Parameter!$D$9>L50,L50>Parameter!$F$9),OR(H50=\"Z\",H50=\"U\")),\"Si prega correggere la dimensione C\",IF(ISBLANK(M50),\"Inserire la lunghezza in mm\",IF(OR(Parameter!$D$10>M50,M50>Parameter!$F$10),\"Si prega correggere la lunghezza\",IF(ISBLANK(N50),\"Inserire la quantità\",IF(NOT(ISNUMBER(N50)),\"Si prega correggere la quantità\",\"OK\"))))))))))))))))))))))","v":""},0,"",null,null,null,null,null,null,null,null,null,null,"",null,"",null,""]
[null,{"$f":"IF(LEN(D51)=0,IF(NOT(B50=\"OK\"),IF(SUMPRODUCT(--(D50:P50<>\"\"))=0,IF(AND(NOT(SUMPRODUCT(--(E51:P51<>\"\"))=0),D50=\"\"),\"Si prega di non utilizzare righe vuote\",\"\"),IF(NOT(SUMPRODUCT(--(E51:P51<>\"\"))=0),\"Si prega correggere prima la riga precedente\",\"\")),\"\"),IF(LEN(E51)>Parameter!$C$2,\"Descrizione troppo lunga, si prega accorciare\",IF(NOT(COUNTIF(Parameter!$C$3:$G$3,F51)),\"Inserire la descrizione (facoltativa) e selezionare ingresso/uscita/pianerottolo/parete/vuoto\",IF(ISBLANK(G51),\"Ricerca Cuscinetto Scala\",IF(NOT(COUNTIF(Parameter!$C$4:$M$4,G51)),\"Si prega inserire un tipo Cuscinetto scala corretto \",IF(ISBLANK(H51),\"Selezionare la forma\",IF(NOT(COUNTIF(Parameter!$C$5:$F$5,H51)),\"Si prega inserire una forma corretta\",IF(ISBLANK(I51),\"Selezionare la riduzione del suono d'impatto\",IF(NOT(COUNTIF(Parameter!$C$6:$D$6,I51)),\"Si prega selezionare la riduzione del suono d'impatto\",IF(AND(COUNTIF(Parameter!$L$4:$M$4,G50),I50=Parameter!$C$6),\"Attenzione: TL-14000 e TL-16000 sono disponibili solo con 32dB. Si prega di correggere!\",IF(AND(H51=\"F\",ISBLANK(J51)),\"Inserire la dimensione A in mm\",IF(AND(H51=\"L\",OR(ISBLANK(J51),ISBLANK(K51))),\"Inserire le dimensioni A e B in mm\",IF(AND(OR(H51=\"Z\",H51=\"U\"),OR(ISBLANK(J51),ISBLANK(K51),ISBLANK(L51))),\"Inserire le dimensioni A, B e C in mm\",IF(AND(H51=\"F\",OR(NOT(ISBLANK(K51)),NOT(ISBLANK(L51)))),\"Inserire solo A per la forma F, si prega cancellare le dimensioni B e C\",IF(AND(H51=\"L\",NOT(ISBLANK(L51))),\"Inserire solo A e B per la forma a L, si prega cancellare la dimensione C\",IF(OR(AND(OR(Parameter!$D$7>J51,J51>Parameter!$F$7),OR(H51=\"F\",H51=\"U\")),AND(OR(Parameter!$H$7>J51,J51>Parameter!$J$7),OR(H51=\"L\",H51=\"Z\"))),\"Si prega correggere la dimensione A\",IF(AND(OR(Parameter!$D$8>K51,K51>Parameter!$F$8),OR(H51=\"L\",H51=\"Z\",H51=\"U\")),\"Si prega correggere la dimensione B\",IF(AND(OR(Parameter!$D$9>L51,L51>Parameter!$F$9),OR(H51=\"Z\",H51=\"U\")),\"Si prega correggere la dimensione C\",IF(ISBLANK(M51),\"Inserire la lunghezza in mm\",IF(OR(Parameter!$D$10>M51,M51>Parameter!$F$10),\"Si prega correggere la lunghezza\",IF(ISBLANK(N51),\"Inserire la quantità\",IF(NOT(ISNUMBER(N51)),\"Si prega correggere la quantità\",\"OK\"))))))))))))))))))))))","v":""},0,"",null,null,null,null,null,null,null,null,null,null,"",null,"",null,""]
[null,{"$f":"IF(LEN(D52)=0,IF(NOT(B51=\"OK\"),IF(SUMPRODUCT(--(D51:P51<>\"\"))=0,IF(AND(NOT(SUMPRODUCT(--(E52:P52<>\"\"))=0),D51=\"\"),\"Si prega di non utilizzare righe vuote\",\"\"),IF(NOT(SUMPRODUCT(--(E52:P52<>\"\"))=0),\"Si prega correggere prima la riga precedente\",\"\")),\"\"),IF(LEN(E52)>Parameter!$C$2,\"Descrizione troppo lunga, si prega accorciare\",IF(NOT(COUNTIF(Parameter!$C$3:$G$3,F52)),\"Inserire la descrizione (facoltativa) e selezionare ingresso/uscita/pianerottolo/parete/vuoto\",IF(ISBLANK(G52),\"Ricerca Cuscinetto Scala\",IF(NOT(COUNTIF(Parameter!$C$4:$M$4,G52)),\"Si prega inserire un tipo Cuscinetto scala corretto \",IF(ISBLANK(H52),\"Selezionare la forma\",IF(NOT(COUNTIF(Parameter!$C$5:$F$5,H52)),\"Si prega inserire una forma corretta\",IF(ISBLANK(I52),\"Selezionare la riduzione del suono d'impatto\",IF(NOT(COUNTIF(Parameter!$C$6:$D$6,I52)),\"Si prega selezionare la riduzione del suono d'impatto\",IF(AND(COUNTIF(Parameter!$L$4:$M$4,G51),I51=Parameter!$C$6),\"Attenzione: TL-14000 e TL-16000 sono disponibili solo con 32dB. Si prega di correggere!\",IF(AND(H52=\"F\",ISBLANK(J52)),\"Inserire la dimensione A in mm\",IF(AND(H52=\"L\",OR(ISBLANK(J52),ISBLANK(K52))),\"Inserire le dimensioni A e B in mm\",IF(AND(OR(H52=\"Z\",H52=\"U\"),OR(ISBLANK(J52),ISBLANK(K52),ISBLANK(L52))),\"Inserire le dimensioni A, B e C in mm\",IF(AND(H52=\"F\",OR(NOT(ISBLANK(K52)),NOT(ISBLANK(L52)))),\"Inserire solo A per la forma F, si prega cancellare le dimensioni B e C\",IF(AND(H52=\"L\",NOT(ISBLANK(L52))),\"Inserire solo A e B per la forma a L, si prega cancellare la dimensione C\",IF(OR(AND(OR(Parameter!$D$7>J52,J52>Parameter!$F$7),OR(H52=\"F\",H52=\"U\")),AND(OR(Parameter!$H$7>J52,J52>Parameter!$J$7),OR(H52=\"L\",H52=\"Z\"))),\"Si prega correggere la dimensione A\",IF(AND(OR(Parameter!$D$8>K52,K52>Parameter!$F$8),OR(H52=\"L\",H52=\"Z\",H52=\"U\")),\"Si prega correggere la dimensione B\",IF(AND(OR(Parameter!$D$9>L52,L52>Parameter!$F$9),OR(H52=\"Z\",H52=\"U\")),\"Si prega correggere la dimensione C\",IF(ISBLANK(M52),\"Inserire la lunghezza in mm\",IF(OR(Parameter!$D$10>M52,M52>Parameter!$F$10),\"Si prega correggere la lunghezza\",IF(ISBLANK(N52),\"Inserire la quantità\",IF(NOT(ISNUMBER(N52)),\"Si prega correggere la quantità\",\"OK\"))))))))))))))))))))))","v":""},0,"",null,null,null,null,null,null,null,null,null,null,"",null,"",null,""]
[null,{"$f":"IF(LEN(D53)=0,IF(NOT(B52=\"OK\"),IF(SUMPRODUCT(--(D52:P52<>\"\"))=0,IF(AND(NOT(SUMPRODUCT(--(E53:P53<>\"\"))=0),D52=\"\"),\"Si prega di non utilizzare righe vuote\",\"\"),IF(NOT(SUMPRODUCT(--(E53:P53<>\"\"))=0),\"Si prega correggere prima la riga precedente\",\"\")),\"\"),IF(LEN(E53)>Parameter!$C$2,\"Descrizione troppo lunga, si prega accorciare\",IF(NOT(COUNTIF(Parameter!$C$3:$G$3,F53)),\"Inserire la descrizione (facoltativa) e selezionare ingresso/uscita/pianerottolo/parete/vuoto\",IF(ISBLANK(G53),\"Ricerca Cuscinetto Scala\",IF(NOT(COUNTIF(Parameter!$C$4:$M$4,G53)),\"Si prega inserire un tipo Cuscinetto scala corretto \",IF(ISBLANK(H53),\"Selezionare la forma\",IF(NOT(COUNTIF(Parameter!$C$5:$F$5,H53)),\"Si prega inserire una forma corretta\",IF(ISBLANK(I53),\"Selezionare la riduzione del suono d'impatto\",IF(NOT(COUNTIF(Parameter!$C$6:$D$6,I53)),\"Si prega selezionare la riduzione del suono d'impatto\",IF(AND(COUNTIF(Parameter!$L$4:$M$4,G52),I52=Parameter!$C$6),\"Attenzione: TL-14000 e TL-16000 sono disponibili solo con 32dB. Si prega di correggere!\",IF(AND(H53=\"F\",ISBLANK(J53)),\"Inserire la dimensione A in mm\",IF(AND(H53=\"L\",OR(ISBLANK(J53),ISBLANK(K53))),\"Inserire le dimensioni A e B in mm\",IF(AND(OR(H53=\"Z\",H53=\"U\"),OR(ISBLANK(J53),ISBLANK(K53),ISBLANK(L53))),\"Inserire le dimensioni A, B e C in mm\",IF(AND(H53=\"F\",OR(NOT(ISBLANK(K53)),NOT(ISBLANK(L53)))),\"Inserire solo A per la forma F, si prega cancellare le dimensioni B e C\",IF(AND(H53=\"L\",NOT(ISBLANK(L53))),\"Inserire solo A e B per la forma a L, si prega cancellare la dimensione C\",IF(OR(AND(OR(Parameter!$D$7>J53,J53>Parameter!$F$7),OR(H53=\"F\",H53=\"U\")),AND(OR(Parameter!$H$7>J53,J53>Parameter!$J$7),OR(H53=\"L\",H53=\"Z\"))),\"Si prega correggere la dimensione A\",IF(AND(OR(Parameter!$D$8>K53,K53>Parameter!$F$8),OR(H53=\"L\",H53=\"Z\",H53=\"U\")),\"Si prega correggere la dimensione B\",IF(AND(OR(Parameter!$D$9>L53,L53>Parameter!$F$9),OR(H53=\"Z\",H53=\"U\")),\"Si prega correggere la dimensione C\",IF(ISBLANK(M53),\"Inserire la lunghezza in mm\",IF(OR(Parameter!$D$10>M53,M53>Parameter!$F$10),\"Si prega correggere la lunghezza\",IF(ISBLANK(N53),\"Inserire la quantità\",IF(NOT(ISNUMBER(N53)),\"Si prega correggere la quantità\",\"OK\"))))))))))))))))))))))","v":""},0,"",null,null,null,null,null,null,null,null,null,null,"",null,"",null,""]
[null,{"$f":"IF(LEN(D54)=0,IF(NOT(B53=\"OK\"),IF(SUMPRODUCT(--(D53:P53<>\"\"))=0,IF(AND(NOT(SUMPRODUCT(--(E54:P54<>\"\"))=0),D53=\"\"),\"Si prega di non utilizzare righe vuote\",\"\"),IF(NOT(SUMPRODUCT(--(E54:P54<>\"\"))=0),\"Si prega correggere prima la riga precedente\",\"\")),\"\"),IF(LEN(E54)>Parameter!$C$2,\"Descrizione troppo lunga, si prega accorciare\",IF(NOT(COUNTIF(Parameter!$C$3:$G$3,F54)),\"Inserire la descrizione (facoltativa) e selezionare ingresso/uscita/pianerottolo/parete/vuoto\",IF(ISBLANK(G54),\"Ricerca Cuscinetto Scala\",IF(NOT(COUNTIF(Parameter!$C$4:$M$4,G54)),\"Si prega inserire un tipo Cuscinetto scala corretto \",IF(ISBLANK(H54),\"Selezionare la forma\",IF(NOT(COUNTIF(Parameter!$C$5:$F$5,H54)),\"Si prega inserire una forma corretta\",IF(ISBLANK(I54),\"Selezionare la riduzione del suono d'impatto\",IF(NOT(COUNTIF(Parameter!$C$6:$D$6,I54)),\"Si prega selezionare la riduzione del suono d'impatto\",IF(AND(COUNTIF(Parameter!$L$4:$M$4,G53),I53=Parameter!$C$6),\"Attenzione: TL-14000 e TL-16000 sono disponibili solo con 32dB. Si prega di correggere!\",IF(AND(H54=\"F\",ISBLANK(J54)),\"Inserire la dimensione A in mm\",IF(AND(H54=\"L\",OR(ISBLANK(J54),ISBLANK(K54))),\"Inserire le dimensioni A e B in mm\",IF(AND(OR(H54=\"Z\",H54=\"U\"),OR(ISBLANK(J54),ISBLANK(K54),ISBLANK(L54))),\"Inserire le dimensioni A, B e C in mm\",IF(AND(H54=\"F\",OR(NOT(ISBLANK(K54)),NOT(ISBLANK(L54)))),\"Inserire solo A per la forma F, si prega cancellare le dimensioni B e C\",IF(AND(H54=\"L\",NOT(ISBLANK(L54))),\"Inserire solo A e B per la forma a L, si prega cancellare la dimensione C\",IF(OR(AND(OR(Parameter!$D$7>J54,J54>Parameter!$F$7),OR(H54=\"F\",H54=\"U\")),AND(OR(Parameter!$H$7>J54,J54>Parameter!$J$7),OR(H54=\"L\",H54=\"Z\"))),\"Si prega correggere la dimensione A\",IF(AND(OR(Parameter!$D$8>K54,K54>Parameter!$F$8),OR(H54=\"L\",H54=\"Z\",H54=\"U\")),\"Si prega correggere la dimensione B\",IF(AND(OR(Parameter!$D$9>L54,L54>Parameter!$F$9),OR(H54=\"Z\",H54=\"U\")),\"Si prega correggere la dimensione C\",IF(ISBLANK(M54),\"Inserire la lunghezza in mm\",IF(OR(Parameter!$D$10>M54,M54>Parameter!$F$10),\"Si prega correggere la lunghezza\",IF(ISBLANK(N54),\"Inserire la quantità\",IF(NOT(ISNUMBER(N54)),\"Si prega correggere la quantità\",\"OK\"))))))))))))))))))))))","v":""},0,"",null,null,null,null,null,null,null,null,null,null,"",null,"",null,""]
[null,{"$f":"IF(LEN(D55)=0,IF(NOT(B54=\"OK\"),IF(SUMPRODUCT(--(D54:P54<>\"\"))=0,IF(AND(NOT(SUMPRODUCT(--(E55:P55<>\"\"))=0),D54=\"\"),\"Si prega di non utilizzare righe vuote\",\"\"),IF(NOT(SUMPRODUCT(--(E55:P55<>\"\"))=0),\"Si prega correggere prima la riga precedente\",\"\")),\"\"),IF(LEN(E55)>Parameter!$C$2,\"Descrizione troppo lunga, si prega accorciare\",IF(NOT(COUNTIF(Parameter!$C$3:$G$3,F55)),\"Inserire la descrizione (facoltativa) e selezionare ingresso/uscita/pianerottolo/parete/vuoto\",IF(ISBLANK(G55),\"Ricerca Cuscinetto Scala\",IF(NOT(COUNTIF(Parameter!$C$4:$M$4,G55)),\"Si prega inserire un tipo Cuscinetto scala corretto \",IF(ISBLANK(H55),\"Selezionare la forma\",IF(NOT(COUNTIF(Parameter!$C$5:$F$5,H55)),\"Si prega inserire una forma corretta\",IF(ISBLANK(I55),\"Selezionare la riduzione del suono d'impatto\",IF(NOT(COUNTIF(Parameter!$C$6:$D$6,I55)),\"Si prega selezionare la riduzione del suono d'impatto\",IF(AND(COUNTIF(Parameter!$L$4:$M$4,G54),I54=Parameter!$C$6),\"Attenzione: TL-14000 e TL-16000 sono disponibili solo con 32dB. Si prega di correggere!\",IF(AND(H55=\"F\",ISBLANK(J55)),\"Inserire la dimensione A in mm\",IF(AND(H55=\"L\",OR(ISBLANK(J55),ISBLANK(K55))),\"Inserire le dimensioni A e B in mm\",IF(AND(OR(H55=\"Z\",H55=\"U\"),OR(ISBLANK(J55),ISBLANK(K55),ISBLANK(L55))),\"Inserire le dimensioni A, B e C in mm\",IF(AND(H55=\"F\",OR(NOT(ISBLANK(K55)),NOT(ISBLANK(L55)))),\"Inserire solo A per la forma F, si prega cancellare le dimensioni B e C\",IF(AND(H55=\"L\",NOT(ISBLANK(L55))),\"Inserire solo A e B per la forma a L, si prega cancellare la dimensione C\",IF(OR(AND(OR(Parameter!$D$7>J55,J55>Parameter!$F$7),OR(H55=\"F\",H55=\"U\")),AND(OR(Parameter!$H$7>J55,J55>Parameter!$J$7),OR(H55=\"L\",H55=\"Z\"))),\"Si prega correggere la dimensione A\",IF(AND(OR(Parameter!$D$8>K55,K55>Parameter!$F$8),OR(H55=\"L\",H55=\"Z\",H55=\"U\")),\"Si prega correggere la dimensione B\",IF(AND(OR(Parameter!$D$9>L55,L55>Parameter!$F$9),OR(H55=\"Z\",H55=\"U\")),\"Si prega correggere la dimensione C\",IF(ISBLANK(M55),\"Inserire la lunghezza in mm\",IF(OR(Parameter!$D$10>M55,M55>Parameter!$F$10),\"Si prega correggere la lunghezza\",IF(ISBLANK(N55),\"Inserire la quantità\",IF(NOT(ISNUMBER(N55)),\"Si prega correggere la quantità\",\"OK\"))))))))))))))))))))))","v":""},0,"",null,null,null,null,null,null,null,null,null,null,"",null,"",null,""]
[null,{"$f":"IF(LEN(D56)=0,IF(NOT(B55=\"OK\"),IF(SUMPRODUCT(--(D55:P55<>\"\"))=0,IF(AND(NOT(SUMPRODUCT(--(E56:P56<>\"\"))=0),D55=\"\"),\"Si prega di non utilizzare righe vuote\",\"\"),IF(NOT(SUMPRODUCT(--(E56:P56<>\"\"))=0),\"Si prega correggere prima la riga precedente\",\"\")),\"\"),IF(LEN(E56)>Parameter!$C$2,\"Descrizione troppo lunga, si prega accorciare\",IF(NOT(COUNTIF(Parameter!$C$3:$G$3,F56)),\"Inserire la descrizione (facoltativa) e selezionare ingresso/uscita/pianerottolo/parete/vuoto\",IF(ISBLANK(G56),\"Ricerca Cuscinetto Scala\",IF(NOT(COUNTIF(Parameter!$C$4:$M$4,G56)),\"Si prega inserire un tipo Cuscinetto scala corretto \",IF(ISBLANK(H56),\"Selezionare la forma\",IF(NOT(COUNTIF(Parameter!$C$5:$F$5,H56)),\"Si prega inserire una forma corretta\",IF(ISBLANK(I56),\"Selezionare la riduzione del suono d'impatto\",IF(NOT(COUNTIF(Parameter!$C$6:$D$6,I56)),\"Si prega selezionare la riduzione del suono d'impatto\",IF(AND(COUNTIF(Parameter!$L$4:$M$4,G55),I55=Parameter!$C$6),\"Attenzione: TL-14000 e TL-16000 sono disponibili solo con 32dB. Si prega di correggere!\",IF(AND(H56=\"F\",ISBLANK(J56)),\"Inserire la dimensione A in mm\",IF(AND(H56=\"L\",OR(ISBLANK(J56),ISBLANK(K56))),\"Inserire le dimensioni A e B in mm\",IF(AND(OR(H56=\"Z\",H56=\"U\"),OR(ISBLANK(J56),ISBLANK(K56),ISBLANK(L56))),\"Inserire le dimensioni A, B e C in mm\",IF(AND(H56=\"F\",OR(NOT(ISBLANK(K56)),NOT(ISBLANK(L56)))),\"Inserire solo A per la forma F, si prega cancellare le dimensioni B e C\",IF(AND(H56=\"L\",NOT(ISBLANK(L56))),\"Inserire solo A e B per la forma a L, si prega cancellare la dimensione C\",IF(OR(AND(OR(Parameter!$D$7>J56,J56>Parameter!$F$7),OR(H56=\"F\",H56=\"U\")),AND(OR(Parameter!$H$7>J56,J56>Parameter!$J$7),OR(H56=\"L\",H56=\"Z\"))),\"Si prega correggere la dimensione A\",IF(AND(OR(Parameter!$D$8>K56,K56>Parameter!$F$8),OR(H56=\"L\",H56=\"Z\",H56=\"U\")),\"Si prega correggere la dimensione B\",IF(AND(OR(Parameter!$D$9>L56,L56>Parameter!$F$9),OR(H56=\"Z\",H56=\"U\")),\"Si prega correggere la dimensione C\",IF(ISBLANK(M56),\"Inserire la lunghezza in mm\",IF(OR(Parameter!$D$10>M56,M56>Parameter!$F$10),\"Si prega correggere la lunghezza\",IF(ISBLANK(N56),\"Inserire la quantità\",IF(NOT(ISNUMBER(N56)),\"Si prega correggere la quantità\",\"OK\"))))))))))))))))))))))","v":""},0,"",null,null,null,null,null,null,null,null,null,null,"",null,"",null,""]
[null,{"$f":"IF(LEN(D57)=0,IF(NOT(B56=\"OK\"),IF(SUMPRODUCT(--(D56:P56<>\"\"))=0,IF(AND(NOT(SUMPRODUCT(--(E57:P57<>\"\"))=0),D56=\"\"),\"Si prega di non utilizzare righe vuote\",\"\"),IF(NOT(SUMPRODUCT(--(E57:P57<>\"\"))=0),\"Si prega correggere prima la riga precedente\",\"\")),\"\"),IF(LEN(E57)>Parameter!$C$2,\"Descrizione troppo lunga, si prega accorciare\",IF(NOT(COUNTIF(Parameter!$C$3:$G$3,F57)),\"Inserire la descrizione (facoltativa) e selezionare ingresso/uscita/pianerottolo/parete/vuoto\",IF(ISBLANK(G57),\"Ricerca Cuscinetto Scala\",IF(NOT(COUNTIF(Parameter!$C$4:$M$4,G57)),\"Si prega inserire un tipo Cuscinetto scala corretto \",IF(ISBLANK(H57),\"Selezionare la forma\",IF(NOT(COUNTIF(Parameter!$C$5:$F$5,H57)),\"Si prega inserire una forma corretta\",IF(ISBLANK(I57),\"Selezionare la riduzione del suono d'impatto\",IF(NOT(COUNTIF(Parameter!$C$6:$D$6,I57)),\"Si prega selezionare la riduzione del suono d'impatto\",IF(AND(COUNTIF(Parameter!$L$4:$M$4,G56),I56=Parameter!$C$6),\"Attenzione: TL-14000 e TL-16000 sono disponibili solo con 32dB. Si prega di correggere!\",IF(AND(H57=\"F\",ISBLANK(J57)),\"Inserire la dimensione A in mm\",IF(AND(H57=\"L\",OR(ISBLANK(J57),ISBLANK(K57))),\"Inserire le dimensioni A e B in mm\",IF(AND(OR(H57=\"Z\",H57=\"U\"),OR(ISBLANK(J57),ISBLANK(K57),ISBLANK(L57))),\"Inserire le dimensioni A, B e C in mm\",IF(AND(H57=\"F\",OR(NOT(ISBLANK(K57)),NOT(ISBLANK(L57)))),\"Inserire solo A per la forma F, si prega cancellare le dimensioni B e C\",IF(AND(H57=\"L\",NOT(ISBLANK(L57))),\"Inserire solo A e B per la forma a L, si prega cancellare la dimensione C\",IF(OR(AND(OR(Parameter!$D$7>J57,J57>Parameter!$F$7),OR(H57=\"F\",H57=\"U\")),AND(OR(Parameter!$H$7>J57,J57>Parameter!$J$7),OR(H57=\"L\",H57=\"Z\"))),\"Si prega correggere la dimensione A\",IF(AND(OR(Parameter!$D$8>K57,K57>Parameter!$F$8),OR(H57=\"L\",H57=\"Z\",H57=\"U\")),\"Si prega correggere la dimensione B\",IF(AND(OR(Parameter!$D$9>L57,L57>Parameter!$F$9),OR(H57=\"Z\",H57=\"U\")),\"Si prega correggere la dimensione C\",IF(ISBLANK(M57),\"Inserire la lunghezza in mm\",IF(OR(Parameter!$D$10>M57,M57>Parameter!$F$10),\"Si prega correggere la lunghezza\",IF(ISBLANK(N57),\"Inserire la quantità\",IF(NOT(ISNUMBER(N57)),\"Si prega correggere la quantità\",\"OK\"))))))))))))))))))))))","v":""},0,"",null,null,null,null,null,null,null,null,null,null,"",null,"",null,""]
[null,{"$f":"IF(LEN(D58)=0,IF(NOT(B57=\"OK\"),IF(SUMPRODUCT(--(D57:P57<>\"\"))=0,IF(AND(NOT(SUMPRODUCT(--(E58:P58<>\"\"))=0),D57=\"\"),\"Si prega di non utilizzare righe vuote\",\"\"),IF(NOT(SUMPRODUCT(--(E58:P58<>\"\"))=0),\"Si prega correggere prima la riga precedente\",\"\")),\"\"),IF(LEN(E58)>Parameter!$C$2,\"Descrizione troppo lunga, si prega accorciare\",IF(NOT(COUNTIF(Parameter!$C$3:$G$3,F58)),\"Inserire la descrizione (facoltativa) e selezionare ingresso/uscita/pianerottolo/parete/vuoto\",IF(ISBLANK(G58),\"Ricerca Cuscinetto Scala\",IF(NOT(COUNTIF(Parameter!$C$4:$M$4,G58)),\"Si prega inserire un tipo Cuscinetto scala corretto \",IF(ISBLANK(H58),\"Selezionare la forma\",IF(NOT(COUNTIF(Parameter!$C$5:$F$5,H58)),\"Si prega inserire una forma corretta\",IF(ISBLANK(I58),\"Selezionare la riduzione del suono d'impatto\",IF(NOT(COUNTIF(Parameter!$C$6:$D$6,I58)),\"Si prega selezionare la riduzione del suono d'impatto\",IF(AND(COUNTIF(Parameter!$L$4:$M$4,G57),I57=Parameter!$C$6),\"Attenzione: TL-14000 e TL-16000 sono disponibili solo con 32dB. Si prega di correggere!\",IF(AND(H58=\"F\",ISBLANK(J58)),\"Inserire la dimensione A in mm\",IF(AND(H58=\"L\",OR(ISBLANK(J58),ISBLANK(K58))),\"Inserire le dimensioni A e B in mm\",IF(AND(OR(H58=\"Z\",H58=\"U\"),OR(ISBLANK(J58),ISBLANK(K58),ISBLANK(L58))),\"Inserire le dimensioni A, B e C in mm\",IF(AND(H58=\"F\",OR(NOT(ISBLANK(K58)),NOT(ISBLANK(L58)))),\"Inserire solo A per la forma F, si prega cancellare le dimensioni B e C\",IF(AND(H58=\"L\",NOT(ISBLANK(L58))),\"Inserire solo A e B per la forma a L, si prega cancellare la dimensione C\",IF(OR(AND(OR(Parameter!$D$7>J58,J58>Parameter!$F$7),OR(H58=\"F\",H58=\"U\")),AND(OR(Parameter!$H$7>J58,J58>Parameter!$J$7),OR(H58=\"L\",H58=\"Z\"))),\"Si prega correggere la dimensione A\",IF(AND(OR(Parameter!$D$8>K58,K58>Parameter!$F$8),OR(H58=\"L\",H58=\"Z\",H58=\"U\")),\"Si prega correggere la dimensione B\",IF(AND(OR(Parameter!$D$9>L58,L58>Parameter!$F$9),OR(H58=\"Z\",H58=\"U\")),\"Si prega correggere la dimensione C\",IF(ISBLANK(M58),\"Inserire la lunghezza in mm\",IF(OR(Parameter!$D$10>M58,M58>Parameter!$F$10),\"Si prega correggere la lunghezza\",IF(ISBLANK(N58),\"Inserire la quantità\",IF(NOT(ISNUMBER(N58)),\"Si prega correggere la quantità\",\"OK\"))))))))))))))))))))))","v":""},0,"",null,null,null,null,null,null,null,null,null,null,"",null,"",null,""]
[null,{"$f":"IF(LEN(D59)=0,IF(NOT(B58=\"OK\"),IF(SUMPRODUCT(--(D58:P58<>\"\"))=0,IF(AND(NOT(SUMPRODUCT(--(E59:P59<>\"\"))=0),D58=\"\"),\"Si prega di non utilizzare righe vuote\",\"\"),IF(NOT(SUMPRODUCT(--(E59:P59<>\"\"))=0),\"Si prega correggere prima la riga precedente\",\"\")),\"\"),IF(LEN(E59)>Parameter!$C$2,\"Descrizione troppo lunga, si prega accorciare\",IF(NOT(COUNTIF(Parameter!$C$3:$G$3,F59)),\"Inserire la descrizione (facoltativa) e selezionare ingresso/uscita/pianerottolo/parete/vuoto\",IF(ISBLANK(G59),\"Ricerca Cuscinetto Scala\",IF(NOT(COUNTIF(Parameter!$C$4:$M$4,G59)),\"Si prega inserire un tipo Cuscinetto scala corretto \",IF(ISBLANK(H59),\"Selezionare la forma\",IF(NOT(COUNTIF(Parameter!$C$5:$F$5,H59)),\"Si prega inserire una forma corretta\",IF(ISBLANK(I59),\"Selezionare la riduzione del suono d'impatto\",IF(NOT(COUNTIF(Parameter!$C$6:$D$6,I59)),\"Si prega selezionare la riduzione del suono d'impatto\",IF(AND(COUNTIF(Parameter!$L$4:$M$4,G58),I58=Parameter!$C$6),\"Attenzione: TL-14000 e TL-16000 sono disponibili solo con 32dB. Si prega di correggere!\",IF(AND(H59=\"F\",ISBLANK(J59)),\"Inserire la dimensione A in mm\",IF(AND(H59=\"L\",OR(ISBLANK(J59),ISBLANK(K59))),\"Inserire le dimensioni A e B in mm\",IF(AND(OR(H59=\"Z\",H59=\"U\"),OR(ISBLANK(J59),ISBLANK(K59),ISBLANK(L59))),\"Inserire le dimensioni A, B e C in mm\",IF(AND(H59=\"F\",OR(NOT(ISBLANK(K59)),NOT(ISBLANK(L59)))),\"Inserire solo A per la forma F, si prega cancellare le dimensioni B e C\",IF(AND(H59=\"L\",NOT(ISBLANK(L59))),\"Inserire solo A e B per la forma a L, si prega cancellare la dimensione C\",IF(OR(AND(OR(Parameter!$D$7>J59,J59>Parameter!$F$7),OR(H59=\"F\",H59=\"U\")),AND(OR(Parameter!$H$7>J59,J59>Parameter!$J$7),OR(H59=\"L\",H59=\"Z\"))),\"Si prega correggere la dimensione A\",IF(AND(OR(Parameter!$D$8>K59,K59>Parameter!$F$8),OR(H59=\"L\",H59=\"Z\",H59=\"U\")),\"Si prega correggere la dimensione B\",IF(AND(OR(Parameter!$D$9>L59,L59>Parameter!$F$9),OR(H59=\"Z\",H59=\"U\")),\"Si prega correggere la dimensione C\",IF(ISBLANK(M59),\"Inserire la lunghezza in mm\",IF(OR(Parameter!$D$10>M59,M59>Parameter!$F$10),\"Si prega correggere la lunghezza\",IF(ISBLANK(N59),\"Inserire la quantità\",IF(NOT(ISNUMBER(N59)),\"Si prega correggere la quantità\",\"OK\"))))))))))))))))))))))","v":""},0,"",null,null,null,null,null,null,null,null,null,null,"",null,"",null,""]
[null,{"$f":"IF(LEN(D60)=0,IF(NOT(B59=\"OK\"),IF(SUMPRODUCT(--(D59:P59<>\"\"))=0,IF(AND(NOT(SUMPRODUCT(--(E60:P60<>\"\"))=0),D59=\"\"),\"Si prega di non utilizzare righe vuote\",\"\"),IF(NOT(SUMPRODUCT(--(E60:P60<>\"\"))=0),\"Si prega correggere prima la riga precedente\",\"\")),\"\"),IF(LEN(E60)>Parameter!$C$2,\"Descrizione troppo lunga, si prega accorciare\",IF(NOT(COUNTIF(Parameter!$C$3:$G$3,F60)),\"Inserire la descrizione (facoltativa) e selezionare ingresso/uscita/pianerottolo/parete/vuoto\",IF(ISBLANK(G60),\"Ricerca Cuscinetto Scala\",IF(NOT(COUNTIF(Parameter!$C$4:$M$4,G60)),\"Si prega inserire un tipo Cuscinetto scala corretto \",IF(ISBLANK(H60),\"Selezionare la forma\",IF(NOT(COUNTIF(Parameter!$C$5:$F$5,H60)),\"Si prega inserire una forma corretta\",IF(ISBLANK(I60),\"Selezionare la riduzione del suono d'impatto\",IF(NOT(COUNTIF(Parameter!$C$6:$D$6,I60)),\"Si prega selezionare la riduzione del suono d'impatto\",IF(AND(COUNTIF(Parameter!$L$4:$M$4,G59),I59=Parameter!$C$6),\"Attenzione: TL-14000 e TL-16000 sono disponibili solo con 32dB. Si prega di correggere!\",IF(AND(H60=\"F\",ISBLANK(J60)),\"Inserire la dimensione A in mm\",IF(AND(H60=\"L\",OR(ISBLANK(J60),ISBLANK(K60))),\"Inserire le dimensioni A e B in mm\",IF(AND(OR(H60=\"Z\",H60=\"U\"),OR(ISBLANK(J60),ISBLANK(K60),ISBLANK(L60))),\"Inserire le dimensioni A, B e C in mm\",IF(AND(H60=\"F\",OR(NOT(ISBLANK(K60)),NOT(ISBLANK(L60)))),\"Inserire solo A per la forma F, si prega cancellare le dimensioni B e C\",IF(AND(H60=\"L\",NOT(ISBLANK(L60))),\"Inserire solo A e B per la forma a L, si prega cancellare la dimensione C\",IF(OR(AND(OR(Parameter!$D$7>J60,J60>Parameter!$F$7),OR(H60=\"F\",H60=\"U\")),AND(OR(Parameter!$H$7>J60,J60>Parameter!$J$7),OR(H60=\"L\",H60=\"Z\"))),\"Si prega correggere la dimensione A\",IF(AND(OR(Parameter!$D$8>K60,K60>Parameter!$F$8),OR(H60=\"L\",H60=\"Z\",H60=\"U\")),\"Si prega correggere la dimensione B\",IF(AND(OR(Parameter!$D$9>L60,L60>Parameter!$F$9),OR(H60=\"Z\",H60=\"U\")),\"Si prega correggere la dimensione C\",IF(ISBLANK(M60),\"Inserire la lunghezza in mm\",IF(OR(Parameter!$D$10>M60,M60>Parameter!$F$10),\"Si prega correggere la lunghezza\",IF(ISBLANK(N60),\"Inserire la quantità\",IF(NOT(ISNUMBER(N60)),\"Si prega correggere la quantità\",\"OK\"))))))))))))))))))))))","v":""},0,"",null,null,null,null,null,null,null,null,null,null,"",null,"",null,""]
[null,{"$f":"IF(LEN(D61)=0,IF(NOT(B60=\"OK\"),IF(SUMPRODUCT(--(D60:P60<>\"\"))=0,IF(AND(NOT(SUMPRODUCT(--(E61:P61<>\"\"))=0),D60=\"\"),\"Si prega di non utilizzare righe vuote\",\"\"),IF(NOT(SUMPRODUCT(--(E61:P61<>\"\"))=0),\"Si prega correggere prima la riga precedente\",\"\")),\"\"),IF(LEN(E61)>Parameter!$C$2,\"Descrizione troppo lunga, si prega accorciare\",IF(NOT(COUNTIF(Parameter!$C$3:$G$3,F61)),\"Inserire la descrizione (facoltativa) e selezionare ingresso/uscita/pianerottolo/parete/vuoto\",IF(ISBLANK(G61),\"Ricerca Cuscinetto Scala\",IF(NOT(COUNTIF(Parameter!$C$4:$M$4,G61)),\"Si prega inserire un tipo Cuscinetto scala corretto \",IF(ISBLANK(H61),\"Selezionare la forma\",IF(NOT(COUNTIF(Parameter!$C$5:$F$5,H61)),\"Si prega inserire una forma corretta\",IF(ISBLANK(I61),\"Selezionare la riduzione del suono d'impatto\",IF(NOT(COUNTIF(Parameter!$C$6:$D$6,I61)),\"Si prega selezionare la riduzione del suono d'impatto\",IF(AND(COUNTIF(Parameter!$L$4:$M$4,G60),I60=Parameter!$C$6),\"Attenzione: TL-14000 e TL-16000 sono disponibili solo con 32dB. Si prega di correggere!\",IF(AND(H61=\"F\",ISBLANK(J61)),\"Inserire la dimensione A in mm\",IF(AND(H61=\"L\",OR(ISBLANK(J61),ISBLANK(K61))),\"Inserire le dimensioni A e B in mm\",IF(AND(OR(H61=\"Z\",H61=\"U\"),OR(ISBLANK(J61),ISBLANK(K61),ISBLANK(L61))),\"Inserire le dimensioni A, B e C in mm\",IF(AND(H61=\"F\",OR(NOT(ISBLANK(K61)),NOT(ISBLANK(L61)))),\"Inserire solo A per la forma F, si prega cancellare le dimensioni B e C\",IF(AND(H61=\"L\",NOT(ISBLANK(L61))),\"Inserire solo A e B per la forma a L, si prega cancellare la dimensione C\",IF(OR(AND(OR(Parameter!$D$7>J61,J61>Parameter!$F$7),OR(H61=\"F\",H61=\"U\")),AND(OR(Parameter!$H$7>J61,J61>Parameter!$J$7),OR(H61=\"L\",H61=\"Z\"))),\"Si prega correggere la dimensione A\",IF(AND(OR(Parameter!$D$8>K61,K61>Parameter!$F$8),OR(H61=\"L\",H61=\"Z\",H61=\"U\")),\"Si prega correggere la dimensione B\",IF(AND(OR(Parameter!$D$9>L61,L61>Parameter!$F$9),OR(H61=\"Z\",H61=\"U\")),\"Si prega correggere la dimensione C\",IF(ISBLANK(M61),\"Inserire la lunghezza in mm\",IF(OR(Parameter!$D$10>M61,M61>Parameter!$F$10),\"Si prega correggere la lunghezza\",IF(ISBLANK(N61),\"Inserire la quantità\",IF(NOT(ISNUMBER(N61)),\"Si prega correggere la quantità\",\"OK\"))))))))))))))))))))))","v":""},0,"",null,null,null,null,null,null,null,null,null,null,"",null,"",null,""]
[null,{"$f":"IF(LEN(D62)=0,IF(NOT(B61=\"OK\"),IF(SUMPRODUCT(--(D61:P61<>\"\"))=0,IF(AND(NOT(SUMPRODUCT(--(E62:P62<>\"\"))=0),D61=\"\"),\"Si prega di non utilizzare righe vuote\",\"\"),IF(NOT(SUMPRODUCT(--(E62:P62<>\"\"))=0),\"Si prega correggere prima la riga precedente\",\"\")),\"\"),IF(LEN(E62)>Parameter!$C$2,\"Descrizione troppo lunga, si prega accorciare\",IF(NOT(COUNTIF(Parameter!$C$3:$G$3,F62)),\"Inserire la descrizione (facoltativa) e selezionare ingresso/uscita/pianerottolo/parete/vuoto\",IF(ISBLANK(G62),\"Ricerca Cuscinetto Scala\",IF(NOT(COUNTIF(Parameter!$C$4:$M$4,G62)),\"Si prega inserire un tipo Cuscinetto scala corretto \",IF(ISBLANK(H62),\"Selezionare la forma\",IF(NOT(COUNTIF(Parameter!$C$5:$F$5,H62)),\"Si prega inserire una forma corretta\",IF(ISBLANK(I62),\"Selezionare la riduzione del suono d'impatto\",IF(NOT(COUNTIF(Parameter!$C$6:$D$6,I62)),\"Si prega selezionare la riduzione del suono d'impatto\",IF(AND(COUNTIF(Parameter!$L$4:$M$4,G61),I61=Parameter!$C$6),\"Attenzione: TL-14000 e TL-16000 sono disponibili solo con 32dB. Si prega di correggere!\",IF(AND(H62=\"F\",ISBLANK(J62)),\"Inserire la dimensione A in mm\",IF(AND(H62=\"L\",OR(ISBLANK(J62),ISBLANK(K62))),\"Inserire le dimensioni A e B in mm\",IF(AND(OR(H62=\"Z\",H62=\"U\"),OR(ISBLANK(J62),ISBLANK(K62),ISBLANK(L62))),\"Inserire le dimensioni A, B e C in mm\",IF(AND(H62=\"F\",OR(NOT(ISBLANK(K62)),NOT(ISBLANK(L62)))),\"Inserire solo A per la forma F, si prega cancellare le dimensioni B e C\",IF(AND(H62=\"L\",NOT(ISBLANK(L62))),\"Inserire solo A e B per la forma a L, si prega cancellare la dimensione C\",IF(OR(AND(OR(Parameter!$D$7>J62,J62>Parameter!$F$7),OR(H62=\"F\",H62=\"U\")),AND(OR(Parameter!$H$7>J62,J62>Parameter!$J$7),OR(H62=\"L\",H62=\"Z\"))),\"Si prega correggere la dimensione A\",IF(AND(OR(Parameter!$D$8>K62,K62>Parameter!$F$8),OR(H62=\"L\",H62=\"Z\",H62=\"U\")),\"Si prega correggere la dimensione B\",IF(AND(OR(Parameter!$D$9>L62,L62>Parameter!$F$9),OR(H62=\"Z\",H62=\"U\")),\"Si prega correggere la dimensione C\",IF(ISBLANK(M62),\"Inserire la lunghezza in mm\",IF(OR(Parameter!$D$10>M62,M62>Parameter!$F$10),\"Si prega correggere la lunghezza\",IF(ISBLANK(N62),\"Inserire la quantità\",IF(NOT(ISNUMBER(N62)),\"Si prega correggere la quantità\",\"OK\"))))))))))))))))))))))","v":""},0,"",null,null,null,null,null,null,null,null,null,null,"",null,"",null,""]
[null,{"$f":"IF(LEN(D63)=0,IF(NOT(B62=\"OK\"),IF(SUMPRODUCT(--(D62:P62<>\"\"))=0,IF(AND(NOT(SUMPRODUCT(--(E63:P63<>\"\"))=0),D62=\"\"),\"Si prega di non utilizzare righe vuote\",\"\"),IF(NOT(SUMPRODUCT(--(E63:P63<>\"\"))=0),\"Si prega correggere prima la riga precedente\",\"\")),\"\"),IF(LEN(E63)>Parameter!$C$2,\"Descrizione troppo lunga, si prega accorciare\",IF(NOT(COUNTIF(Parameter!$C$3:$G$3,F63)),\"Inserire la descrizione (facoltativa) e selezionare ingresso/uscita/pianerottolo/parete/vuoto\",IF(ISBLANK(G63),\"Ricerca Cuscinetto Scala\",IF(NOT(COUNTIF(Parameter!$C$4:$M$4,G63)),\"Si prega inserire un tipo Cuscinetto scala corretto \",IF(ISBLANK(H63),\"Selezionare la forma\",IF(NOT(COUNTIF(Parameter!$C$5:$F$5,H63)),\"Si prega inserire una forma corretta\",IF(ISBLANK(I63),\"Selezionare la riduzione del suono d'impatto\",IF(NOT(COUNTIF(Parameter!$C$6:$D$6,I63)),\"Si prega selezionare la riduzione del suono d'impatto\",IF(AND(COUNTIF(Parameter!$L$4:$M$4,G62),I62=Parameter!$C$6),\"Attenzione: TL-14000 e TL-16000 sono disponibili solo con 32dB. Si prega di correggere!\",IF(AND(H63=\"F\",ISBLANK(J63)),\"Inserire la dimensione A in mm\",IF(AND(H63=\"L\",OR(ISBLANK(J63),ISBLANK(K63))),\"Inserire le dimensioni A e B in mm\",IF(AND(OR(H63=\"Z\",H63=\"U\"),OR(ISBLANK(J63),ISBLANK(K63),ISBLANK(L63))),\"Inserire le dimensioni A, B e C in mm\",IF(AND(H63=\"F\",OR(NOT(ISBLANK(K63)),NOT(ISBLANK(L63)))),\"Inserire solo A per la forma F, si prega cancellare le dimensioni B e C\",IF(AND(H63=\"L\",NOT(ISBLANK(L63))),\"Inserire solo A e B per la forma a L, si prega cancellare la dimensione C\",IF(OR(AND(OR(Parameter!$D$7>J63,J63>Parameter!$F$7),OR(H63=\"F\",H63=\"U\")),AND(OR(Parameter!$H$7>J63,J63>Parameter!$J$7),OR(H63=\"L\",H63=\"Z\"))),\"Si prega correggere la dimensione A\",IF(AND(OR(Parameter!$D$8>K63,K63>Parameter!$F$8),OR(H63=\"L\",H63=\"Z\",H63=\"U\")),\"Si prega correggere la dimensione B\",IF(AND(OR(Parameter!$D$9>L63,L63>Parameter!$F$9),OR(H63=\"Z\",H63=\"U\")),\"Si prega correggere la dimensione C\",IF(ISBLANK(M63),\"Inserire la lunghezza in mm\",IF(OR(Parameter!$D$10>M63,M63>Parameter!$F$10),\"Si prega correggere la lunghezza\",IF(ISBLANK(N63),\"Inserire la quantità\",IF(NOT(ISNUMBER(N63)),\"Si prega correggere la quantità\",\"OK\"))))))))))))))))))))))","v":""},0,"",null,null,null,null,null,null,null,null,null,null,"",null,"",null,""]
[null,{"$f":"IF(LEN(D64)=0,IF(NOT(B63=\"OK\"),IF(SUMPRODUCT(--(D63:P63<>\"\"))=0,IF(AND(NOT(SUMPRODUCT(--(E64:P64<>\"\"))=0),D63=\"\"),\"Si prega di non utilizzare righe vuote\",\"\"),IF(NOT(SUMPRODUCT(--(E64:P64<>\"\"))=0),\"Si prega correggere prima la riga precedente\",\"\")),\"\"),IF(LEN(E64)>Parameter!$C$2,\"Descrizione troppo lunga, si prega accorciare\",IF(NOT(COUNTIF(Parameter!$C$3:$G$3,F64)),\"Inserire la descrizione (facoltativa) e selezionare ingresso/uscita/pianerottolo/parete/vuoto\",IF(ISBLANK(G64),\"Ricerca Cuscinetto Scala\",IF(NOT(COUNTIF(Parameter!$C$4:$M$4,G64)),\"Si prega inserire un tipo Cuscinetto scala corretto \",IF(ISBLANK(H64),\"Selezionare la forma\",IF(NOT(COUNTIF(Parameter!$C$5:$F$5,H64)),\"Si prega inserire una forma corretta\",IF(ISBLANK(I64),\"Selezionare la riduzione del suono d'impatto\",IF(NOT(COUNTIF(Parameter!$C$6:$D$6,I64)),\"Si prega selezionare la riduzione del suono d'impatto\",IF(AND(COUNTIF(Parameter!$L$4:$M$4,G63),I63=Parameter!$C$6),\"Attenzione: TL-14000 e TL-16000 sono disponibili solo con 32dB. Si prega di correggere!\",IF(AND(H64=\"F\",ISBLANK(J64)),\"Inserire la dimensione A in mm\",IF(AND(H64=\"L\",OR(ISBLANK(J64),ISBLANK(K64))),\"Inserire le dimensioni A e B in mm\",IF(AND(OR(H64=\"Z\",H64=\"U\"),OR(ISBLANK(J64),ISBLANK(K64),ISBLANK(L64))),\"Inserire le dimensioni A, B e C in mm\",IF(AND(H64=\"F\",OR(NOT(ISBLANK(K64)),NOT(ISBLANK(L64)))),\"Inserire solo A per la forma F, si prega cancellare le dimensioni B e C\",IF(AND(H64=\"L\",NOT(ISBLANK(L64))),\"Inserire solo A e B per la forma a L, si prega cancellare la dimensione C\",IF(OR(AND(OR(Parameter!$D$7>J64,J64>Parameter!$F$7),OR(H64=\"F\",H64=\"U\")),AND(OR(Parameter!$H$7>J64,J64>Parameter!$J$7),OR(H64=\"L\",H64=\"Z\"))),\"Si prega correggere la dimensione A\",IF(AND(OR(Parameter!$D$8>K64,K64>Parameter!$F$8),OR(H64=\"L\",H64=\"Z\",H64=\"U\")),\"Si prega correggere la dimensione B\",IF(AND(OR(Parameter!$D$9>L64,L64>Parameter!$F$9),OR(H64=\"Z\",H64=\"U\")),\"Si prega correggere la dimensione C\",IF(ISBLANK(M64),\"Inserire la lunghezza in mm\",IF(OR(Parameter!$D$10>M64,M64>Parameter!$F$10),\"Si prega correggere la lunghezza\",IF(ISBLANK(N64),\"Inserire la quantità\",IF(NOT(ISNUMBER(N64)),\"Si prega correggere la quantità\",\"OK\"))))))))))))))))))))))","v":""},0,"",null,null,null,null,null,null,null,null,null,null,"",null,"",null,""]
[null,{"$f":"IF(LEN(D65)=0,IF(NOT(B64=\"OK\"),IF(SUMPRODUCT(--(D64:P64<>\"\"))=0,IF(AND(NOT(SUMPRODUCT(--(E65:P65<>\"\"))=0),D64=\"\"),\"Si prega di non utilizzare righe vuote\",\"\"),IF(NOT(SUMPRODUCT(--(E65:P65<>\"\"))=0),\"Si prega correggere prima la riga precedente\",\"\")),\"\"),IF(LEN(E65)>Parameter!$C$2,\"Descrizione troppo lunga, si prega accorciare\",IF(NOT(COUNTIF(Parameter!$C$3:$G$3,F65)),\"Inserire la descrizione (facoltativa) e selezionare ingresso/uscita/pianerottolo/parete/vuoto\",IF(ISBLANK(G65),\"Ricerca Cuscinetto Scala\",IF(NOT(COUNTIF(Parameter!$C$4:$M$4,G65)),\"Si prega inserire un tipo Cuscinetto scala corretto \",IF(ISBLANK(H65),\"Selezionare la forma\",IF(NOT(COUNTIF(Parameter!$C$5:$F$5,H65)),\"Si prega inserire una forma corretta\",IF(ISBLANK(I65),\"Selezionare la riduzione del suono d'impatto\",IF(NOT(COUNTIF(Parameter!$C$6:$D$6,I65)),\"Si prega selezionare la riduzione del suono d'impatto\",IF(AND(COUNTIF(Parameter!$L$4:$M$4,G64),I64=Parameter!$C$6),\"Attenzione: TL-14000 e TL-16000 sono disponibili solo con 32dB. Si prega di correggere!\",IF(AND(H65=\"F\",ISBLANK(J65)),\"Inserire la dimensione A in mm\",IF(AND(H65=\"L\",OR(ISBLANK(J65),ISBLANK(K65))),\"Inserire le dimensioni A e B in mm\",IF(AND(OR(H65=\"Z\",H65=\"U\"),OR(ISBLANK(J65),ISBLANK(K65),ISBLANK(L65))),\"Inserire le dimensioni A, B e C in mm\",IF(AND(H65=\"F\",OR(NOT(ISBLANK(K65)),NOT(ISBLANK(L65)))),\"Inserire solo A per la forma F, si prega cancellare le dimensioni B e C\",IF(AND(H65=\"L\",NOT(ISBLANK(L65))),\"Inserire solo A e B per la forma a L, si prega cancellare la dimensione C\",IF(OR(AND(OR(Parameter!$D$7>J65,J65>Parameter!$F$7),OR(H65=\"F\",H65=\"U\")),AND(OR(Parameter!$H$7>J65,J65>Parameter!$J$7),OR(H65=\"L\",H65=\"Z\"))),\"Si prega correggere la dimensione A\",IF(AND(OR(Parameter!$D$8>K65,K65>Parameter!$F$8),OR(H65=\"L\",H65=\"Z\",H65=\"U\")),\"Si prega correggere la dimensione B\",IF(AND(OR(Parameter!$D$9>L65,L65>Parameter!$F$9),OR(H65=\"Z\",H65=\"U\")),\"Si prega correggere la dimensione C\",IF(ISBLANK(M65),\"Inserire la lunghezza in mm\",IF(OR(Parameter!$D$10>M65,M65>Parameter!$F$10),\"Si prega correggere la lunghezza\",IF(ISBLANK(N65),\"Inserire la quantità\",IF(NOT(ISNUMBER(N65)),\"Si prega correggere la quantità\",\"OK\"))))))))))))))))))))))","v":""},0,"",null,null,null,null,null,null,null,null,null,null,"",null,"",null,""]
[null,{"$f":"IF(LEN(D66)=0,IF(NOT(B65=\"OK\"),IF(SUMPRODUCT(--(D65:P65<>\"\"))=0,IF(AND(NOT(SUMPRODUCT(--(E66:P66<>\"\"))=0),D65=\"\"),\"Si prega di non utilizzare righe vuote\",\"\"),IF(NOT(SUMPRODUCT(--(E66:P66<>\"\"))=0),\"Si prega correggere prima la riga precedente\",\"\")),\"\"),IF(LEN(E66)>Parameter!$C$2,\"Descrizione troppo lunga, si prega accorciare\",IF(NOT(COUNTIF(Parameter!$C$3:$G$3,F66)),\"Inserire la descrizione (facoltativa) e selezionare ingresso/uscita/pianerottolo/parete/vuoto\",IF(ISBLANK(G66),\"Ricerca Cuscinetto Scala\",IF(NOT(COUNTIF(Parameter!$C$4:$M$4,G66)),\"Si prega inserire un tipo Cuscinetto scala corretto \",IF(ISBLANK(H66),\"Selezionare la forma\",IF(NOT(COUNTIF(Parameter!$C$5:$F$5,H66)),\"Si prega inserire una forma corretta\",IF(ISBLANK(I66),\"Selezionare la riduzione del suono d'impatto\",IF(NOT(COUNTIF(Parameter!$C$6:$D$6,I66)),\"Si prega selezionare la riduzione del suono d'impatto\",IF(AND(COUNTIF(Parameter!$L$4:$M$4,G65),I65=Parameter!$C$6),\"Attenzione: TL-14000 e TL-16000 sono disponibili solo con 32dB. Si prega di correggere!\",IF(AND(H66=\"F\",ISBLANK(J66)),\"Inserire la dimensione A in mm\",IF(AND(H66=\"L\",OR(ISBLANK(J66),ISBLANK(K66))),\"Inserire le dimensioni A e B in mm\",IF(AND(OR(H66=\"Z\",H66=\"U\"),OR(ISBLANK(J66),ISBLANK(K66),ISBLANK(L66))),\"Inserire le dimensioni A, B e C in mm\",IF(AND(H66=\"F\",OR(NOT(ISBLANK(K66)),NOT(ISBLANK(L66)))),\"Inserire solo A per la forma F, si prega cancellare le dimensioni B e C\",IF(AND(H66=\"L\",NOT(ISBLANK(L66))),\"Inserire solo A e B per la forma a L, si prega cancellare la dimensione C\",IF(OR(AND(OR(Parameter!$D$7>J66,J66>Parameter!$F$7),OR(H66=\"F\",H66=\"U\")),AND(OR(Parameter!$H$7>J66,J66>Parameter!$J$7),OR(H66=\"L\",H66=\"Z\"))),\"Si prega correggere la dimensione A\",IF(AND(OR(Parameter!$D$8>K66,K66>Parameter!$F$8),OR(H66=\"L\",H66=\"Z\",H66=\"U\")),\"Si prega correggere la dimensione B\",IF(AND(OR(Parameter!$D$9>L66,L66>Parameter!$F$9),OR(H66=\"Z\",H66=\"U\")),\"Si prega correggere la dimensione C\",IF(ISBLANK(M66),\"Inserire la lunghezza in mm\",IF(OR(Parameter!$D$10>M66,M66>Parameter!$F$10),\"Si prega correggere la lunghezza\",IF(ISBLANK(N66),\"Inserire la quantità\",IF(NOT(ISNUMBER(N66)),\"Si prega correggere la quantità\",\"OK\"))))))))))))))))))))))","v":""},0,"",null,null,null,null,null,null,null,null,null,null,"",null,"",null,""]
[null,{"$f":"IF(LEN(D67)=0,IF(NOT(B66=\"OK\"),IF(SUMPRODUCT(--(D66:P66<>\"\"))=0,IF(AND(NOT(SUMPRODUCT(--(E67:P67<>\"\"))=0),D66=\"\"),\"Si prega di non utilizzare righe vuote\",\"\"),IF(NOT(SUMPRODUCT(--(E67:P67<>\"\"))=0),\"Si prega correggere prima la riga precedente\",\"\")),\"\"),IF(LEN(E67)>Parameter!$C$2,\"Descrizione troppo lunga, si prega accorciare\",IF(NOT(COUNTIF(Parameter!$C$3:$G$3,F67)),\"Inserire la descrizione (facoltativa) e selezionare ingresso/uscita/pianerottolo/parete/vuoto\",IF(ISBLANK(G67),\"Ricerca Cuscinetto Scala\",IF(NOT(COUNTIF(Parameter!$C$4:$M$4,G67)),\"Si prega inserire un tipo Cuscinetto scala corretto \",IF(ISBLANK(H67),\"Selezionare la forma\",IF(NOT(COUNTIF(Parameter!$C$5:$F$5,H67)),\"Si prega inserire una forma corretta\",IF(ISBLANK(I67),\"Selezionare la riduzione del suono d'impatto\",IF(NOT(COUNTIF(Parameter!$C$6:$D$6,I67)),\"Si prega selezionare la riduzione del suono d'impatto\",IF(AND(COUNTIF(Parameter!$L$4:$M$4,G66),I66=Parameter!$C$6),\"Attenzione: TL-14000 e TL-16000 sono disponibili solo con 32dB. Si prega di correggere!\",IF(AND(H67=\"F\",ISBLANK(J67)),\"Inserire la dimensione A in mm\",IF(AND(H67=\"L\",OR(ISBLANK(J67),ISBLANK(K67))),\"Inserire le dimensioni A e B in mm\",IF(AND(OR(H67=\"Z\",H67=\"U\"),OR(ISBLANK(J67),ISBLANK(K67),ISBLANK(L67))),\"Inserire le dimensioni A, B e C in mm\",IF(AND(H67=\"F\",OR(NOT(ISBLANK(K67)),NOT(ISBLANK(L67)))),\"Inserire solo A per la forma F, si prega cancellare le dimensioni B e C\",IF(AND(H67=\"L\",NOT(ISBLANK(L67))),\"Inserire solo A e B per la forma a L, si prega cancellare la dimensione C\",IF(OR(AND(OR(Parameter!$D$7>J67,J67>Parameter!$F$7),OR(H67=\"F\",H67=\"U\")),AND(OR(Parameter!$H$7>J67,J67>Parameter!$J$7),OR(H67=\"L\",H67=\"Z\"))),\"Si prega correggere la dimensione A\",IF(AND(OR(Parameter!$D$8>K67,K67>Parameter!$F$8),OR(H67=\"L\",H67=\"Z\",H67=\"U\")),\"Si prega correggere la dimensione B\",IF(AND(OR(Parameter!$D$9>L67,L67>Parameter!$F$9),OR(H67=\"Z\",H67=\"U\")),\"Si prega correggere la dimensione C\",IF(ISBLANK(M67),\"Inserire la lunghezza in mm\",IF(OR(Parameter!$D$10>M67,M67>Parameter!$F$10),\"Si prega correggere la lunghezza\",IF(ISBLANK(N67),\"Inserire la quantità\",IF(NOT(ISNUMBER(N67)),\"Si prega correggere la quantità\",\"OK\"))))))))))))))))))))))","v":""},0,"",null,null,null,null,null,null,null,null,null,null,"",null,"",null,""]
[null,{"$f":"IF(B67=\"OK\",\"Se si desidera ordinare più cuscinetti per scale, creare un secondo Excel e inviarlo.\",\"\")","v":""},null,null,null,null,null,null,null,null,"Totale",null,null,{"$f":"SUM(N33:N67)","v":0}]
[]
[]
[null,null,null,"Prodotti supplementari"]
["↓ Prodotti supplementari ↓"]
["00)  senza alcun additivo","00)  senza alcun additivo",null,"senza alcun additivo"]
["00)  senza alcun additivo","00)  senza alcun additivo"]
["00)  senza alcun additivo","00)  senza alcun additivo"]
["01)  prodotti aggiuntivi","01)  prodotti aggiuntivi",null,"Prodotti supplementari"]
["01)  prodotti aggiuntivi","01)  prodotti aggiuntivi",null,"#",null,"Definizione",null,null,null,"Commento",null,null,null,null,null,null,"Quantità"]
["01)  prodotti aggiuntivi","01)  prodotti aggiuntivi",null,null,null,null,null,null,null," ",null,null,null,null,null,null,"-"]
["01)  prodotti aggiuntivi","01)  prodotti aggiuntivi",null,null,null,null,null,null,null,null,null,null,null,null,null,null,"-"]
["01)  prodotti aggiuntivi","01)  prodotti aggiuntivi",null,null,null,null,null,null,null,null,null,null,null,null,null,null,"-"]
["01)  prodotti aggiuntivi","01)  prodotti aggiuntivi",null,null,null,null,null,null,null,null,null,null,null,null,null,null,"-"]
["01)  prodotti aggiuntivi","01)  prodotti aggiuntivi",null,null,null,null,null,null,null,null,null,null,null,null,null,null,"-"]
["01)  prodotti aggiuntivi","01)  prodotti aggiuntivi",null,null,null,null,null,null,null,null,null,null,null,null,null,null,"-"]
["01)  prodotti aggiuntivi","01)  prodotti aggiuntivi"]
["02)  ISODORN ","02)  ISODORN ",null,"ISODORN"]
["02)  ISODORN ","02)  ISODORN ",null,null,null,null,null,null,null,null,null,null,null,"Magazino","Cantiere",null,"Quantità"]
["02)  ISODORN ","02)  ISODORN ",null,null,null,"ISODORN TYP A",null,null," ",null,null,null,null,"r","r",null,"-"]
["02)  ISODORN ","02)  ISODORN ",null,null,null,"ISODORN TYP B",null,null,null,null,null,null,null,"r","r",null,"-"]
["02)  ISODORN ","02)  ISODORN ",null,null,null,"Manicotto di montaggio per ISODORN-A / -B ",null,null,null,null,null,null,null,"r","r",null,"-"]
["02)  ISODORN ","02)  ISODORN ",null,null,null,"Commento:"]
["02)  ISODORN ","02)  ISODORN "]
["03)  ISOTRESI","03)  ISOTRESI",null,"ISOTRESI "]
["03)  ISOTRESI","03)  ISOTRESI",null,null,null,null,null,null,null,null,null,null,null,"Magazino","Cantiere",null,"Quantità"]
["03)  ISOTRESI","03)  ISOTRESI",null,null,null,"ISOTRESI Squadretta con bulloni di ancoraggio",null,null,null,null,null,null,null,"r","r",null,"-"]
["03)  ISOTRESI","03)  ISOTRESI",null,null,null,"Commento: "]
["03)  ISOTRESI","03)  ISOTRESI"]
["04)  ISOLA-35-45  -  BE","04)  ISOLA-35-45  -  BE",null,"Sistema appoggio ISOLA-35-45-BE",null,null,null,null,null,null,null,null,null,null,"Quantità dell'ordine"]
["04)  ISOLA-35-45  -  BE","04)  ISOLA-35-45  -  BE",null,null,null,null,null,null,null,null,null,null,"Magazino","Cantiere","Parti singole",null,"Completo"]
["04)  ISOLA-35-45  -  BE","04)  ISOLA-35-45  -  BE",null,null,null,"ISOLA-35-45-BE",null,null,null,"Distanza dalla parete:","……","mm",null,null,null,null,"-"]
["04)  ISOLA-35-45  -  BE","04)  ISOLA-35-45  -  BE",null,null,null,"  ○ Alloggiamento insonorizzato ISOLA 35dB ",null,null,null,null,null,null,"r","r","-"]
["04)  ISOLA-35-45  -  BE","04)  ISOLA-35-45  -  BE",null,null,null,"  ○ Spinotto trasversali 80/40 ",null,"r","330-X","r","330-X-EP",null,"r","r","-"]
["04)  ISOLA-35-45  -  BE","04)  ISOLA-35-45  -  BE",null,null,null,null,null,"r","330-S","r","500-X-EP "]
["04)  ISOLA-35-45  -  BE","04)  ISOLA-35-45  -  BE",null,null,null,"  ○ Elementi ELBOX-60 ",null,null,null,null,null,null,"r","r","-"]
["04)  ISOLA-35-45  -  BE","04)  ISOLA-35-45  -  BE",null,null,null,"  ○ Elementi ELBOX-160 ",null,null,null,null,null,null,"r","r","-"]
["04)  ISOLA-35-45  -  BE","04)  ISOLA-35-45  -  BE",null,null,null,"  ○ Staffa d`armatura ELBOX ",null,null,null,null,null,null,"r","r","-"]
["04)  ISOLA-35-45  -  BE","04)  ISOLA-35-45  -  BE",null,null,null,"Commento: "]
["04)  ISOLA-35-45  -  BE","04)  ISOLA-35-45  -  BE"]
["05)  ISOLA accessori  -  BE","05)  ISOLA accessori  -  BE",null,"Accessori per ISOLA-35-45-BE"]
["05)  ISOLA accessori   -  BE","05)  ISOLA accessori   -  BE",null,null,null,"Accessori ",null,null,null,null,null,null,null,"Magazino","Cantiere",null,"Quantità"]
["05)  ISOLA accessori  -  BE","05)  ISOLA accessori  -  BE",null,null,null," • Doppia staffa per ELBOX ",null,null,null,null,null,null,null,"r","r",null,"-"]
["05)  ISOLA accessori   -  BE","05)  ISOLA accessori   -  BE",null,null,null," • Staffa d`armatura per `alloggiamento insonorizzato ISOLA  ",null,null,null,null,null,null,null,"r","r",null,"-"]
["05)  ISOLA accessori  -  BE","05)  ISOLA accessori  -  BE",null,null,null," • Doppia staffa d`armatura per `alloggiamento insonorizzato ISOLA   ",null,null,null,null,null,null,null,"r","r",null,"-"]
["05)  ISOLA accessori   -  BE","05)  ISOLA accessori   -  BE",null,null,null,"Commento:"]
["05)  ISOLA accessori   -  BE","05)  ISOLA accessori   -  BE"]
["05)  ISOLA accessori  -  BE","05)  ISOLA accessori  -  BE"]
["06)  ISOLA-35-45  -  OB","06)  ISOLA-35-45  -  OB",null,"Sistema appoggio ISOLA-35-45-OB",null,null,null,null,null,null,null,null,null,null,"Quantità dell'ordine"]
["06)  ISOLA-35-45  -  OB","06)  ISOLA-35-45  -  OB",null,null,null,null,null,null,null,null,null,null,null,null," Parti singole",null,"Completo"]
["06)  ISOLA-35-45  -  OB","06)  ISOLA-35-45  -  OB",null,null,null,"ISOLA-35-45-OB",null,null,null,null,"Distanza dalla parete:","……","mm",null,null,null,"-"]
["06)  ISOLA-35-45  -  OB","06)  ISOLA-35-45  -  OB",null,null,null,"  ○ Alloggiamento insonorizzato 35dB ",null,null,null,null,null,null,null,null,"-"]
["06)  ISOLA-35-45  -  OB","06)  ISOLA-35-45  -  OB",null,null,null,"  ○ Spinotto trasversali 80/40 ",null,null,"r","330-X","r","330-X-EP",null,null,"-"]
["06)  ISOLA-35-45  -  OB","06)  ISOLA-35-45  -  OB",null,null,null,null,null,null,"r","330-S","r","500-X-EP "]
["06)  ISOLA-35-45  -  OB","06)  ISOLA-35-45  -  OB",null,null,null,"  ○ Spinotto per forza trasversali ",null,null,null,null,null,null,null,null,"-"]
["06)  ISOLA-35-45  -  OB","06)  ISOLA-35-45  -  OB",null,null,null,"Commento: "]
["06)  ISOLA-35-45  -  OB","06)  ISOLA-35-45  -  OB"]
["07)  ISOLA  accessori  -  OB","07)  ISOLA  accessori  -  OB",null,"Accessori per ISOLA-35-45-OB"]
["07)  ISOLA  accessori   -  OB","07)  ISOLA  accessori   -  OB",null,null,null,"Accessori ",null,null,null,null,null,null,null,null,null,null,"Quantità"]
["07)  ISOLA  accessori  -  OB","07)  ISOLA  accessori  -  OB",null,null,null," • Doppia staffa d`armatura per lo spinotto 80/40",null,null,null,null,null,null,null,null,null,null,"-"]
["07)  ISOLA  accessori  -  OB","07)  ISOLA  accessori  -  OB",null,null,null," • Staffa d`armatura per l`alloggiamento insonorizzato ISOLA  ",null,null,null,null,null,null,null,null,null,null,"-"]
["07)  ISOLA  accessori -  OB","07)  ISOLA  accessori -  OB",null,null,null," • Doppia staffa d`armatura per l`alloggiamento insonorizzato ISOLA   ",null,null,null,null,null,null,null,null,null,null,"-"]
["07)  ISOLA  accessori  -  OB","07)  ISOLA  accessori  -  OB",null,null,null,"Commento:"]
["07)  ISOLA  accessori  -  OB","07)  ISOLA  accessori  -  OB"]
["07)  ISOLA  accessori  -  OB","07)  ISOLA  accessori  -  OB"]
["08)  ISOMODUL-28-45  -  BE","08)  ISOMODUL-28-45  -  BE",null,"Sistema appoggio ISOMODUL-28-45-BE",null,null,null,null,null,null,null,null,null,null,"Quantità dell'ordine"]
["08)  ISOMODUL-28-45  -  BE","08)  ISOMODUL-28-45  -  BE",null,null,null,null,null,null,null,null,null,null,"Magazino","Cantiere","Parti singole",null,"Completo"]
["08)  ISOMODUL-28-45  -  BE","08)  ISOMODUL-28-45  -  BE",null,null,null,"ISOMODUL-28-45-BE",null,null,null,"Distanza dalla parete:","……","mm",null,null,null,null,"-"]
["08)  ISOMODUL-28-45  -  BE","08)  ISOMODUL-28-45  -  BE",null,null,null,"  ○ Capuccio insonorizzato ISOMODUL 28dB",null,null,null,null,null,null,"r","r","-"]
["08)  ISOMODUL-28-45  -  BE","08)  ISOMODUL-28-45  -  BE",null,null,null,"  ○  Spinotto trasversal 80/40 ",null,"r","330-X","r","330-X-EP",null,"r","r","-"]
["08)  ISOMODUL-28-45  -  BE","08)  ISOMODUL-28-45  -  BE",null,null,null,null,null,"r","330-S","r","500-X-EP"]
["08)  ISOMODUL-28-45  -  BE","08)  ISOMODUL-28-45  -  BE",null,null,null,"  ○ Elementi ELBOX-60 ",null,null,null,"(Dorn 330) ",null,null,"r","r","-"]
["08)  ISOMODUL-28-45  -  BE","08)  ISOMODUL-28-45  -  BE",null,null,null,"  ○ Elementi ELBOX-160 ",null,null,null,"(Dorn 500) ",null,null,"r","r","-"]
["08)  ISOMODUL-28-45  -  BE","08)  ISOMODUL-28-45  -  BE",null,null,null,"  ○ Staffa d`armatura per ELBOX ",null,null,null,null,null,null,"r","r","-"]
["08)  ISOMODUL-28-45  -  BE","08)  ISOMODUL-28-45  -  BE",null,null,null,"Commento: "]
["08)  ISOMODUL-28-45  -  BE","08)  ISOMODUL-28-45  -  BE"]
["09)  ISOMODUL  accessori -  BE ","09)  ISOMODUL  accessori -  BE ",null,"Accessori per ISOMODUL-28-45-BE"]
["09)  ISOMODUL  accessori  -  BE ","09)  ISOMODUL  accessori  -  BE ",null,null,null,"Accessori",null,null,null,null,null,null,null,"Magazino","Cantiere",null,"Quantità"]
["09)  ISOMODUL  accessori  -  BE ","09)  ISOMODUL  accessori  -  BE ",null,null,null," • Capuccio insonorizzato ISOMODUL ",null,null,null,null,null,null,null,"r","r",null,"-"]
["09)  ISOMODUL  accessori  -  BE ","09)  ISOMODUL  accessori  -  BE ",null,null,null," • Doppia staffa d`armatura per ELBOX ",null,null,null,null,null,null,null,"r","r",null,"-"]
["09)  ISOMODUL  accessori -  BE ","09)  ISOMODUL  accessori -  BE ",null,null,null," • Staffa staffa d`armatura ISOMODUL  ",null,null,null,null,null,null,null,"r","r",null,"-"]
["09)  ISOMODUL  accessori  -  BE ","09)  ISOMODUL  accessori  -  BE ",null,null,null," • Doppia staffa d`armatura ISOMODUL",null,null,null,null,null,null,null,"r","r",null,"-"]
["09)  ISOMODUL  accessori  -  BE ","09)  ISOMODUL  accessori  -  BE ",null,null,null,"Commento:"]
["09)  ISOMODUL  accessori -  BE ","09)  ISOMODUL  accessori -  BE "]
["09)  ISOMODUL  accessori  -  BE ","09)  ISOMODUL  accessori  -  BE "]
["10)  ISOMODUL-28-45  -  OB","10)  ISOMODUL-28-45  -  OB",null,"Sistema appoggio ISOMODUL-28-45-OB",null,null,null,null,null,null,null,null,null,null,"Bestellmenge"]
["10)  ISOMODUL-28-45  -  OB","10)  ISOMODUL-28-45  -  OB",null,null,null,"ISOMODUL-28-45-OB",null,null,null,null,"Distanza dalla parete:","……","mm",null," Parti singole",null,"Completo"]
["10)  ISOMODUL-28-45  -  OB","10)  ISOMODUL-28-45  -  OB",null,null,null," ○  Capuccio insonorizzato ISOMODUL 28dB",null,null,null,null,null,null,null,null,"-",null,"-"]
["10)  ISOMODUL-28-45  -  OB","10)  ISOMODUL-28-45  -  OB",null,null,null," ○ Alloggiamento per capuccio ISOMODUL  ",null,null,null,null,null,null,null,null,"-"]
["10)  ISOMODUL-28-45  -  OB","10)  ISOMODUL-28-45  -  OB",null,null,null," ○ Spinotto trasversali  80/40 ",null,null,"r","330-X","r","330-X-EP",null,null,"-"]
["10)  ISOMODUL-28-45  -  OB","10)  ISOMODUL-28-45  -  OB",null,null,null,null,null,null,"r","330-S","r","500-X-EP "]
["10)  ISOMODUL-28-45  -  OB","10)  ISOMODUL-28-45  -  OB",null,null,null," ○ Staffa staffa d`armatura per Querkraftdorn ",null,null,null,null,null,null,null,null,"-"]
["10)  ISOMODUL-28-45  -  OB","10)  ISOMODUL-28-45  -  OB",null,null,null,"Commento:"]
["10)  ISOMODUL-28-45  -  OB","10)  ISOMODUL-28-45  -  OB"]
["11)  ISOMODUL  accessori  -  OB","11)  ISOMODUL  accessori  -  OB",null,"Accessori per ISOMODUL-28-45-OB "]
["11)  ISOMODUL  accessori  -  OB","11)  ISOMODUL  accessori  -  OB",null,null,null,"Accessori ",null,null,null,null,null,null,null,null,null,null,"Quantità"]
["11)  ISOMODUL  accessori  -  OB","11)  ISOMODUL  accessori  -  OB",null,null,null," • Doppia staffa d`armatura per Spinotto trasversal 80/40",null,null,null,null,null,null,null,null,null,null,"-"]
["11)  ISOMODUL  accessori  -  OB","11)  ISOMODUL  accessori  -  OB",null,null,null," • Staffa staffa d`armatura per ISOMODUL  ",null,null,null,null,null,null,null,null,null,null,"-"]
["11)  ISOMODUL  accessori   -  OB","11)  ISOMODUL  accessori   -  OB",null,null,null," • Doppia staffa d`armatura per ISOMODUL",null,null,null,null,null,null,null,null,null,null,"-"]
["11)  ISOMODUL  accessori   -  OB","11)  ISOMODUL  accessori   -  OB",null,null,null,"Commento:"]
["11)  ISOMODUL  accessori   -  OB","11)  ISOMODUL  accessori   -  OB"]
["11)  ISOMODUL  accessori  -  OB","11)  ISOMODUL  accessori  -  OB"]
["12)  ISOSCALA-28-30","12)  ISOSCALA-28-30",null,"Sistema appoggio ISOSCALA-28-30",null,null,null,null,null,null,null,null,null,null,"Bestellmenge"]
["12)  ISOSCALA-28-30","12)  ISOSCALA-28-30",null,null,null,null,null,null,null,null,null,null,"Magazino","Cantiere","Parti singole",null,"Completo"]
["12)  ISOSCALA-28-30","12)  ISOSCALA-28-30",null,null,null,"ISOSCALA-28-30",null,null,null,"Distanza dalla parete","……","mm",null,null,null,null,"-"]
["12)  ISOSCALA-28-30","12)  ISOSCALA-28-30",null,null,null,"  ○ Capuccio insonorizzato ISOSCALA-28-30 ",null,null,null,null,null,null,"r","r","-"]
["12)  ISOSCALA-28-30","12)  ISOSCALA-28-30",null,null,null,"  ○ Spinotto trasversali  Ø25",null,null,null,null,null,null,"r","r","-"]
["12)  ISOSCALA-28-30","12)  ISOSCALA-28-30",null,null,null,"  ○ Manicotto d`armatura per Spinotto trasversa Ø25 ",null,null,null,null,null,null,"r","r","-"]
["12)  ISOSCALA-28-30","12)  ISOSCALA-28-30",null,null,null,"Commento:"]
["12)  ISOSCALA-28-30","12)  ISOSCALA-28-30"]
["13)  ISOSCALA-28-47 ","13)  ISOSCALA-28-47 ",null,"Sistema appoggio ISOSCALA-28-47 ",null,null,null,null,null,null,null,null,null,null,"Bestellmenge"]
["13)  ISOSCALA-28-47 ","13)  ISOSCALA-28-47 ",null,null,null,null,null,null,null,null,null,null,"Magazino","Cantiere","Parti singole",null,"Completo"]
["13)  ISOSCALA-28-47 ","13)  ISOSCALA-28-47 ",null,null,null,"ISOSCALA-28-47",null,null,null,"Distanza dalla parete","……","mm",null,null,null,null,"-"]
["13)  ISOSCALA-28-47 ","13)  ISOSCALA-28-47 ",null,null,null,"  ○ Capuccio insonorizzatoISOSCALA-28-47",null,null,null,null,null,null,"r","r","-"]
["13)  ISOSCALA-28-47 ","13)  ISOSCALA-28-47 ",null,null,null,"  ○ Spinotto trasversali  Ø36",null,null,null,null,null,null,"r","r","-"]
["13)  ISOSCALA-28-47 ","13)  ISOSCALA-28-47 ",null,null,null,"  ○ Manicotto d`armatura per Spinotto trasversa Ø36",null,null,null,null,null,null,"r","r","-"]
["13)  ISOSCALA-28-47 ","13)  ISOSCALA-28-47 ",null,null,null,"Commento: "]
["13)  ISOSCALA-28-47 ","13)  ISOSCALA-28-47 "]
["14)  ISOSCALA-28-60 ","14)  ISOSCALA-28-60 ",null,"Sistema appoggio ISOSCALA-28-60 ",null,null,null,null,null,null,null,null,null,null,"Bestellmenge"]
["14)  ISOSCALA-28-60 ","14)  ISOSCALA-28-60 ",null,null,null,null,null,null,null,null,null,null,"Magazino","Cantiere","Parti singole",null,"Quantità"]
["14)  ISOSCALA-28-60 ","14)  ISOSCALA-28-60 ",null,null,null,"ISOSCALA-28-60",null,null,null,"Distanza dalla parete","……","mm"]
["14)  ISOSCALA-28-60 ","14)  ISOSCALA-28-60 ",null,null,null,"  ○  Capuccio insonorizzato ISOSCALA-28-60",null,null,null,null,null,null,"r","r","-"]
["14)  ISOSCALA-28-60 ","14)  ISOSCALA-28-60 ",null,null,null,"  ○ Spinotto trasversali  Ø36",null,null,null,null,null,null,"r","r","-"]
["14)  ISOSCALA-28-60 ","14)  ISOSCALA-28-60 ",null,null,null,"  ○ Spinotto trasversali  Ø37",null,null,null,null,null,null,"r","r","-"]
["14)  ISOSCALA-28-60 ","14)  ISOSCALA-28-60 ",null,null,null,"Commento:"]
["14)  ISOSCALA-28-60 ","14)  ISOSCALA-28-60 "]
["15)  ISOTRON-28-50 ","15)  ISOTRON-28-50 ",null," Sistema appoggio ISOTRON-28-50 ",null,null,null,null,null,null,null,null,null,null,"Bestellmenge"]
["15)  ISOTRON-28-50 ","15)  ISOTRON-28-50 ",null,null,null,null,null,null,null,null,null,null,"Magazino","Cantiere","Parti singole",null,"Quantità"]
["15)  ISOTRON-28-50 ","15)  ISOTRON-28-50 ",null,null,null,"SOTRON-28-50",null,null,null,null,null,null,null,null,null,null,"-"]
["15)  ISOTRON-28-50 ","15)  ISOTRON-28-50 ",null,null,null,"  ○ Capuccio insonorizzato  ISOTRON 28dB",null,null,null,null,null,null,"r","r","-"]
["15)  ISOTRON-28-50 ","15)  ISOTRON-28-50 ",null,null,null,"  ○ Elemento d`armatura",null,null,null,null,null,null,"r","r","-"]
["15)  ISOTRON-28-50 ","15)  ISOTRON-28-50 ",null,null,null,"Commento:"]
["15)  ISOTRON-28-50 ","15)  ISOTRON-28-50 "]
["16)  ISOPE con velcro","16)  ISOPE con velcro",null," ISOPE con velcro"]
["16)  ISOPE con velcro","16)  ISOPE con velcro",null,null,null,"Schiuma morbida ISOPE con velcro, à1m¹ ",null,null,null,null,null,null,null,"Magazino","Cantiere",null,"Quantità"]
["16)  ISOPE con velcro","16)  ISOPE con velcro",null,null,null,"ISOPE ","spessore","-",null,null,"larghezza","-",null,"r","r",null,"-"]
["16)  ISOPE con velcro","16)  ISOPE con velcro",null,null,null,"Opzionale: ","per spessore 10mm + 20mm ",null,null,"r","Antracite  ",null,null,null,null,"(barrare se si desidera)"]
["16)  ISOPE con velcro","16)  ISOPE con velcro",null,null,null,"Commento:"]
["16)  ISOPE con velcro","16)  ISOPE con velcro"]
["17)  ISOPE senza velcro","17)  ISOPE senza velcro",null," ISOPE senza velcro"]
["17)  ISOPE senza velcro","17)  ISOPE senza velcro",null,null,null,"Schiuma morbida ISOPE senza velcro, à1m¹ ",null,null,null,null,null,null,null,"Magazino","Cantiere",null,"Quantità"]
["17)  ISOPE senza velcro","17)  ISOPE senza velcro",null,null,null,"ISOPE ","spessore","-",null,null,"larghezza","-",null,"r","r",null,"-"]
["17)  ISOPE senza velcro","17)  ISOPE senza velcro",null,null,null,"Opzionale: ","per spessore 10mm + 20mm ",null,null,"r","Antracite ",null,null,null,null,"(barrare se si desidera)"]
["17)  ISOPE senza velcro","17)  ISOPE senza velcro",null,null,null,"Commento:"]
["17)  ISOPE senza velcro","17)  ISOPE senza velcro"]
["18)  ISOSTRANG Profilo circolare","18)  ISOSTRANG Profilo circolare",null,"ISOSTRANG profilo circolare"]
["18)  ISOSTRANG Profilo circolare","18)  ISOSTRANG Profilo circolare",null,null,null,null,null,null,null,null,null,null,null,"Magazino","Cantiere",null,"Quantità"]
["18)  ISOSTRANG Profilo circolare","18)  ISOSTRANG Profilo circolare",null,null,null,"ISOSTRANG profilo circolare, Lunghezza rotolo 100 m ",null,null,null,null,null,"Ø",13,"r","r",null,"-"]
["18)  ISOSTRANG Profilo circolare","18)  ISOSTRANG Profilo circolare",null,null,null,"ISOSTRANG profilo circolare, Lunghezza rotolo 50 m ",null,null,null,null,null,"Ø",20,"r","r",null,"-"]
["18)  ISOSTRANG Profilo circolare","18)  ISOSTRANG Profilo circolare",null,null,null,"ISOSTRANG profilo circolare, Lunghezza rotolo 25 m ",null,null,null,null,null,"Ø",30,"r","r",null,"-"]
["18)  ISOSTRANG Profilo circolare","18)  ISOSTRANG Profilo circolare",null,null,null,"Commento:"]
["18)  ISOSTRANG Profilo circolare","18)  ISOSTRANG Profilo circolare"]
["19)  ISOSHIFT ","19)  ISOSHIFT ",null," ISOSHIFT"]
["19)  ISOSHIFT  ","19)  ISOSHIFT  ",null,null,null,"ISOSHIFT, Lunghezza 1000mm, spessore 80mm ",null,null,null,null,null,null,null,"Magazino","Cantiere",null,"Quantità"]
["19)  ISOSHIFT ","19)  ISOSHIFT ",null,null,null,"ISOSHIFT  ",null,null,null,"spessore",2,null,null,"r","r",null,"-"]
["19)  ISOSHIFT","19)  ISOSHIFT",null,null,null,"ISOSHIFT  ",null,null,null,"spessore",5,null,null,"r","r",null,"-"]
["19)  ISOSHIFT","19)  ISOSHIFT",null,null,null,"ISOSHIFT  ",null,null,null,"spessore",10,null,null,"r","r",null,"-"]
["19)  ISOSHIFT","19)  ISOSHIFT",null,null,null,"Commento:"]
["19)  ISOSHIFT","19)  ISOSHIFT"]
["20)  ELKRAG senza protezione antincendio angolare","20)  ELKRAG senza protezione antincendio angolare",null,"ELKRAG senza protezione antincendio per ISOLA + ISOMODUL  "]
["20)  ELKRAG senza protezione antincendio angolare","20)  ELKRAG senza protezione antincendio angolare",null,null,null,"ELKRAG senza protezione antincendio per ISOLA + ISOMODUL  ",null,null,null,null,null,null,null,"Magazino","Cantiere",null,"Quantità"]
["20)  ELKRAG senza protezione antincendio angolare","20)  ELKRAG senza protezione antincendio angolare",null,null,null,"ELKRAG-E ",null,null,null,"spessore","…….",null,null,"r","r",null,"-"]
["20)  ELKRAG senza protezione antincendio angolare","20)  ELKRAG senza protezione antincendio angolare",null,null,null,"Opzionale: ","per spessore 10mm + 20mm ",null,null,"r","Antracite",null,null,null,null,"(barrare se si desidera)"]
["20)  ELKRAG senza protezione antincendio angolare","20)  ELKRAG senza protezione antincendio angolare",null,null,null,"Commento:"]
["20)  ELKRAG senza protezione antincendio angolare","20)  ELKRAG senza protezione antincendio angolare"]
["21)  ELKRAG con protezione antincendio angolare","21)  ELKRAG con protezione antincendio angolare",null,"ELKRAG con protezione antincendi per ISOLA + ISOMODUL i "]
["21)  ELKRAG con protezione antincendio angolare","21)  ELKRAG con protezione antincendio angolare",null,null,null,"ELKRAG con protezione antincendi per ISOLA + ISOMODUL ",null,null,null,null,null,null,null,"Magazino","Cantiere",null,"Quantità"]
["21)  ELKRAG con protezione antincendio angolare","21)  ELKRAG con protezione antincendio angolare",null,null,null,"ELKRAG-E-R",null,null,null,"spessore","…….",null,null,"r","r",null,"-"]
["21)  ELKRAG con protezione antincendio angolare","21)  ELKRAG con protezione antincendio angolare",null,null,null,"Opzionale: ","per spessore 10mm + 20mm ",null,null,"r","Antracite ",null,null,null,null,"(barrare se si desidera)"]
["21)  ELKRAG con protezione antincendio angolare","21)  ELKRAG con protezione antincendio angolare",null,null,null,"Commento:"]
["21)  ELKRAG con protezione antincendio angolare","21)  ELKRAG con protezione antincendio angolare"]
["22)  ELKRAG senza protezione antincendio buco Ø36","22)  ELKRAG senza protezione antincendio buco Ø36",null," ELKRAG senza protezione antincendio per ISOSCALA-28-30 "]
["22)  ELKRAG senza protezione antincendio buco Ø36","22)  ELKRAG senza protezione antincendio buco Ø36",null,null,null,"ELKRAG senza protezione antincendio per ISOSCALA-28-30 ",null,null,null,null,null,null,null,"Magazino","Cantiere",null,"Quantità"]
["22)  ELKRAG senza protezione antincendio buco Ø36","22)  ELKRAG senza protezione antincendio buco Ø36",null,null,null,"ELKRAG-R-36",null,null,null,"spessore","…….",null,null,"r","r",null,"-"]
["22)  ELKRAG senza protezione antincendio buco Ø36","22)  ELKRAG senza protezione antincendio buco Ø36",null,null,null,"Opzionale: ","per spessore 10mm + 20mm ",null,null,"r","Antracite  ",null,null,null,null,"(barrare se si desidera)"]
["22)  ELKRAG senza protezione antincendio buco Ø36","22)  ELKRAG senza protezione antincendio buco Ø36",null,null,null,"Commento: "]
["22)  ELKRAG senza protezione antincendio buco Ø36","22)  ELKRAG senza protezione antincendio buco Ø36"]
["23)  ELKRAG con protezione antincendio buco Ø36","23)  ELKRAG con protezione antincendio buco Ø36",null," ELKRAG con protezione antincend per ISOSCALA-28-47 /-60 "]
["23)  ELKRAG con protezione antincendio buco Ø36","23)  ELKRAG con protezione antincendio buco Ø36",null,null,null,"ELKRAG con protezione antincend per ISOSCALA-28-47 /-60 ",null,null,null,null,null,null,null,"Magazino","Cantiere",null,"Quantità"]
["23)  ELKRAG con protezione antincendio buco Ø36","23)  ELKRAG con protezione antincendio buco Ø36",null,null,null,"ELKRAG-R-36",null,null,null,"spessore","…….",null,null,"r","r",null,"-"]
["23)  ELKRAG con protezione antincendio buco Ø36","23)  ELKRAG con protezione antincendio buco Ø36",null,null,null,"Opzionale: ","per spessore 10mm + 20mm ",null,null,"r","Antracite ",null,null,null,null,"(barrare se si desidera)"]
["23)  ELKRAG con protezione antincendio buco Ø36","23)  ELKRAG con protezione antincendio buco Ø36",null,null,null,"Commento: "]
["23)  ELKRAG con protezione antincendio buco Ø36","23)  ELKRAG con protezione antincendio buco Ø36"]
["24)  ELKRAG senza protezione antincendio buco Ø25","24)  ELKRAG senza protezione antincendio buco Ø25",null,"ELKRAG senza protezione antincendio per ISOSCALA-28-30  "]
["24)  ELKRAG senza protezione antincendio buco Ø25","24)  ELKRAG senza protezione antincendio buco Ø25",null,null,null,"ELKRAG senza protezione antincendio per ISOSCALA-28-30 ",null,null,null,null,null,null,null,"Magazino","Cantiere",null,"Quantità"]
["24)  ELKRAG senza protezione antincendio buco Ø25","24)  ELKRAG senza protezione antincendio buco Ø25",null,null,null,"ELKRAG-R-25",null,null,null,"spessore","…….",null,null,"r","r",null,"-"]
["24)  ELKRAG senza protezione antincendio buco Ø25","24)  ELKRAG senza protezione antincendio buco Ø25",null,null,null,"Opzionale: ","per spessore 10mm + 20mm ",null,null,"r","Antracite ",null,null,null,null,"(barrare se si desidera)"]
["24)  ELKRAG senza protezione antincendio buco Ø25","24)  ELKRAG senza protezione antincendio buco Ø25",null,null,null,"Commento: "]
["24)  ELKRAG senza protezione antincendio buco Ø25","24)  ELKRAG senza protezione antincendio buco Ø25"]
["25)  ELKRAG con protezione antincendio buco Ø25","25)  ELKRAG con protezione antincendio buco Ø25",null,"ELKRAG con protezione per ISOSCALA-28-30 "]
["25)  ELKRAG con protezione antincendio buco Ø25","25)  ELKRAG con protezione antincendio buco Ø25",null,null,null,"ELKRAG con protezione per ISOSCALA-28-30 ",null,null,null,null,null,null,null,"Magazino","Cantiere",null,"Quantità"]
["25)  ELKRAG con protezione antincendio buco Ø25","25)  ELKRAG con protezione antincendio buco Ø25",null,null,null,"ELKRAG-R-25",null,null,null,"spessore","…….",null,null,"r","r",null,"-"]
["25)  ELKRAG con protezione antincendio buco Ø25","25)  ELKRAG con protezione antincendio buco Ø25",null,null,null,"Opzionalel: ","per spessore 10mm + 20mm ",null,null,"r","Antracite ",null,null,null,null,"(barrare se si desidera)"]
["25)  ELKRAG con protezione antincendio buco Ø25","25)  ELKRAG con protezione antincendio buco Ø25",null,null,null,"Commento: "]
["25)  ELKRAG con protezione antincendio buco Ø25","25)  ELKRAG con protezione antincendio buco Ø25"]
["26)  ISOTREPP 36 dB",null,null,"ISOTREPP"]
["26)  ISOTREPP 36 dB",null,null,null,"Forma a F",null,"Forma a L",null,null,null,"Forma a Z",null,null,null,"Forma a U"]
["26)  ISOTREPP 36 dB"]
["26)  ISOTREPP 36 dB"]
["26)  ISOTREPP 36 dB"]
["26)  ISOTREPP 36 dB"]
["26)  ISOTREPP 36 dB"]
["26)  ISOTREPP 36 dB"]
["26)  ISOTREPP 36 dB",null,"Descrizione lunghezza"]
["26)  ISOTREPP 36 dB"]
["26)  ISOTREPP 36 dB",null,null,"#",{"$f":"\"Descrizione (testo libero)                                       (max. \"&Parameter!$C$2&\" caratteri)\"","v":"Descrizione (testo libero)                                       (max. 25 caratteri)"}," \nIngresso\nUscita\nPianero. \nParete","Tipo     "," Forma (F/L/Z/U)","Suono di impatto \nΔL*W  (36 dB)","Dimensioni mm",null,null,null,"Quantità \n(pezzi)","Se A > 600mm                         4-Punti                          ",null,"Inviare i piani ",null,"Omissione di \npunti di sosta"]
["26)  ISOTREPP 36 dB"]
["26)  ISOTREPP 36 dB"]
["26)  ISOTREPP 36 dB"]
["26)  ISOTREPP 36 dB",null,null,null,null,null,null,null,null,"A","B","C","Lunghezza"]
["26)  ISOTREPP 36 dB"]
["26)  ISOTREPP 36 dB",null,null,null,null,null,null,null,null,null,"Mass b","Mass c","Mass l"]
["26)  ISOTREPP 36 dB",{"$f":"IF(LEN(D280)=0,\"\", IF(LEN(E280)>Parameter!$C$2,\"Descrizione troppo lunga, si prega accorciare\",IF(NOT(COUNTIF(Parameter!$C$3:$G$3, F280)),\"Inserire la descrizione (facoltativa) e selezionare ingresso/uscita/pianerottolo/parete/vuoto\",IF(ISBLANK(G280),\"Ricerca Cuscinetto Scala\", IF(NOT(COUNTIF(Parameter!$C$4:$L$4, G280)),\"Si prega inserire un tipo Cuscinetto scala corretto\",IF(ISBLANK(H280),\"Selezionare la forma\", IF(NOT(COUNTIF(Parameter!$C$5:$F$5, H280)),\"Si prega inserire una forma corretta\",IF(ISBLANK(I280),\"Selezionare la riduzione del suono d'impatto\",IF(NOT(COUNTIF(Parameter!$E$6, I280)),\"Si prega selezionare la riduzione del suono d'impatto\", IF(AND(H280=\"F\", ISBLANK(J280)),\"Inserire la dimensione A in mm\", IF(AND(H280=\"L\", OR(ISBLANK(J280), ISBLANK(K280))),\"Inserire le dimensioni A e B in mm\", IF(AND(OR(H280=\"Z\", H280=\"U\"), OR(ISBLANK(J280), ISBLANK(K280), ISBLANK(L280))),\"Inserire le dimensioni A, B e C in mm\", IF(AND(H280=\"F\", OR(NOT(ISBLANK(K280)),NOT(ISBLANK(L280)))),\"Inserire solo A per la forma F, si prega cancellare le dimensioni B e C\", IF(AND(H280=\"L\", NOT(ISBLANK(L280))),\"Inserire solo A e B per la forma a L, si prega cancellare la dimensione C\", IF(OR(AND(OR(Parameter!$D$7>J280, J280>Parameter!$F$7), OR(H280=\"F\", H280=\"U\")), AND(OR(Parameter!$H$7>J280, J280>Parameter!$J$7), OR(H280=\"L\", H280=\"Z\"))),\"Si prega correggere la dimensione A\", IF(AND(OR(Parameter!$D$8>K280, K280>Parameter!$F$8), OR(H280=\"L\", H280=\"Z\", H280=\"U\")),\"Si prega correggere la dimensione B\", IF(AND(OR(Parameter!$D$9>L280, L280>Parameter!$F$9), OR(H280=\"Z\", H280=\"U\")),\"Si prega correggere la dimensione C\", IF(ISBLANK(M280),\"Inserire la lunghezza in mm\", IF(OR(Parameter!$D$10>M280, M280>Parameter!$F$10),\"Si prega correggere la lunghezza\", IF(ISBLANK(N280),\"Inserire la quantità\", IF(NOT(ISNUMBER(N280)),\"Si prega correggere la quantità\", \"OK\")))))))))))))))))))))","v":"Inserire la descrizione (facoltativa) e selezionare ingresso/uscita/pianerottolo/parete/vuoto"},{"$f":"LEN(E280)","v":0},1,null,null,null,null,null,null,null,null,null,null,{"$f":"IF(NOT(D280=\"\"), IF(J280 > 600, \"Si\", \"Non\"),\"\")","v":"Non"},null,{"$f":"IF(NOT(D280=\"\"), IF(O280=\"Si\", \"X\", \"\"), \"\")","v":""},null,{"$f":"IF(NOT(D280=\"\"), IF(AND(K280<53,NOT(ISBLANK(K280)), OR(H280=\"L\", H280=\"Z\")), \"X\", \"\"), \"\")","v":""}]
["26)  ISOTREPP 36 dB",{"$f":"IF(LEN(D281)=0,IF(NOT(B280=\"OK\"),IF(SUMPRODUCT(--(D280:P280<>\"\"))=0,IF(AND(NOT(SUMPRODUCT(--(E281:P281<>\"\"))=0),D280=\"\"),\"Si prega di non utilizzare righe vuote\",\"\"),IF(NOT(SUMPRODUCT(--(E281:P281<>\"\"))=0),\"Si prega correggere prima la riga precedente\",\"\")),\"\"),IF(LEN(E281)>Parameter!$C$2,\"Descrizione troppo lunga, si prega accorciare\",IF(NOT(COUNTIF(Parameter!$C$3:$G$3,F281)),\"Inserire la descrizione (facoltativa) e selezionare ingresso/uscita/pianerottolo/parete/vuoto\",IF(ISBLANK(G281),\"Ricerca Cuscinetto Scala\",IF(NOT(COUNTIF(Parameter!$C$4:$L$4,G281)),\"Si prega inserire un tipo Cuscinetto scala corretto \",IF(ISBLANK(H281),\"Selezionare la forma\",IF(NOT(COUNTIF(Parameter!$C$5:$F$5,H281)),\"Si prega inserire una forma corretta\",IF(ISBLANK(I281),\"Selezionare la riduzione del suono d'impatto\",IF(NOT(COUNTIF(Parameter!$E$6,I281)),\"Si prega selezionare la riduzione del suono d'impatto\",IF(AND(H281=\"F\",ISBLANK(J281)),\"Inserire la dimensione A in mm\",IF(AND(H281=\"L\",OR(ISBLANK(J281),ISBLANK(K281))),\"Inserire le dimensioni A e B in mm\",IF(AND(OR(H281=\"Z\",H281=\"U\"),OR(ISBLANK(J281),ISBLANK(K281),ISBLANK(L281))),\"Inserire le dimensioni A, B e C in mm\",IF(AND(H281=\"F\",OR(NOT(ISBLANK(K281)),NOT(ISBLANK(L281)))),\"Inserire solo A per la forma F, si prega cancellare le dimensioni B e C\",IF(AND(H281=\"L\",NOT(ISBLANK(L281))),\"Inserire solo A e B per la forma a L, si prega cancellare la dimensione C\",IF(OR(AND(OR(Parameter!$D$7>J281,J281>Parameter!$F$7),OR(H281=\"F\",H281=\"U\")),AND(OR(Parameter!$H$7>J281,J281>Parameter!$J$7),OR(H281=\"L\",H281=\"Z\"))),\"Si prega correggere la dimensione A\",IF(AND(OR(Parameter!$D$8>K281,K281>Parameter!$F$8),OR(H281=\"L\",H281=\"Z\",H281=\"U\")),\"Si prega correggere la dimensione B\",IF(AND(OR(Parameter!$D$9>L281,L281>Parameter!$F$9),OR(H281=\"Z\",H281=\"U\")),\"Si prega correggere la dimensione C\",IF(ISBLANK(M281),\"Inserire la lunghezza in mm\",IF(OR(Parameter!$D$10>M281,M281>Parameter!$F$10),\"Si prega correggere la lunghezza\",IF(ISBLANK(N281),\"Inserire la quantità\",IF(NOT(ISNUMBER(N281)),\"Si prega correggere la quantità\",\"OK\")))))))))))))))))))))","v":""},{"$f":"LEN(E281)","v":0},{"$f":"IF(OR(ISBLANK(N280), NOT(B280=\"OK\")),\"\",D280+1)","v":""},null,null,null,null,null,null,null,null,null,null,{"$f":"IF(NOT(D281=\"\"), IF(J281 > 600, \"Si\", \"Non\"),\"\")","v":""},null,{"$f":"IF(NOT(D281=\"\"), IF(O281=\"Si\", \"X\", \"\"), \"\")","v":""},null,{"$f":"IF(NOT(D281=\"\"), IF(AND(K281<53,NOT(ISBLANK(K281)), OR(H281=\"L\", H281=\"Z\")), \"X\", \"\"), \"\")","v":""}]
["26)  ISOTREPP 36 dB",{"$f":"IF(LEN(D282)=0,IF(NOT(B281=\"OK\"),IF(SUMPRODUCT(--(D281:P281<>\"\"))=0,IF(AND(NOT(SUMPRODUCT(--(E282:P282<>\"\"))=0),D281=\"\"),\"Si prega di non utilizzare righe vuote\",\"\"),IF(NOT(SUMPRODUCT(--(E282:P282<>\"\"))=0),\"Si prega correggere prima la riga precedente\",\"\")),\"\"),IF(LEN(E282)>Parameter!$C$2,\"Descrizione troppo lunga, si prega accorciare\",IF(NOT(COUNTIF(Parameter!$C$3:$G$3,F282)),\"Inserire la descrizione (facoltativa) e selezionare ingresso/uscita/pianerottolo/parete/vuoto\",IF(ISBLANK(G282),\"Ricerca Cuscinetto Scala\",IF(NOT(COUNTIF(Parameter!$C$4:$L$4,G282)),\"Si prega inserire un tipo Cuscinetto scala corretto \",IF(ISBLANK(H282),\"Selezionare la forma\",IF(NOT(COUNTIF(Parameter!$C$5:$F$5,H282)),\"Si prega inserire una forma corretta\",IF(ISBLANK(I282),\"Selezionare la riduzione del suono d'impatto\",IF(NOT(COUNTIF(Parameter!$E$6,I282)),\"Si prega selezionare la riduzione del suono d'impatto\",IF(AND(H282=\"F\",ISBLANK(J282)),\"Inserire la dimensione A in mm\",IF(AND(H282=\"L\",OR(ISBLANK(J282),ISBLANK(K282))),\"Inserire le dimensioni A e B in mm\",IF(AND(OR(H282=\"Z\",H282=\"U\"),OR(ISBLANK(J282),ISBLANK(K282),ISBLANK(L282))),\"Inserire le dimensioni A, B e C in mm\",IF(AND(H282=\"F\",OR(NOT(ISBLANK(K282)),NOT(ISBLANK(L282)))),\"Inserire solo A per la forma F, si prega cancellare le dimensioni B e C\",IF(AND(H282=\"L\",NOT(ISBLANK(L282))),\"Inserire solo A e B per la forma a L, si prega cancellare la dimensione C\",IF(OR(AND(OR(Parameter!$D$7>J282,J282>Parameter!$F$7),OR(H282=\"F\",H282=\"U\")),AND(OR(Parameter!$H$7>J282,J282>Parameter!$J$7),OR(H282=\"L\",H282=\"Z\"))),\"Si prega correggere la dimensione A\",IF(AND(OR(Parameter!$D$8>K282,K282>Parameter!$F$8),OR(H282=\"L\",H282=\"Z\",H282=\"U\")),\"Si prega correggere la dimensione B\",IF(AND(OR(Parameter!$D$9>L282,L282>Parameter!$F$9),OR(H282=\"Z\",H282=\"U\")),\"Si prega correggere la dimensione C\",IF(ISBLANK(M282),\"Inserire la lunghezza in mm\",IF(OR(Parameter!$D$10>M282,M282>Parameter!$F$10),\"Si prega correggere la lunghezza\",IF(ISBLANK(N282),\"Inserire la quantità\",IF(NOT(ISNUMBER(N282)),\"Si prega correggere la quantità\",\"OK\")))))))))))))))))))))","v":""},{"$f":"LEN(E282)","v":0},{"$f":"IF(OR(ISBLANK(N281), NOT(B281=\"OK\")),\"\",D281+1)","v":""},null,null,null,null,null,null,null,null,null,null,"",null,"",null,""]
["26)  ISOTREPP 36 dB",{"$f":"IF(LEN(D283)=0,IF(NOT(B282=\"OK\"),IF(SUMPRODUCT(--(D282:P282<>\"\"))=0,IF(AND(NOT(SUMPRODUCT(--(E283:P283<>\"\"))=0),D282=\"\"),\"Si prega di non utilizzare righe vuote\",\"\"),IF(NOT(SUMPRODUCT(--(E283:P283<>\"\"))=0),\"Si prega correggere prima la riga precedente\",\"\")),\"\"),IF(LEN(E283)>Parameter!$C$2,\"Descrizione troppo lunga, si prega accorciare\",IF(NOT(COUNTIF(Parameter!$C$3:$G$3,F283)),\"Inserire la descrizione (facoltativa) e selezionare ingresso/uscita/pianerottolo/parete/vuoto\",IF(ISBLANK(G283),\"Ricerca Cuscinetto Scala\",IF(NOT(COUNTIF(Parameter!$C$4:$L$4,G283)),\"Si prega inserire un tipo Cuscinetto scala corretto \",IF(ISBLANK(H283),\"Selezionare la forma\",IF(NOT(COUNTIF(Parameter!$C$5:$F$5,H283)),\"Si prega inserire una forma corretta\",IF(ISBLANK(I283),\"Selezionare la riduzione del suono d'impatto\",IF(NOT(COUNTIF(Parameter!$E$6,I283)),\"Si prega selezionare la riduzione del suono d'impatto\",IF(AND(H283=\"F\",ISBLANK(J283)),\"Inserire la dimensione A in mm\",IF(AND(H283=\"L\",OR(ISBLANK(J283),ISBLANK(K283))),\"Inserire le dimensioni A e B in mm\",IF(AND(OR(H283=\"Z\",H283=\"U\"),OR(ISBLANK(J283),ISBLANK(K283),ISBLANK(L283))),\"Inserire le dimensioni A, B e C in mm\",IF(AND(H283=\"F\",OR(NOT(ISBLANK(K283)),NOT(ISBLANK(L283)))),\"Inserire solo A per la forma F, si prega cancellare le dimensioni B e C\",IF(AND(H283=\"L\",NOT(ISBLANK(L283))),\"Inserire solo A e B per la forma a L, si prega cancellare la dimensione C\",IF(OR(AND(OR(Parameter!$D$7>J283,J283>Parameter!$F$7),OR(H283=\"F\",H283=\"U\")),AND(OR(Parameter!$H$7>J283,J283>Parameter!$J$7),OR(H283=\"L\",H283=\"Z\"))),\"Si prega correggere la dimensione A\",IF(AND(OR(Parameter!$D$8>K283,K283>Parameter!$F$8),OR(H283=\"L\",H283=\"Z\",H283=\"U\")),\"Si prega correggere la dimensione B\",IF(AND(OR(Parameter!$D$9>L283,L283>Parameter!$F$9),OR(H283=\"Z\",H283=\"U\")),\"Si prega correggere la dimensione C\",IF(ISBLANK(M283),\"Inserire la lunghezza in mm\",IF(OR(Parameter!$D$10>M283,M283>Parameter!$F$10),\"Si prega correggere la lunghezza\",IF(ISBLANK(N283),\"Inserire la quantità\",IF(NOT(ISNUMBER(N283)),\"Si prega correggere la quantità\",\"OK\")))))))))))))))))))))","v":""},{"$f":"LEN(E283)","v":0},"",null,null,null,null,null,null,null,null,null,null,"",null,"",null,""]
["26)  ISOTREPP 36 dB",{"$f":"IF(LEN(D284)=0,IF(NOT(B283=\"OK\"),IF(SUMPRODUCT(--(D283:P283<>\"\"))=0,IF(AND(NOT(SUMPRODUCT(--(E284:P284<>\"\"))=0),D283=\"\"),\"Si prega di non utilizzare righe vuote\",\"\"),IF(NOT(SUMPRODUCT(--(E284:P284<>\"\"))=0),\"Si prega correggere prima la riga precedente\",\"\")),\"\"),IF(LEN(E284)>Parameter!$C$2,\"Descrizione troppo lunga, si prega accorciare\",IF(NOT(COUNTIF(Parameter!$C$3:$G$3,F284)),\"Inserire la descrizione (facoltativa) e selezionare ingresso/uscita/pianerottolo/parete/vuoto\",IF(ISBLANK(G284),\"Ricerca Cuscinetto Scala\",IF(NOT(COUNTIF(Parameter!$C$4:$L$4,G284)),\"Si prega inserire un tipo Cuscinetto scala corretto \",IF(ISBLANK(H284),\"Selezionare la forma\",IF(NOT(COUNTIF(Parameter!$C$5:$F$5,H284)),\"Si prega inserire una forma corretta\",IF(ISBLANK(I284),\"Selezionare la riduzione del suono d'impatto\",IF(NOT(COUNTIF(Parameter!$E$6,I284)),\"Si prega selezionare la riduzione del suono d'impatto\",IF(AND(H284=\"F\",ISBLANK(J284)),\"Inserire la dimensione A in mm\",IF(AND(H284=\"L\",OR(ISBLANK(J284),ISBLANK(K284))),\"Inserire le dimensioni A e B in mm\",IF(AND(OR(H284=\"Z\",H284=\"U\"),OR(ISBLANK(J284),ISBLANK(K284),ISBLANK(L284))),\"Inserire le dimensioni A, B e C in mm\",IF(AND(H284=\"F\",OR(NOT(ISBLANK(K284)),NOT(ISBLANK(L284)))),\"Inserire solo A per la forma F, si prega cancellare le dimensioni B e C\",IF(AND(H284=\"L\",NOT(ISBLANK(L284))),\"Inserire solo A e B per la forma a L, si prega cancellare la dimensione C\",IF(OR(AND(OR(Parameter!$D$7>J284,J284>Parameter!$F$7),OR(H284=\"F\",H284=\"U\")),AND(OR(Parameter!$H$7>J284,J284>Parameter!$J$7),OR(H284=\"L\",H284=\"Z\"))),\"Si prega correggere la dimensione A\",IF(AND(OR(Parameter!$D$8>K284,K284>Parameter!$F$8),OR(H284=\"L\",H284=\"Z\",H284=\"U\")),\"Si prega correggere la dimensione B\",IF(AND(OR(Parameter!$D$9>L284,L284>Parameter!$F$9),OR(H284=\"Z\",H284=\"U\")),\"Si prega correggere la dimensione C\",IF(ISBLANK(M284),\"Inserire la lunghezza in mm\",IF(OR(Parameter!$D$10>M284,M284>Parameter!$F$10),\"Si prega correggere la lunghezza\",IF(ISBLANK(N284),\"Inserire la quantità\",IF(NOT(ISNUMBER(N284)),\"Si prega correggere la quantità\",\"OK\")))))))))))))))))))))","v":""},0,"",null,null,null,null,null,null,null,null,null,null,"",null,"",null,""]
["26)  ISOTREPP 36 dB",{"$f":"IF(LEN(D285)=0,IF(NOT(B284=\"OK\"),IF(SUMPRODUCT(--(D284:P284<>\"\"))=0,IF(AND(NOT(SUMPRODUCT(--(E285:P285<>\"\"))=0),D284=\"\"),\"Si prega di non utilizzare righe vuote\",\"\"),IF(NOT(SUMPRODUCT(--(E285:P285<>\"\"))=0),\"Si prega correggere prima la riga precedente\",\"\")),\"\"),IF(LEN(E285)>Parameter!$C$2,\"Descrizione troppo lunga, si prega accorciare\",IF(NOT(COUNTIF(Parameter!$C$3:$G$3,F285)),\"Inserire la descrizione (facoltativa) e selezionare ingresso/uscita/pianerottolo/parete/vuoto\",IF(ISBLANK(G285),\"Ricerca Cuscinetto Scala\",IF(NOT(COUNTIF(Parameter!$C$4:$L$4,G285)),\"Si prega inserire un tipo Cuscinetto scala corretto \",IF(ISBLANK(H285),\"Selezionare la forma\",IF(NOT(COUNTIF(Parameter!$C$5:$F$5,H285)),\"Si prega inserire una forma corretta\",IF(ISBLANK(I285),\"Selezionare la riduzione del suono d'impatto\",IF(NOT(COUNTIF(Parameter!$E$6,I285)),\"Si prega selezionare la riduzione del suono d'impatto\",IF(AND(H285=\"F\",ISBLANK(J285)),\"Inserire la dimensione A in mm\",IF(AND(H285=\"L\",OR(ISBLANK(J285),ISBLANK(K285))),\"Inserire le dimensioni A e B in mm\",IF(AND(OR(H285=\"Z\",H285=\"U\"),OR(ISBLANK(J285),ISBLANK(K285),ISBLANK(L285))),\"Inserire le dimensioni A, B e C in mm\",IF(AND(H285=\"F\",OR(NOT(ISBLANK(K285)),NOT(ISBLANK(L285)))),\"Inserire solo A per la forma F, si prega cancellare le dimensioni B e C\",IF(AND(H285=\"L\",NOT(ISBLANK(L285))),\"Inserire solo A e B per la forma a L, si prega cancellare la dimensione C\",IF(OR(AND(OR(Parameter!$D$7>J285,J285>Parameter!$F$7),OR(H285=\"F\",H285=\"U\")),AND(OR(Parameter!$H$7>J285,J285>Parameter!$J$7),OR(H285=\"L\",H285=\"Z\"))),\"Si prega correggere la dimensione A\",IF(AND(OR(Parameter!$D$8>K285,K285>Parameter!$F$8),OR(H285=\"L\",H285=\"Z\",H285=\"U\")),\"Si prega correggere la dimensione B\",IF(AND(OR(Parameter!$D$9>L285,L285>Parameter!$F$9),OR(H285=\"Z\",H285=\"U\")),\"Si prega correggere la dimensione C\",IF(ISBLANK(M285),\"Inserire la lunghezza in mm\",IF(OR(Parameter!$D$10>M285,M285>Parameter!$F$10),\"Si prega correggere la lunghezza\",IF(ISBLANK(N285),\"Inserire la quantità\",IF(NOT(ISNUMBER(N285)),\"Si prega correggere la quantità\",\"OK\")))))))))))))))))))))","v":""},0,"",null,null,null,null,null,null,null,null,null,null,"",null,"",null,""]
["26)  ISOTREPP 36 dB",{"$f":"IF(LEN(D286)=0,IF(NOT(B285=\"OK\"),IF(SUMPRODUCT(--(D285:P285<>\"\"))=0,IF(AND(NOT(SUMPRODUCT(--(E286:P286<>\"\"))=0),D285=\"\"),\"Si prega di non utilizzare righe vuote\",\"\"),IF(NOT(SUMPRODUCT(--(E286:P286<>\"\"))=0),\"Si prega correggere prima la riga precedente\",\"\")),\"\"),IF(LEN(E286)>Parameter!$C$2,\"Descrizione troppo lunga, si prega accorciare\",IF(NOT(COUNTIF(Parameter!$C$3:$G$3,F286)),\"Inserire la descrizione (facoltativa) e selezionare ingresso/uscita/pianerottolo/parete/vuoto\",IF(ISBLANK(G286),\"Ricerca Cuscinetto Scala\",IF(NOT(COUNTIF(Parameter!$C$4:$L$4,G286)),\"Si prega inserire un tipo Cuscinetto scala corretto \",IF(ISBLANK(H286),\"Selezionare la forma\",IF(NOT(COUNTIF(Parameter!$C$5:$F$5,H286)),\"Si prega inserire una forma corretta\",IF(ISBLANK(I286),\"Selezionare la riduzione del suono d'impatto\",IF(NOT(COUNTIF(Parameter!$E$6,I286)),\"Si prega selezionare la riduzione del suono d'impatto\",IF(AND(H286=\"F\",ISBLANK(J286)),\"Inserire la dimensione A in mm\",IF(AND(H286=\"L\",OR(ISBLANK(J286),ISBLANK(K286))),\"Inserire le dimensioni A e B in mm\",IF(AND(OR(H286=\"Z\",H286=\"U\"),OR(ISBLANK(J286),ISBLANK(K286),ISBLANK(L286))),\"Inserire le dimensioni A, B e C in mm\",IF(AND(H286=\"F\",OR(NOT(ISBLANK(K286)),NOT(ISBLANK(L286)))),\"Inserire solo A per la forma F, si prega cancellare le dimensioni B e C\",IF(AND(H286=\"L\",NOT(ISBLANK(L286))),\"Inserire solo A e B per la forma a L, si prega cancellare la dimensione C\",IF(OR(AND(OR(Parameter!$D$7>J286,J286>Parameter!$F$7),OR(H286=\"F\",H286=\"U\")),AND(OR(Parameter!$H$7>J286,J286>Parameter!$J$7),OR(H286=\"L\",H286=\"Z\"))),\"Si prega correggere la dimensione A\",IF(AND(OR(Parameter!$D$8>K286,K286>Parameter!$F$8),OR(H286=\"L\",H286=\"Z\",H286=\"U\")),\"Si prega correggere la dimensione B\",IF(AND(OR(Parameter!$D$9>L286,L286>Parameter!$F$9),OR(H286=\"Z\",H286=\"U\")),\"Si prega correggere la dimensione C\",IF(ISBLANK(M286),\"Inserire la lunghezza in mm\",IF(OR(Parameter!$D$10>M286,M286>Parameter!$F$10),\"Si prega correggere la lunghezza\",IF(ISBLANK(N286),\"Inserire la quantità\",IF(NOT(ISNUMBER(N286)),\"Si prega correggere la quantità\",\"OK\")))))))))))))))))))))","v":""},0,"",null,null,null,null,null,null,null,null,null,null,"",null,"",null,""]
["26)  ISOTREPP 36 dB",{"$f":"IF(LEN(D287)=0,IF(NOT(B286=\"OK\"),IF(SUMPRODUCT(--(D286:P286<>\"\"))=0,IF(AND(NOT(SUMPRODUCT(--(E287:P287<>\"\"))=0),D286=\"\"),\"Si prega di non utilizzare righe vuote\",\"\"),IF(NOT(SUMPRODUCT(--(E287:P287<>\"\"))=0),\"Si prega correggere prima la riga precedente\",\"\")),\"\"),IF(LEN(E287)>Parameter!$C$2,\"Descrizione troppo lunga, si prega accorciare\",IF(NOT(COUNTIF(Parameter!$C$3:$G$3,F287)),\"Inserire la descrizione (facoltativa) e selezionare ingresso/uscita/pianerottolo/parete/vuoto\",IF(ISBLANK(G287),\"Ricerca Cuscinetto Scala\",IF(NOT(COUNTIF(Parameter!$C$4:$L$4,G287)),\"Si prega inserire un tipo Cuscinetto scala corretto \",IF(ISBLANK(H287),\"Selezionare la forma\",IF(NOT(COUNTIF(Parameter!$C$5:$F$5,H287)),\"Si prega inserire una forma corretta\",IF(ISBLANK(I287),\"Selezionare la riduzione del suono d'impatto\",IF(NOT(COUNTIF(Parameter!$E$6,I287)),\"Si prega selezionare la riduzione del suono d'impatto\",IF(AND(H287=\"F\",ISBLANK(J287)),\"Inserire la dimensione A in mm\",IF(AND(H287=\"L\",OR(ISBLANK(J287),ISBLANK(K287))),\"Inserire le dimensioni A e B in mm\",IF(AND(OR(H287=\"Z\",H287=\"U\"),OR(ISBLANK(J287),ISBLANK(K287),ISBLANK(L287))),\"Inserire le dimensioni A, B e C in mm\",IF(AND(H287=\"F\",OR(NOT(ISBLANK(K287)),NOT(ISBLANK(L287)))),\"Inserire solo A per la forma F, si prega cancellare le dimensioni B e C\",IF(AND(H287=\"L\",NOT(ISBLANK(L287))),\"Inserire solo A e B per la forma a L, si prega cancellare la dimensione C\",IF(OR(AND(OR(Parameter!$D$7>J287,J287>Parameter!$F$7),OR(H287=\"F\",H287=\"U\")),AND(OR(Parameter!$H$7>J287,J287>Parameter!$J$7),OR(H287=\"L\",H287=\"Z\"))),\"Si prega correggere la dimensione A\",IF(AND(OR(Parameter!$D$8>K287,K287>Parameter!$F$8),OR(H287=\"L\",H287=\"Z\",H287=\"U\")),\"Si prega correggere la dimensione B\",IF(AND(OR(Parameter!$D$9>L287,L287>Parameter!$F$9),OR(H287=\"Z\",H287=\"U\")),\"Si prega correggere la dimensione C\",IF(ISBLANK(M287),\"Inserire la lunghezza in mm\",IF(OR(Parameter!$D$10>M287,M287>Parameter!$F$10),\"Si prega correggere la lunghezza\",IF(ISBLANK(N287),\"Inserire la quantità\",IF(NOT(ISNUMBER(N287)),\"Si prega correggere la quantità\",\"OK\")))))))))))))))))))))","v":""},0,"",null,null,null,null,null,null,null,null,null,null,"",null,"",null,""]
["26)  ISOTREPP 36 dB",{"$f":"IF(LEN(D288)=0,IF(NOT(B287=\"OK\"),IF(SUMPRODUCT(--(D287:P287<>\"\"))=0,IF(AND(NOT(SUMPRODUCT(--(E288:P288<>\"\"))=0),D287=\"\"),\"Si prega di non utilizzare righe vuote\",\"\"),IF(NOT(SUMPRODUCT(--(E288:P288<>\"\"))=0),\"Si prega correggere prima la riga precedente\",\"\")),\"\"),IF(LEN(E288)>Parameter!$C$2,\"Descrizione troppo lunga, si prega accorciare\",IF(NOT(COUNTIF(Parameter!$C$3:$G$3,F288)),\"Inserire la descrizione (facoltativa) e selezionare ingresso/uscita/pianerottolo/parete/vuoto\",IF(ISBLANK(G288),\"Ricerca Cuscinetto Scala\",IF(NOT(COUNTIF(Parameter!$C$4:$L$4,G288)),\"Si prega inserire un tipo Cuscinetto scala corretto \",IF(ISBLANK(H288),\"Selezionare la forma\",IF(NOT(COUNTIF(Parameter!$C$5:$F$5,H288)),\"Si prega inserire una forma corretta\",IF(ISBLANK(I288),\"Selezionare la riduzione del suono d'impatto\",IF(NOT(COUNTIF(Parameter!$E$6,I288)),\"Si prega selezionare la riduzione del suono d'impatto\",IF(AND(H288=\"F\",ISBLANK(J288)),\"Inserire la dimensione A in mm\",IF(AND(H288=\"L\",OR(ISBLANK(J288),ISBLANK(K288))),\"Inserire le dimensioni A e B in mm\",IF(AND(OR(H288=\"Z\",H288=\"U\"),OR(ISBLANK(J288),ISBLANK(K288),ISBLANK(L288))),\"Inserire le dimensioni A, B e C in mm\",IF(AND(H288=\"F\",OR(NOT(ISBLANK(K288)),NOT(ISBLANK(L288)))),\"Inserire solo A per la forma F, si prega cancellare le dimensioni B e C\",IF(AND(H288=\"L\",NOT(ISBLANK(L288))),\"Inserire solo A e B per la forma a L, si prega cancellare la dimensione C\",IF(OR(AND(OR(Parameter!$D$7>J288,J288>Parameter!$F$7),OR(H288=\"F\",H288=\"U\")),AND(OR(Parameter!$H$7>J288,J288>Parameter!$J$7),OR(H288=\"L\",H288=\"Z\"))),\"Si prega correggere la dimensione A\",IF(AND(OR(Parameter!$D$8>K288,K288>Parameter!$F$8),OR(H288=\"L\",H288=\"Z\",H288=\"U\")),\"Si prega correggere la dimensione B\",IF(AND(OR(Parameter!$D$9>L288,L288>Parameter!$F$9),OR(H288=\"Z\",H288=\"U\")),\"Si prega correggere la dimensione C\",IF(ISBLANK(M288),\"Inserire la lunghezza in mm\",IF(OR(Parameter!$D$10>M288,M288>Parameter!$F$10),\"Si prega correggere la lunghezza\",IF(ISBLANK(N288),\"Inserire la quantità\",IF(NOT(ISNUMBER(N288)),\"Si prega correggere la quantità\",\"OK\")))))))))))))))))))))","v":""},0,"",null,null,null,null,null,null,null,null,null,null,"",null,"",null,""]
["26)  ISOTREPP 36 dB",{"$f":"IF(LEN(D289)=0,IF(NOT(B288=\"OK\"),IF(SUMPRODUCT(--(D288:P288<>\"\"))=0,IF(AND(NOT(SUMPRODUCT(--(E289:P289<>\"\"))=0),D288=\"\"),\"Si prega di non utilizzare righe vuote\",\"\"),IF(NOT(SUMPRODUCT(--(E289:P289<>\"\"))=0),\"Si prega correggere prima la riga precedente\",\"\")),\"\"),IF(LEN(E289)>Parameter!$C$2,\"Descrizione troppo lunga, si prega accorciare\",IF(NOT(COUNTIF(Parameter!$C$3:$G$3,F289)),\"Inserire la descrizione (facoltativa) e selezionare ingresso/uscita/pianerottolo/parete/vuoto\",IF(ISBLANK(G289),\"Ricerca Cuscinetto Scala\",IF(NOT(COUNTIF(Parameter!$C$4:$L$4,G289)),\"Si prega inserire un tipo Cuscinetto scala corretto \",IF(ISBLANK(H289),\"Selezionare la forma\",IF(NOT(COUNTIF(Parameter!$C$5:$F$5,H289)),\"Si prega inserire una forma corretta\",IF(ISBLANK(I289),\"Selezionare la riduzione del suono d'impatto\",IF(NOT(COUNTIF(Parameter!$E$6,I289)),\"Si prega selezionare la riduzione del suono d'impatto\",IF(AND(H289=\"F\",ISBLANK(J289)),\"Inserire la dimensione A in mm\",IF(AND(H289=\"L\",OR(ISBLANK(J289),ISBLANK(K289))),\"Inserire le dimensioni A e B in mm\",IF(AND(OR(H289=\"Z\",H289=\"U\"),OR(ISBLANK(J289),ISBLANK(K289),ISBLANK(L289))),\"Inserire le dimensioni A, B e C in mm\",IF(AND(H289=\"F\",OR(NOT(ISBLANK(K289)),NOT(ISBLANK(L289)))),\"Inserire solo A per la forma F, si prega cancellare le dimensioni B e C\",IF(AND(H289=\"L\",NOT(ISBLANK(L289))),\"Inserire solo A e B per la forma a L, si prega cancellare la dimensione C\",IF(OR(AND(OR(Parameter!$D$7>J289,J289>Parameter!$F$7),OR(H289=\"F\",H289=\"U\")),AND(OR(Parameter!$H$7>J289,J289>Parameter!$J$7),OR(H289=\"L\",H289=\"Z\"))),\"Si prega correggere la dimensione A\",IF(AND(OR(Parameter!$D$8>K289,K289>Parameter!$F$8),OR(H289=\"L\",H289=\"Z\",H289=\"U\")),\"Si prega correggere la dimensione B\",IF(AND(OR(Parameter!$D$9>L289,L289>Parameter!$F$9),OR(H289=\"Z\",H289=\"U\")),\"Si prega correggere la dimensione C\",IF(ISBLANK(M289),\"Inserire la lunghezza in mm\",IF(OR(Parameter!$D$10>M289,M289>Parameter!$F$10),\"Si prega correggere la lunghezza\",IF(ISBLANK(N289),\"Inserire la quantità\",IF(NOT(ISNUMBER(N289)),\"Si prega correggere la quantità\",\"OK\")))))))))))))))))))))","v":""},{"$f":"LEN(E289)","v":0},"",null,null,null,null,null,null,null,null,null,null,"",null,"",null,""]
["26)  ISOTREPP 36 dB",{"$f":"IF(LEN(D290)=0,IF(NOT(B289=\"OK\"),IF(SUMPRODUCT(--(D289:P289<>\"\"))=0,IF(AND(NOT(SUMPRODUCT(--(E290:P290<>\"\"))=0),D289=\"\"),\"Si prega di non utilizzare righe vuote\",\"\"),IF(NOT(SUMPRODUCT(--(E290:P290<>\"\"))=0),\"Si prega correggere prima la riga precedente\",\"\")),\"\"),IF(LEN(E290)>Parameter!$C$2,\"Descrizione troppo lunga, si prega accorciare\",IF(NOT(COUNTIF(Parameter!$C$3:$G$3,F290)),\"Inserire la descrizione (facoltativa) e selezionare ingresso/uscita/pianerottolo/parete/vuoto\",IF(ISBLANK(G290),\"Ricerca Cuscinetto Scala\",IF(NOT(COUNTIF(Parameter!$C$4:$L$4,G290)),\"Si prega inserire un tipo Cuscinetto scala corretto \",IF(ISBLANK(H290),\"Selezionare la forma\",IF(NOT(COUNTIF(Parameter!$C$5:$F$5,H290)),\"Si prega inserire una forma corretta\",IF(ISBLANK(I290),\"Selezionare la riduzione del suono d'impatto\",IF(NOT(COUNTIF(Parameter!$E$6,I290)),\"Si prega selezionare la riduzione del suono d'impatto\",IF(AND(H290=\"F\",ISBLANK(J290)),\"Inserire la dimensione A in mm\",IF(AND(H290=\"L\",OR(ISBLANK(J290),ISBLANK(K290))),\"Inserire le dimensioni A e B in mm\",IF(AND(OR(H290=\"Z\",H290=\"U\"),OR(ISBLANK(J290),ISBLANK(K290),ISBLANK(L290))),\"Inserire le dimensioni A, B e C in mm\",IF(AND(H290=\"F\",OR(NOT(ISBLANK(K290)),NOT(ISBLANK(L290)))),\"Inserire solo A per la forma F, si prega cancellare le dimensioni B e C\",IF(AND(H290=\"L\",NOT(ISBLANK(L290))),\"Inserire solo A e B per la forma a L, si prega cancellare la dimensione C\",IF(OR(AND(OR(Parameter!$D$7>J290,J290>Parameter!$F$7),OR(H290=\"F\",H290=\"U\")),AND(OR(Parameter!$H$7>J290,J290>Parameter!$J$7),OR(H290=\"L\",H290=\"Z\"))),\"Si prega correggere la dimensione A\",IF(AND(OR(Parameter!$D$8>K290,K290>Parameter!$F$8),OR(H290=\"L\",H290=\"Z\",H290=\"U\")),\"Si prega correggere la dimensione B\",IF(AND(OR(Parameter!$D$9>L290,L290>Parameter!$F$9),OR(H290=\"Z\",H290=\"U\")),\"Si prega correggere la dimensione C\",IF(ISBLANK(M290),\"Inserire la lunghezza in mm\",IF(OR(Parameter!$D$10>M290,M290>Parameter!$F$10),\"Si prega correggere la lunghezza\",IF(ISBLANK(N290),\"Inserire la quantità\",IF(NOT(ISNUMBER(N290)),\"Si prega correggere la quantità\",\"OK\")))))))))))))))))))))","v":""},{"$f":"LEN(E290)","v":0},"",null,null,null,null,null,null,null,null,null,null,"",null,"",null,""]
["26)  ISOTREPP 36 dB",{"$f":"IF(LEN(D291)=0,IF(NOT(B290=\"OK\"),IF(SUMPRODUCT(--(D290:P290<>\"\"))=0,IF(AND(NOT(SUMPRODUCT(--(E291:P291<>\"\"))=0),D290=\"\"),\"Si prega di non utilizzare righe vuote\",\"\"),IF(NOT(SUMPRODUCT(--(E291:P291<>\"\"))=0),\"Si prega correggere prima la riga precedente\",\"\")),\"\"),IF(LEN(E291)>Parameter!$C$2,\"Descrizione troppo lunga, si prega accorciare\",IF(NOT(COUNTIF(Parameter!$C$3:$G$3,F291)),\"Inserire la descrizione (facoltativa) e selezionare ingresso/uscita/pianerottolo/parete/vuoto\",IF(ISBLANK(G291),\"Ricerca Cuscinetto Scala\",IF(NOT(COUNTIF(Parameter!$C$4:$L$4,G291)),\"Si prega inserire un tipo Cuscinetto scala corretto \",IF(ISBLANK(H291),\"Selezionare la forma\",IF(NOT(COUNTIF(Parameter!$C$5:$F$5,H291)),\"Si prega inserire una forma corretta\",IF(ISBLANK(I291),\"Selezionare la riduzione del suono d'impatto\",IF(NOT(COUNTIF(Parameter!$E$6,I291)),\"Si prega selezionare la riduzione del suono d'impatto\",IF(AND(H291=\"F\",ISBLANK(J291)),\"Inserire la dimensione A in mm\",IF(AND(H291=\"L\",OR(ISBLANK(J291),ISBLANK(K291))),\"Inserire le dimensioni A e B in mm\",IF(AND(OR(H291=\"Z\",H291=\"U\"),OR(ISBLANK(J291),ISBLANK(K291),ISBLANK(L291))),\"Inserire le dimensioni A, B e C in mm\",IF(AND(H291=\"F\",OR(NOT(ISBLANK(K291)),NOT(ISBLANK(L291)))),\"Inserire solo A per la forma F, si prega cancellare le dimensioni B e C\",IF(AND(H291=\"L\",NOT(ISBLANK(L291))),\"Inserire solo A e B per la forma a L, si prega cancellare la dimensione C\",IF(OR(AND(OR(Parameter!$D$7>J291,J291>Parameter!$F$7),OR(H291=\"F\",H291=\"U\")),AND(OR(Parameter!$H$7>J291,J291>Parameter!$J$7),OR(H291=\"L\",H291=\"Z\"))),\"Si prega correggere la dimensione A\",IF(AND(OR(Parameter!$D$8>K291,K291>Parameter!$F$8),OR(H291=\"L\",H291=\"Z\",H291=\"U\")),\"Si prega correggere la dimensione B\",IF(AND(OR(Parameter!$D$9>L291,L291>Parameter!$F$9),OR(H291=\"Z\",H291=\"U\")),\"Si prega correggere la dimensione C\",IF(ISBLANK(M291),\"Inserire la lunghezza in mm\",IF(OR(Parameter!$D$10>M291,M291>Parameter!$F$10),\"Si prega correggere la lunghezza\",IF(ISBLANK(N291),\"Inserire la quantità\",IF(NOT(ISNUMBER(N291)),\"Si prega correggere la quantità\",\"OK\")))))))))))))))))))))","v":""},{"$f":"LEN(E291)","v":0},"",null,null,null,null,null,null,null,null,null,null,"",null,"",null,""]
["26)  ISOTREPP 36 dB",{"$f":"IF(LEN(D292)=0,IF(NOT(B291=\"OK\"),IF(SUMPRODUCT(--(D291:P291<>\"\"))=0,IF(AND(NOT(SUMPRODUCT(--(E292:P292<>\"\"))=0),D291=\"\"),\"Si prega di non utilizzare righe vuote\",\"\"),IF(NOT(SUMPRODUCT(--(E292:P292<>\"\"))=0),\"Si prega correggere prima la riga precedente\",\"\")),\"\"),IF(LEN(E292)>Parameter!$C$2,\"Descrizione troppo lunga, si prega accorciare\",IF(NOT(COUNTIF(Parameter!$C$3:$G$3,F292)),\"Inserire la descrizione (facoltativa) e selezionare ingresso/uscita/pianerottolo/parete/vuoto\",IF(ISBLANK(G292),\"Ricerca Cuscinetto Scala\",IF(NOT(COUNTIF(Parameter!$C$4:$L$4,G292)),\"Si prega inserire un tipo Cuscinetto scala corretto \",IF(ISBLANK(H292),\"Selezionare la forma\",IF(NOT(COUNTIF(Parameter!$C$5:$F$5,H292)),\"Si prega inserire una forma corretta\",IF(ISBLANK(I292),\"Selezionare la riduzione del suono d'impatto\",IF(NOT(COUNTIF(Parameter!$E$6,I292)),\"Si prega selezionare la riduzione del suono d'impatto\",IF(AND(H292=\"F\",ISBLANK(J292)),\"Inserire la dimensione A in mm\",IF(AND(H292=\"L\",OR(ISBLANK(J292),ISBLANK(K292))),\"Inserire le dimensioni A e B in mm\",IF(AND(OR(H292=\"Z\",H292=\"U\"),OR(ISBLANK(J292),ISBLANK(K292),ISBLANK(L292))),\"Inserire le dimensioni A, B e C in mm\",IF(AND(H292=\"F\",OR(NOT(ISBLANK(K292)),NOT(ISBLANK(L292)))),\"Inserire solo A per la forma F, si prega cancellare le dimensioni B e C\",IF(AND(H292=\"L\",NOT(ISBLANK(L292))),\"Inserire solo A e B per la forma a L, si prega cancellare la dimensione C\",IF(OR(AND(OR(Parameter!$D$7>J292,J292>Parameter!$F$7),OR(H292=\"F\",H292=\"U\")),AND(OR(Parameter!$H$7>J292,J292>Parameter!$J$7),OR(H292=\"L\",H292=\"Z\"))),\"Si prega correggere la dimensione A\",IF(AND(OR(Parameter!$D$8>K292,K292>Parameter!$F$8),OR(H292=\"L\",H292=\"Z\",H292=\"U\")),\"Si prega correggere la dimensione B\",IF(AND(OR(Parameter!$D$9>L292,L292>Parameter!$F$9),OR(H292=\"Z\",H292=\"U\")),\"Si prega correggere la dimensione C\",IF(ISBLANK(M292),\"Inserire la lunghezza in mm\",IF(OR(Parameter!$D$10>M292,M292>Parameter!$F$10),\"Si prega correggere la lunghezza\",IF(ISBLANK(N292),\"Inserire la quantità\",IF(NOT(ISNUMBER(N292)),\"Si prega correggere la quantità\",\"OK\")))))))))))))))))))))","v":""},{"$f":"LEN(E292)","v":0},"",null,null,null,null,null,null,null,null,null,null,"",null,"",null,""]
["26)  ISOTREPP 36 dB",{"$f":"IF(LEN(D293)=0,IF(NOT(B292=\"OK\"),IF(SUMPRODUCT(--(D292:P292<>\"\"))=0,IF(AND(NOT(SUMPRODUCT(--(E293:P293<>\"\"))=0),D292=\"\"),\"Si prega di non utilizzare righe vuote\",\"\"),IF(NOT(SUMPRODUCT(--(E293:P293<>\"\"))=0),\"Si prega correggere prima la riga precedente\",\"\")),\"\"),IF(LEN(E293)>Parameter!$C$2,\"Descrizione troppo lunga, si prega accorciare\",IF(NOT(COUNTIF(Parameter!$C$3:$G$3,F293)),\"Inserire la descrizione (facoltativa) e selezionare ingresso/uscita/pianerottolo/parete/vuoto\",IF(ISBLANK(G293),\"Ricerca Cuscinetto Scala\",IF(NOT(COUNTIF(Parameter!$C$4:$L$4,G293)),\"Si prega inserire un tipo Cuscinetto scala corretto \",IF(ISBLANK(H293),\"Selezionare la forma\",IF(NOT(COUNTIF(Parameter!$C$5:$F$5,H293)),\"Si prega inserire una forma corretta\",IF(ISBLANK(I293),\"Selezionare la riduzione del suono d'impatto\",IF(NOT(COUNTIF(Parameter!$E$6,I293)),\"Si prega selezionare la riduzione del suono d'impatto\",IF(AND(H293=\"F\",ISBLANK(J293)),\"Inserire la dimensione A in mm\",IF(AND(H293=\"L\",OR(ISBLANK(J293),ISBLANK(K293))),\"Inserire le dimensioni A e B in mm\",IF(AND(OR(H293=\"Z\",H293=\"U\"),OR(ISBLANK(J293),ISBLANK(K293),ISBLANK(L293))),\"Inserire le dimensioni A, B e C in mm\",IF(AND(H293=\"F\",OR(NOT(ISBLANK(K293)),NOT(ISBLANK(L293)))),\"Inserire solo A per la forma F, si prega cancellare le dimensioni B e C\",IF(AND(H293=\"L\",NOT(ISBLANK(L293))),\"Inserire solo A e B per la forma a L, si prega cancellare la dimensione C\",IF(OR(AND(OR(Parameter!$D$7>J293,J293>Parameter!$F$7),OR(H293=\"F\",H293=\"U\")),AND(OR(Parameter!$H$7>J293,J293>Parameter!$J$7),OR(H293=\"L\",H293=\"Z\"))),\"Si prega correggere la dimensione A\",IF(AND(OR(Parameter!$D$8>K293,K293>Parameter!$F$8),OR(H293=\"L\",H293=\"Z\",H293=\"U\")),\"Si prega correggere la dimensione B\",IF(AND(OR(Parameter!$D$9>L293,L293>Parameter!$F$9),OR(H293=\"Z\",H293=\"U\")),\"Si prega correggere la dimensione C\",IF(ISBLANK(M293),\"Inserire la lunghezza in mm\",IF(OR(Parameter!$D$10>M293,M293>Parameter!$F$10),\"Si prega correggere la lunghezza\",IF(ISBLANK(N293),\"Inserire la quantità\",IF(NOT(ISNUMBER(N293)),\"Si prega correggere la quantità\",\"OK\")))))))))))))))))))))","v":""},{"$f":"LEN(E293)","v":0},"",null,null,null,null,null,null,null,null,null,null,"",null,"",null,""]
["26)  ISOTREPP 36 dB",{"$f":"IF(LEN(D294)=0,IF(NOT(B293=\"OK\"),IF(SUMPRODUCT(--(D293:P293<>\"\"))=0,IF(AND(NOT(SUMPRODUCT(--(E294:P294<>\"\"))=0),D293=\"\"),\"Si prega di non utilizzare righe vuote\",\"\"),IF(NOT(SUMPRODUCT(--(E294:P294<>\"\"))=0),\"Si prega correggere prima la riga precedente\",\"\")),\"\"),IF(LEN(E294)>Parameter!$C$2,\"Descrizione troppo lunga, si prega accorciare\",IF(NOT(COUNTIF(Parameter!$C$3:$G$3,F294)),\"Inserire la descrizione (facoltativa) e selezionare ingresso/uscita/pianerottolo/parete/vuoto\",IF(ISBLANK(G294),\"Ricerca Cuscinetto Scala\",IF(NOT(COUNTIF(Parameter!$C$4:$L$4,G294)),\"Si prega inserire un tipo Cuscinetto scala corretto \",IF(ISBLANK(H294),\"Selezionare la forma\",IF(NOT(COUNTIF(Parameter!$C$5:$F$5,H294)),\"Si prega inserire una forma corretta\",IF(ISBLANK(I294),\"Selezionare la riduzione del suono d'impatto\",IF(NOT(COUNTIF(Parameter!$E$6,I294)),\"Si prega selezionare la riduzione del suono d'impatto\",IF(AND(H294=\"F\",ISBLANK(J294)),\"Inserire la dimensione A in mm\",IF(AND(H294=\"L\",OR(ISBLANK(J294),ISBLANK(K294))),\"Inserire le dimensioni A e B in mm\",IF(AND(OR(H294=\"Z\",H294=\"U\"),OR(ISBLANK(J294),ISBLANK(K294),ISBLANK(L294))),\"Inserire le dimensioni A, B e C in mm\",IF(AND(H294=\"F\",OR(NOT(ISBLANK(K294)),NOT(ISBLANK(L294)))),\"Inserire solo A per la forma F, si prega cancellare le dimensioni B e C\",IF(AND(H294=\"L\",NOT(ISBLANK(L294))),\"Inserire solo A e B per la forma a L, si prega cancellare la dimensione C\",IF(OR(AND(OR(Parameter!$D$7>J294,J294>Parameter!$F$7),OR(H294=\"F\",H294=\"U\")),AND(OR(Parameter!$H$7>J294,J294>Parameter!$J$7),OR(H294=\"L\",H294=\"Z\"))),\"Si prega correggere la dimensione A\",IF(AND(OR(Parameter!$D$8>K294,K294>Parameter!$F$8),OR(H294=\"L\",H294=\"Z\",H294=\"U\")),\"Si prega correggere la dimensione B\",IF(AND(OR(Parameter!$D$9>L294,L294>Parameter!$F$9),OR(H294=\"Z\",H294=\"U\")),\"Si prega correggere la dimensione C\",IF(ISBLANK(M294),\"Inserire la lunghezza in mm\",IF(OR(Parameter!$D$10>M294,M294>Parameter!$F$10),\"Si prega correggere la lunghezza\",IF(ISBLANK(N294),\"Inserire la quantità\",IF(NOT(ISNUMBER(N294)),\"Si prega correggere la quantità\",\"OK\")))))))))))))))))))))","v":""},{"$f":"LEN(E294)","v":0},"",null,null,null,null,null,null,null,null,null,null,"",null,"",null,""]
["26)  ISOTREPP 36 dB",{"$f":"IF(LEN(D295)=0,IF(NOT(B294=\"OK\"),IF(SUMPRODUCT(--(D294:P294<>\"\"))=0,IF(AND(NOT(SUMPRODUCT(--(E295:P295<>\"\"))=0),D294=\"\"),\"Si prega di non utilizzare righe vuote\",\"\"),IF(NOT(SUMPRODUCT(--(E295:P295<>\"\"))=0),\"Si prega correggere prima la riga precedente\",\"\")),\"\"),IF(LEN(E295)>Parameter!$C$2,\"Descrizione troppo lunga, si prega accorciare\",IF(NOT(COUNTIF(Parameter!$C$3:$G$3,F295)),\"Inserire la descrizione (facoltativa) e selezionare ingresso/uscita/pianerottolo/parete/vuoto\",IF(ISBLANK(G295),\"Ricerca Cuscinetto Scala\",IF(NOT(COUNTIF(Parameter!$C$4:$L$4,G295)),\"Si prega inserire un tipo Cuscinetto scala corretto \",IF(ISBLANK(H295),\"Selezionare la forma\",IF(NOT(COUNTIF(Parameter!$C$5:$F$5,H295)),\"Si prega inserire una forma corretta\",IF(ISBLANK(I295),\"Selezionare la riduzione del suono d'impatto\",IF(NOT(COUNTIF(Parameter!$E$6,I295)),\"Si prega selezionare la riduzione del suono d'impatto\",IF(AND(H295=\"F\",ISBLANK(J295)),\"Inserire la dimensione A in mm\",IF(AND(H295=\"L\",OR(ISBLANK(J295),ISBLANK(K295))),\"Inserire le dimensioni A e B in mm\",IF(AND(OR(H295=\"Z\",H295=\"U\"),OR(ISBLANK(J295),ISBLANK(K295),ISBLANK(L295))),\"Inserire le dimensioni A, B e C in mm\",IF(AND(H295=\"F\",OR(NOT(ISBLANK(K295)),NOT(ISBLANK(L295)))),\"Inserire solo A per la forma F, si prega cancellare le dimensioni B e C\",IF(AND(H295=\"L\",NOT(ISBLANK(L295))),\"Inserire solo A e B per la forma a L, si prega cancellare la dimensione C\",IF(OR(AND(OR(Parameter!$D$7>J295,J295>Parameter!$F$7),OR(H295=\"F\",H295=\"U\")),AND(OR(Parameter!$H$7>J295,J295>Parameter!$J$7),OR(H295=\"L\",H295=\"Z\"))),\"Si prega correggere la dimensione A\",IF(AND(OR(Parameter!$D$8>K295,K295>Parameter!$F$8),OR(H295=\"L\",H295=\"Z\",H295=\"U\")),\"Si prega correggere la dimensione B\",IF(AND(OR(Parameter!$D$9>L295,L295>Parameter!$F$9),OR(H295=\"Z\",H295=\"U\")),\"Si prega correggere la dimensione C\",IF(ISBLANK(M295),\"Inserire la lunghezza in mm\",IF(OR(Parameter!$D$10>M295,M295>Parameter!$F$10),\"Si prega correggere la lunghezza\",IF(ISBLANK(N295),\"Inserire la quantità\",IF(NOT(ISNUMBER(N295)),\"Si prega correggere la quantità\",\"OK\")))))))))))))))))))))","v":""},0,"",null,null,null,null,null,null,null,null,null,null,"",null,"",null,""]
["26)  ISOTREPP 36 dB",{"$f":"IF(LEN(D296)=0,IF(NOT(B295=\"OK\"),IF(SUMPRODUCT(--(D295:P295<>\"\"))=0,IF(AND(NOT(SUMPRODUCT(--(E296:P296<>\"\"))=0),D295=\"\"),\"Si prega di non utilizzare righe vuote\",\"\"),IF(NOT(SUMPRODUCT(--(E296:P296<>\"\"))=0),\"Si prega correggere prima la riga precedente\",\"\")),\"\"),IF(LEN(E296)>Parameter!$C$2,\"Descrizione troppo lunga, si prega accorciare\",IF(NOT(COUNTIF(Parameter!$C$3:$G$3,F296)),\"Inserire la descrizione (facoltativa) e selezionare ingresso/uscita/pianerottolo/parete/vuoto\",IF(ISBLANK(G296),\"Ricerca Cuscinetto Scala\",IF(NOT(COUNTIF(Parameter!$C$4:$L$4,G296)),\"Si prega inserire un tipo Cuscinetto scala corretto \",IF(ISBLANK(H296),\"Selezionare la forma\",IF(NOT(COUNTIF(Parameter!$C$5:$F$5,H296)),\"Si prega inserire una forma corretta\",IF(ISBLANK(I296),\"Selezionare la riduzione del suono d'impatto\",IF(NOT(COUNTIF(Parameter!$E$6,I296)),\"Si prega selezionare la riduzione del suono d'impatto\",IF(AND(H296=\"F\",ISBLANK(J296)),\"Inserire la dimensione A in mm\",IF(AND(H296=\"L\",OR(ISBLANK(J296),ISBLANK(K296))),\"Inserire le dimensioni A e B in mm\",IF(AND(OR(H296=\"Z\",H296=\"U\"),OR(ISBLANK(J296),ISBLANK(K296),ISBLANK(L296))),\"Inserire le dimensioni A, B e C in mm\",IF(AND(H296=\"F\",OR(NOT(ISBLANK(K296)),NOT(ISBLANK(L296)))),\"Inserire solo A per la forma F, si prega cancellare le dimensioni B e C\",IF(AND(H296=\"L\",NOT(ISBLANK(L296))),\"Inserire solo A e B per la forma a L, si prega cancellare la dimensione C\",IF(OR(AND(OR(Parameter!$D$7>J296,J296>Parameter!$F$7),OR(H296=\"F\",H296=\"U\")),AND(OR(Parameter!$H$7>J296,J296>Parameter!$J$7),OR(H296=\"L\",H296=\"Z\"))),\"Si prega correggere la dimensione A\",IF(AND(OR(Parameter!$D$8>K296,K296>Parameter!$F$8),OR(H296=\"L\",H296=\"Z\",H296=\"U\")),\"Si prega correggere la dimensione B\",IF(AND(OR(Parameter!$D$9>L296,L296>Parameter!$F$9),OR(H296=\"Z\",H296=\"U\")),\"Si prega correggere la dimensione C\",IF(ISBLANK(M296),\"Inserire la lunghezza in mm\",IF(OR(Parameter!$D$10>M296,M296>Parameter!$F$10),\"Si prega correggere la lunghezza\",IF(ISBLANK(N296),\"Inserire la quantità\",IF(NOT(ISNUMBER(N296)),\"Si prega correggere la quantità\",\"OK\")))))))))))))))))))))","v":""},0,"",null,null,null,null,null,null,null,null,null,null,"",null,"",null,""]
["26)  ISOTREPP 36 dB",{"$f":"IF(LEN(D297)=0,IF(NOT(B296=\"OK\"),IF(SUMPRODUCT(--(D296:P296<>\"\"))=0,IF(AND(NOT(SUMPRODUCT(--(E297:P297<>\"\"))=0),D296=\"\"),\"Si prega di non utilizzare righe vuote\",\"\"),IF(NOT(SUMPRODUCT(--(E297:P297<>\"\"))=0),\"Si prega correggere prima la riga precedente\",\"\")),\"\"),IF(LEN(E297)>Parameter!$C$2,\"Descrizione troppo lunga, si prega accorciare\",IF(NOT(COUNTIF(Parameter!$C$3:$G$3,F297)),\"Inserire la descrizione (facoltativa) e selezionare ingresso/uscita/pianerottolo/parete/vuoto\",IF(ISBLANK(G297),\"Ricerca Cuscinetto Scala\",IF(NOT(COUNTIF(Parameter!$C$4:$L$4,G297)),\"Si prega inserire un tipo Cuscinetto scala corretto \",IF(ISBLANK(H297),\"Selezionare la forma\",IF(NOT(COUNTIF(Parameter!$C$5:$F$5,H297)),\"Si prega inserire una forma corretta\",IF(ISBLANK(I297),\"Selezionare la riduzione del suono d'impatto\",IF(NOT(COUNTIF(Parameter!$E$6,I297)),\"Si prega selezionare la riduzione del suono d'impatto\",IF(AND(H297=\"F\",ISBLANK(J297)),\"Inserire la dimensione A in mm\",IF(AND(H297=\"L\",OR(ISBLANK(J297),ISBLANK(K297))),\"Inserire le dimensioni A e B in mm\",IF(AND(OR(H297=\"Z\",H297=\"U\"),OR(ISBLANK(J297),ISBLANK(K297),ISBLANK(L297))),\"Inserire le dimensioni A, B e C in mm\",IF(AND(H297=\"F\",OR(NOT(ISBLANK(K297)),NOT(ISBLANK(L297)))),\"Inserire solo A per la forma F, si prega cancellare le dimensioni B e C\",IF(AND(H297=\"L\",NOT(ISBLANK(L297))),\"Inserire solo A e B per la forma a L, si prega cancellare la dimensione C\",IF(OR(AND(OR(Parameter!$D$7>J297,J297>Parameter!$F$7),OR(H297=\"F\",H297=\"U\")),AND(OR(Parameter!$H$7>J297,J297>Parameter!$J$7),OR(H297=\"L\",H297=\"Z\"))),\"Si prega correggere la dimensione A\",IF(AND(OR(Parameter!$D$8>K297,K297>Parameter!$F$8),OR(H297=\"L\",H297=\"Z\",H297=\"U\")),\"Si prega correggere la dimensione B\",IF(AND(OR(Parameter!$D$9>L297,L297>Parameter!$F$9),OR(H297=\"Z\",H297=\"U\")),\"Si prega correggere la dimensione C\",IF(ISBLANK(M297),\"Inserire la lunghezza in mm\",IF(OR(Parameter!$D$10>M297,M297>Parameter!$F$10),\"Si prega correggere la lunghezza\",IF(ISBLANK(N297),\"Inserire la quantità\",IF(NOT(ISNUMBER(N297)),\"Si prega correggere la quantità\",\"OK\")))))))))))))))))))))","v":""},0,"",null,null,null,null,null,null,null,null,null,null,"",null,"",null,""]
["26)  ISOTREPP 36 dB",{"$f":"IF(LEN(D298)=0,IF(NOT(B297=\"OK\"),IF(SUMPRODUCT(--(D297:P297<>\"\"))=0,IF(AND(NOT(SUMPRODUCT(--(E298:P298<>\"\"))=0),D297=\"\"),\"Si prega di non utilizzare righe vuote\",\"\"),IF(NOT(SUMPRODUCT(--(E298:P298<>\"\"))=0),\"Si prega correggere prima la riga precedente\",\"\")),\"\"),IF(LEN(E298)>Parameter!$C$2,\"Descrizione troppo lunga, si prega accorciare\",IF(NOT(COUNTIF(Parameter!$C$3:$G$3,F298)),\"Inserire la descrizione (facoltativa) e selezionare ingresso/uscita/pianerottolo/parete/vuoto\",IF(ISBLANK(G298),\"Ricerca Cuscinetto Scala\",IF(NOT(COUNTIF(Parameter!$C$4:$L$4,G298)),\"Si prega inserire un tipo Cuscinetto scala corretto \",IF(ISBLANK(H298),\"Selezionare la forma\",IF(NOT(COUNTIF(Parameter!$C$5:$F$5,H298)),\"Si prega inserire una forma corretta\",IF(ISBLANK(I298),\"Selezionare la riduzione del suono d'impatto\",IF(NOT(COUNTIF(Parameter!$E$6,I298)),\"Si prega selezionare la riduzione del suono d'impatto\",IF(AND(H298=\"F\",ISBLANK(J298)),\"Inserire la dimensione A in mm\",IF(AND(H298=\"L\",OR(ISBLANK(J298),ISBLANK(K298))),\"Inserire le dimensioni A e B in mm\",IF(AND(OR(H298=\"Z\",H298=\"U\"),OR(ISBLANK(J298),ISBLANK(K298),ISBLANK(L298))),\"Inserire le dimensioni A, B e C in mm\",IF(AND(H298=\"F\",OR(NOT(ISBLANK(K298)),NOT(ISBLANK(L298)))),\"Inserire solo A per la forma F, si prega cancellare le dimensioni B e C\",IF(AND(H298=\"L\",NOT(ISBLANK(L298))),\"Inserire solo A e B per la forma a L, si prega cancellare la dimensione C\",IF(OR(AND(OR(Parameter!$D$7>J298,J298>Parameter!$F$7),OR(H298=\"F\",H298=\"U\")),AND(OR(Parameter!$H$7>J298,J298>Parameter!$J$7),OR(H298=\"L\",H298=\"Z\"))),\"Si prega correggere la dimensione A\",IF(AND(OR(Parameter!$D$8>K298,K298>Parameter!$F$8),OR(H298=\"L\",H298=\"Z\",H298=\"U\")),\"Si prega correggere la dimensione B\",IF(AND(OR(Parameter!$D$9>L298,L298>Parameter!$F$9),OR(H298=\"Z\",H298=\"U\")),\"Si prega correggere la dimensione C\",IF(ISBLANK(M298),\"Inserire la lunghezza in mm\",IF(OR(Parameter!$D$10>M298,M298>Parameter!$F$10),\"Si prega correggere la lunghezza\",IF(ISBLANK(N298),\"Inserire la quantità\",IF(NOT(ISNUMBER(N298)),\"Si prega correggere la quantità\",\"OK\")))))))))))))))))))))","v":""},0,"",null,null,null,null,null,null,null,null,null,null,"",null,"",null,""]
["26)  ISOTREPP 36 dB",{"$f":"IF(LEN(D299)=0,IF(NOT(B298=\"OK\"),IF(SUMPRODUCT(--(D298:P298<>\"\"))=0,IF(AND(NOT(SUMPRODUCT(--(E299:P299<>\"\"))=0),D298=\"\"),\"Si prega di non utilizzare righe vuote\",\"\"),IF(NOT(SUMPRODUCT(--(E299:P299<>\"\"))=0),\"Si prega correggere prima la riga precedente\",\"\")),\"\"),IF(LEN(E299)>Parameter!$C$2,\"Descrizione troppo lunga, si prega accorciare\",IF(NOT(COUNTIF(Parameter!$C$3:$G$3,F299)),\"Inserire la descrizione (facoltativa) e selezionare ingresso/uscita/pianerottolo/parete/vuoto\",IF(ISBLANK(G299),\"Ricerca Cuscinetto Scala\",IF(NOT(COUNTIF(Parameter!$C$4:$L$4,G299)),\"Si prega inserire un tipo Cuscinetto scala corretto \",IF(ISBLANK(H299),\"Selezionare la forma\",IF(NOT(COUNTIF(Parameter!$C$5:$F$5,H299)),\"Si prega inserire una forma corretta\",IF(ISBLANK(I299),\"Selezionare la riduzione del suono d'impatto\",IF(NOT(COUNTIF(Parameter!$E$6,I299)),\"Si prega selezionare la riduzione del suono d'impatto\",IF(AND(H299=\"F\",ISBLANK(J299)),\"Inserire la dimensione A in mm\",IF(AND(H299=\"L\",OR(ISBLANK(J299),ISBLANK(K299))),\"Inserire le dimensioni A e B in mm\",IF(AND(OR(H299=\"Z\",H299=\"U\"),OR(ISBLANK(J299),ISBLANK(K299),ISBLANK(L299))),\"Inserire le dimensioni A, B e C in mm\",IF(AND(H299=\"F\",OR(NOT(ISBLANK(K299)),NOT(ISBLANK(L299)))),\"Inserire solo A per la forma F, si prega cancellare le dimensioni B e C\",IF(AND(H299=\"L\",NOT(ISBLANK(L299))),\"Inserire solo A e B per la forma a L, si prega cancellare la dimensione C\",IF(OR(AND(OR(Parameter!$D$7>J299,J299>Parameter!$F$7),OR(H299=\"F\",H299=\"U\")),AND(OR(Parameter!$H$7>J299,J299>Parameter!$J$7),OR(H299=\"L\",H299=\"Z\"))),\"Si prega correggere la dimensione A\",IF(AND(OR(Parameter!$D$8>K299,K299>Parameter!$F$8),OR(H299=\"L\",H299=\"Z\",H299=\"U\")),\"Si prega correggere la dimensione B\",IF(AND(OR(Parameter!$D$9>L299,L299>Parameter!$F$9),OR(H299=\"Z\",H299=\"U\")),\"Si prega correggere la dimensione C\",IF(ISBLANK(M299),\"Inserire la lunghezza in mm\",IF(OR(Parameter!$D$10>M299,M299>Parameter!$F$10),\"Si prega correggere la lunghezza\",IF(ISBLANK(N299),\"Inserire la quantità\",IF(NOT(ISNUMBER(N299)),\"Si prega correggere la quantità\",\"OK\")))))))))))))))))))))","v":""},0,"",null,null,null,null,null,null,null,null,null,null,"",null,"",null,""]
["26)  ISOTREPP 36 dB",{"$f":"IF(LEN(D300)=0,IF(NOT(B299=\"OK\"),IF(SUMPRODUCT(--(D299:P299<>\"\"))=0,IF(AND(NOT(SUMPRODUCT(--(E300:P300<>\"\"))=0),D299=\"\"),\"Si prega di non utilizzare righe vuote\",\"\"),IF(NOT(SUMPRODUCT(--(E300:P300<>\"\"))=0),\"Si prega correggere prima la riga precedente\",\"\")),\"\"),IF(LEN(E300)>Parameter!$C$2,\"Descrizione troppo lunga, si prega accorciare\",IF(NOT(COUNTIF(Parameter!$C$3:$G$3,F300)),\"Inserire la descrizione (facoltativa) e selezionare ingresso/uscita/pianerottolo/parete/vuoto\",IF(ISBLANK(G300),\"Ricerca Cuscinetto Scala\",IF(NOT(COUNTIF(Parameter!$C$4:$L$4,G300)),\"Si prega inserire un tipo Cuscinetto scala corretto \",IF(ISBLANK(H300),\"Selezionare la forma\",IF(NOT(COUNTIF(Parameter!$C$5:$F$5,H300)),\"Si prega inserire una forma corretta\",IF(ISBLANK(I300),\"Selezionare la riduzione del suono d'impatto\",IF(NOT(COUNTIF(Parameter!$E$6,I300)),\"Si prega selezionare la riduzione del suono d'impatto\",IF(AND(H300=\"F\",ISBLANK(J300)),\"Inserire la dimensione A in mm\",IF(AND(H300=\"L\",OR(ISBLANK(J300),ISBLANK(K300))),\"Inserire le dimensioni A e B in mm\",IF(AND(OR(H300=\"Z\",H300=\"U\"),OR(ISBLANK(J300),ISBLANK(K300),ISBLANK(L300))),\"Inserire le dimensioni A, B e C in mm\",IF(AND(H300=\"F\",OR(NOT(ISBLANK(K300)),NOT(ISBLANK(L300)))),\"Inserire solo A per la forma F, si prega cancellare le dimensioni B e C\",IF(AND(H300=\"L\",NOT(ISBLANK(L300))),\"Inserire solo A e B per la forma a L, si prega cancellare la dimensione C\",IF(OR(AND(OR(Parameter!$D$7>J300,J300>Parameter!$F$7),OR(H300=\"F\",H300=\"U\")),AND(OR(Parameter!$H$7>J300,J300>Parameter!$J$7),OR(H300=\"L\",H300=\"Z\"))),\"Si prega correggere la dimensione A\",IF(AND(OR(Parameter!$D$8>K300,K300>Parameter!$F$8),OR(H300=\"L\",H300=\"Z\",H300=\"U\")),\"Si prega correggere la dimensione B\",IF(AND(OR(Parameter!$D$9>L300,L300>Parameter!$F$9),OR(H300=\"Z\",H300=\"U\")),\"Si prega correggere la dimensione C\",IF(ISBLANK(M300),\"Inserire la lunghezza in mm\",IF(OR(Parameter!$D$10>M300,M300>Parameter!$F$10),\"Si prega correggere la lunghezza\",IF(ISBLANK(N300),\"Inserire la quantità\",IF(NOT(ISNUMBER(N300)),\"Si prega correggere la quantità\",\"OK\")))))))))))))))))))))","v":""},0,"",null,null,null,null,null,null,null,null,null,null,"",null,"",null,""]
["26)  ISOTREPP 36 dB",{"$f":"IF(LEN(D301)=0,IF(NOT(B300=\"OK\"),IF(SUMPRODUCT(--(D300:P300<>\"\"))=0,IF(AND(NOT(SUMPRODUCT(--(E301:P301<>\"\"))=0),D300=\"\"),\"Si prega di non utilizzare righe vuote\",\"\"),IF(NOT(SUMPRODUCT(--(E301:P301<>\"\"))=0),\"Si prega correggere prima la riga precedente\",\"\")),\"\"),IF(LEN(E301)>Parameter!$C$2,\"Descrizione troppo lunga, si prega accorciare\",IF(NOT(COUNTIF(Parameter!$C$3:$G$3,F301)),\"Inserire la descrizione (facoltativa) e selezionare ingresso/uscita/pianerottolo/parete/vuoto\",IF(ISBLANK(G301),\"Ricerca Cuscinetto Scala\",IF(NOT(COUNTIF(Parameter!$C$4:$L$4,G301)),\"Si prega inserire un tipo Cuscinetto scala corretto \",IF(ISBLANK(H301),\"Selezionare la forma\",IF(NOT(COUNTIF(Parameter!$C$5:$F$5,H301)),\"Si prega inserire una forma corretta\",IF(ISBLANK(I301),\"Selezionare la riduzione del suono d'impatto\",IF(NOT(COUNTIF(Parameter!$E$6,I301)),\"Si prega selezionare la riduzione del suono d'impatto\",IF(AND(H301=\"F\",ISBLANK(J301)),\"Inserire la dimensione A in mm\",IF(AND(H301=\"L\",OR(ISBLANK(J301),ISBLANK(K301))),\"Inserire le dimensioni A e B in mm\",IF(AND(OR(H301=\"Z\",H301=\"U\"),OR(ISBLANK(J301),ISBLANK(K301),ISBLANK(L301))),\"Inserire le dimensioni A, B e C in mm\",IF(AND(H301=\"F\",OR(NOT(ISBLANK(K301)),NOT(ISBLANK(L301)))),\"Inserire solo A per la forma F, si prega cancellare le dimensioni B e C\",IF(AND(H301=\"L\",NOT(ISBLANK(L301))),\"Inserire solo A e B per la forma a L, si prega cancellare la dimensione C\",IF(OR(AND(OR(Parameter!$D$7>J301,J301>Parameter!$F$7),OR(H301=\"F\",H301=\"U\")),AND(OR(Parameter!$H$7>J301,J301>Parameter!$J$7),OR(H301=\"L\",H301=\"Z\"))),\"Si prega correggere la dimensione A\",IF(AND(OR(Parameter!$D$8>K301,K301>Parameter!$F$8),OR(H301=\"L\",H301=\"Z\",H301=\"U\")),\"Si prega correggere la dimensione B\",IF(AND(OR(Parameter!$D$9>L301,L301>Parameter!$F$9),OR(H301=\"Z\",H301=\"U\")),\"Si prega correggere la dimensione C\",IF(ISBLANK(M301),\"Inserire la lunghezza in mm\",IF(OR(Parameter!$D$10>M301,M301>Parameter!$F$10),\"Si prega correggere la lunghezza\",IF(ISBLANK(N301),\"Inserire la quantità\",IF(NOT(ISNUMBER(N301)),\"Si prega correggere la quantità\",\"OK\")))))))))))))))))))))","v":""},0,"",null,null,null,null,null,null,null,null,null,null,"",null,"",null,""]
["26)  ISOTREPP 36 dB",{"$f":"IF(LEN(D302)=0,IF(NOT(B301=\"OK\"),IF(SUMPRODUCT(--(D301:P301<>\"\"))=0,IF(AND(NOT(SUMPRODUCT(--(E302:P302<>\"\"))=0),D301=\"\"),\"Si prega di non utilizzare righe vuote\",\"\"),IF(NOT(SUMPRODUCT(--(E302:P302<>\"\"))=0),\"Si prega correggere prima la riga precedente\",\"\")),\"\"),IF(LEN(E302)>Parameter!$C$2,\"Descrizione troppo lunga, si prega accorciare\",IF(NOT(COUNTIF(Parameter!$C$3:$G$3,F302)),\"Inserire la descrizione (facoltativa) e selezionare ingresso/uscita/pianerottolo/parete/vuoto\",IF(ISBLANK(G302),\"Ricerca Cuscinetto Scala\",IF(NOT(COUNTIF(Parameter!$C$4:$L$4,G302)),\"Si prega inserire un tipo Cuscinetto scala corretto \",IF(ISBLANK(H302),\"Selezionare la forma\",IF(NOT(COUNTIF(Parameter!$C$5:$F$5,H302)),\"Si prega inserire una forma corretta\",IF(ISBLANK(I302),\"Selezionare la riduzione del suono d'impatto\",IF(NOT(COUNTIF(Parameter!$E$6,I302)),\"Si prega selezionare la riduzione del suono d'impatto\",IF(AND(H302=\"F\",ISBLANK(J302)),\"Inserire la dimensione A in mm\",IF(AND(H302=\"L\",OR(ISBLANK(J302),ISBLANK(K302))),\"Inserire le dimensioni A e B in mm\",IF(AND(OR(H302=\"Z\",H302=\"U\"),OR(ISBLANK(J302),ISBLANK(K302),ISBLANK(L302))),\"Inserire le dimensioni A, B e C in mm\",IF(AND(H302=\"F\",OR(NOT(ISBLANK(K302)),NOT(ISBLANK(L302)))),\"Inserire solo A per la forma F, si prega cancellare le dimensioni B e C\",IF(AND(H302=\"L\",NOT(ISBLANK(L302))),\"Inserire solo A e B per la forma a L, si prega cancellare la dimensione C\",IF(OR(AND(OR(Parameter!$D$7>J302,J302>Parameter!$F$7),OR(H302=\"F\",H302=\"U\")),AND(OR(Parameter!$H$7>J302,J302>Parameter!$J$7),OR(H302=\"L\",H302=\"Z\"))),\"Si prega correggere la dimensione A\",IF(AND(OR(Parameter!$D$8>K302,K302>Parameter!$F$8),OR(H302=\"L\",H302=\"Z\",H302=\"U\")),\"Si prega correggere la dimensione B\",IF(AND(OR(Parameter!$D$9>L302,L302>Parameter!$F$9),OR(H302=\"Z\",H302=\"U\")),\"Si prega correggere la dimensione C\",IF(ISBLANK(M302),\"Inserire la lunghezza in mm\",IF(OR(Parameter!$D$10>M302,M302>Parameter!$F$10),\"Si prega correggere la lunghezza\",IF(ISBLANK(N302),\"Inserire la quantità\",IF(NOT(ISNUMBER(N302)),\"Si prega correggere la quantità\",\"OK\")))))))))))))))))))))","v":""},0,"",null,null,null,null,null,null,null,null,null,null,"",null,"",null,""]
["26)  ISOTREPP 36 dB",{"$f":"IF(LEN(D303)=0,IF(NOT(B302=\"OK\"),IF(SUMPRODUCT(--(D302:P302<>\"\"))=0,IF(AND(NOT(SUMPRODUCT(--(E303:P303<>\"\"))=0),D302=\"\"),\"Si prega di non utilizzare righe vuote\",\"\"),IF(NOT(SUMPRODUCT(--(E303:P303<>\"\"))=0),\"Si prega correggere prima la riga precedente\",\"\")),\"\"),IF(LEN(E303)>Parameter!$C$2,\"Descrizione troppo lunga, si prega accorciare\",IF(NOT(COUNTIF(Parameter!$C$3:$G$3,F303)),\"Inserire la descrizione (facoltativa) e selezionare ingresso/uscita/pianerottolo/parete/vuoto\",IF(ISBLANK(G303),\"Ricerca Cuscinetto Scala\",IF(NOT(COUNTIF(Parameter!$C$4:$L$4,G303)),\"Si prega inserire un tipo Cuscinetto scala corretto \",IF(ISBLANK(H303),\"Selezionare la forma\",IF(NOT(COUNTIF(Parameter!$C$5:$F$5,H303)),\"Si prega inserire una forma corretta\",IF(ISBLANK(I303),\"Selezionare la riduzione del suono d'impatto\",IF(NOT(COUNTIF(Parameter!$E$6,I303)),\"Si prega selezionare la riduzione del suono d'impatto\",IF(AND(H303=\"F\",ISBLANK(J303)),\"Inserire la dimensione A in mm\",IF(AND(H303=\"L\",OR(ISBLANK(J303),ISBLANK(K303))),\"Inserire le dimensioni A e B in mm\",IF(AND(OR(H303=\"Z\",H303=\"U\"),OR(ISBLANK(J303),ISBLANK(K303),ISBLANK(L303))),\"Inserire le dimensioni A, B e C in mm\",IF(AND(H303=\"F\",OR(NOT(ISBLANK(K303)),NOT(ISBLANK(L303)))),\"Inserire solo A per la forma F, si prega cancellare le dimensioni B e C\",IF(AND(H303=\"L\",NOT(ISBLANK(L303))),\"Inserire solo A e B per la forma a L, si prega cancellare la dimensione C\",IF(OR(AND(OR(Parameter!$D$7>J303,J303>Parameter!$F$7),OR(H303=\"F\",H303=\"U\")),AND(OR(Parameter!$H$7>J303,J303>Parameter!$J$7),OR(H303=\"L\",H303=\"Z\"))),\"Si prega correggere la dimensione A\",IF(AND(OR(Parameter!$D$8>K303,K303>Parameter!$F$8),OR(H303=\"L\",H303=\"Z\",H303=\"U\")),\"Si prega correggere la dimensione B\",IF(AND(OR(Parameter!$D$9>L303,L303>Parameter!$F$9),OR(H303=\"Z\",H303=\"U\")),\"Si prega correggere la dimensione C\",IF(ISBLANK(M303),\"Inserire la lunghezza in mm\",IF(OR(Parameter!$D$10>M303,M303>Parameter!$F$10),\"Si prega correggere la lunghezza\",IF(ISBLANK(N303),\"Inserire la quantità\",IF(NOT(ISNUMBER(N303)),\"Si prega correggere la quantità\",\"OK\")))))))))))))))))))))","v":""},0,"",null,null,null,null,null,null,null,null,null,null,"",null,"",null,""]
["26)  ISOTREPP 36 dB",{"$f":"IF(LEN(D304)=0,IF(NOT(B303=\"OK\"),IF(SUMPRODUCT(--(D303:P303<>\"\"))=0,IF(AND(NOT(SUMPRODUCT(--(E304:P304<>\"\"))=0),D303=\"\"),\"Si prega di non utilizzare righe vuote\",\"\"),IF(NOT(SUMPRODUCT(--(E304:P304<>\"\"))=0),\"Si prega correggere prima la riga precedente\",\"\")),\"\"),IF(LEN(E304)>Parameter!$C$2,\"Descrizione troppo lunga, si prega accorciare\",IF(NOT(COUNTIF(Parameter!$C$3:$G$3,F304)),\"Inserire la descrizione (facoltativa) e selezionare ingresso/uscita/pianerottolo/parete/vuoto\",IF(ISBLANK(G304),\"Ricerca Cuscinetto Scala\",IF(NOT(COUNTIF(Parameter!$C$4:$L$4,G304)),\"Si prega inserire un tipo Cuscinetto scala corretto \",IF(ISBLANK(H304),\"Selezionare la forma\",IF(NOT(COUNTIF(Parameter!$C$5:$F$5,H304)),\"Si prega inserire una forma corretta\",IF(ISBLANK(I304),\"Selezionare la riduzione del suono d'impatto\",IF(NOT(COUNTIF(Parameter!$E$6,I304)),\"Si prega selezionare la riduzione del suono d'impatto\",IF(AND(H304=\"F\",ISBLANK(J304)),\"Inserire la dimensione A in mm\",IF(AND(H304=\"L\",OR(ISBLANK(J304),ISBLANK(K304))),\"Inserire le dimensioni A e B in mm\",IF(AND(OR(H304=\"Z\",H304=\"U\"),OR(ISBLANK(J304),ISBLANK(K304),ISBLANK(L304))),\"Inserire le dimensioni A, B e C in mm\",IF(AND(H304=\"F\",OR(NOT(ISBLANK(K304)),NOT(ISBLANK(L304)))),\"Inserire solo A per la forma F, si prega cancellare le dimensioni B e C\",IF(AND(H304=\"L\",NOT(ISBLANK(L304))),\"Inserire solo A e B per la forma a L, si prega cancellare la dimensione C\",IF(OR(AND(OR(Parameter!$D$7>J304,J304>Parameter!$F$7),OR(H304=\"F\",H304=\"U\")),AND(OR(Parameter!$H$7>J304,J304>Parameter!$J$7),OR(H304=\"L\",H304=\"Z\"))),\"Si prega correggere la dimensione A\",IF(AND(OR(Parameter!$D$8>K304,K304>Parameter!$F$8),OR(H304=\"L\",H304=\"Z\",H304=\"U\")),\"Si prega correggere la dimensione B\",IF(AND(OR(Parameter!$D$9>L304,L304>Parameter!$F$9),OR(H304=\"Z\",H304=\"U\")),\"Si prega correggere la dimensione C\",IF(ISBLANK(M304),\"Inserire la lunghezza in mm\",IF(OR(Parameter!$D$10>M304,M304>Parameter!$F$10),\"Si prega correggere la lunghezza\",IF(ISBLANK(N304),\"Inserire la quantità\",IF(NOT(ISNUMBER(N304)),\"Si prega correggere la quantità\",\"OK\")))))))))))))))))))))","v":""},0,"",null,null,null,null,null,null,null,null,null,null,"",null,"",null,""]
["26)  ISOTREPP 36 dB",{"$f":"IF(LEN(D305)=0,IF(NOT(B304=\"OK\"),IF(SUMPRODUCT(--(D304:P304<>\"\"))=0,IF(AND(NOT(SUMPRODUCT(--(E305:P305<>\"\"))=0),D304=\"\"),\"Si prega di non utilizzare righe vuote\",\"\"),IF(NOT(SUMPRODUCT(--(E305:P305<>\"\"))=0),\"Si prega correggere prima la riga precedente\",\"\")),\"\"),IF(LEN(E305)>Parameter!$C$2,\"Descrizione troppo lunga, si prega accorciare\",IF(NOT(COUNTIF(Parameter!$C$3:$G$3,F305)),\"Inserire la descrizione (facoltativa) e selezionare ingresso/uscita/pianerottolo/parete/vuoto\",IF(ISBLANK(G305),\"Ricerca Cuscinetto Scala\",IF(NOT(COUNTIF(Parameter!$C$4:$L$4,G305)),\"Si prega inserire un tipo Cuscinetto scala corretto \",IF(ISBLANK(H305),\"Selezionare la forma\",IF(NOT(COUNTIF(Parameter!$C$5:$F$5,H305)),\"Si prega inserire una forma corretta\",IF(ISBLANK(I305),\"Selezionare la riduzione del suono d'impatto\",IF(NOT(COUNTIF(Parameter!$E$6,I305)),\"Si prega selezionare la riduzione del suono d'impatto\",IF(AND(H305=\"F\",ISBLANK(J305)),\"Inserire la dimensione A in mm\",IF(AND(H305=\"L\",OR(ISBLANK(J305),ISBLANK(K305))),\"Inserire le dimensioni A e B in mm\",IF(AND(OR(H305=\"Z\",H305=\"U\"),OR(ISBLANK(J305),ISBLANK(K305),ISBLANK(L305))),\"Inserire le dimensioni A, B e C in mm\",IF(AND(H305=\"F\",OR(NOT(ISBLANK(K305)),NOT(ISBLANK(L305)))),\"Inserire solo A per la forma F, si prega cancellare le dimensioni B e C\",IF(AND(H305=\"L\",NOT(ISBLANK(L305))),\"Inserire solo A e B per la forma a L, si prega cancellare la dimensione C\",IF(OR(AND(OR(Parameter!$D$7>J305,J305>Parameter!$F$7),OR(H305=\"F\",H305=\"U\")),AND(OR(Parameter!$H$7>J305,J305>Parameter!$J$7),OR(H305=\"L\",H305=\"Z\"))),\"Si prega correggere la dimensione A\",IF(AND(OR(Parameter!$D$8>K305,K305>Parameter!$F$8),OR(H305=\"L\",H305=\"Z\",H305=\"U\")),\"Si prega correggere la dimensione B\",IF(AND(OR(Parameter!$D$9>L305,L305>Parameter!$F$9),OR(H305=\"Z\",H305=\"U\")),\"Si prega correggere la dimensione C\",IF(ISBLANK(M305),\"Inserire la lunghezza in mm\",IF(OR(Parameter!$D$10>M305,M305>Parameter!$F$10),\"Si prega correggere la lunghezza\",IF(ISBLANK(N305),\"Inserire la quantità\",IF(NOT(ISNUMBER(N305)),\"Si prega correggere la quantità\",\"OK\")))))))))))))))))))))","v":""},0,"",null,null,null,null,null,null,null,null,null,null,"",null,"",null,""]
["26)  ISOTREPP 36 dB",{"$f":"IF(LEN(D306)=0,IF(NOT(B305=\"OK\"),IF(SUMPRODUCT(--(D305:P305<>\"\"))=0,IF(AND(NOT(SUMPRODUCT(--(E306:P306<>\"\"))=0),D305=\"\"),\"Si prega di non utilizzare righe vuote\",\"\"),IF(NOT(SUMPRODUCT(--(E306:P306<>\"\"))=0),\"Si prega correggere prima la riga precedente\",\"\")),\"\"),IF(LEN(E306)>Parameter!$C$2,\"Descrizione troppo lunga, si prega accorciare\",IF(NOT(COUNTIF(Parameter!$C$3:$G$3,F306)),\"Inserire la descrizione (facoltativa) e selezionare ingresso/uscita/pianerottolo/parete/vuoto\",IF(ISBLANK(G306),\"Ricerca Cuscinetto Scala\",IF(NOT(COUNTIF(Parameter!$C$4:$L$4,G306)),\"Si prega inserire un tipo Cuscinetto scala corretto \",IF(ISBLANK(H306),\"Selezionare la forma\",IF(NOT(COUNTIF(Parameter!$C$5:$F$5,H306)),\"Si prega inserire una forma corretta\",IF(ISBLANK(I306),\"Selezionare la riduzione del suono d'impatto\",IF(NOT(COUNTIF(Parameter!$E$6,I306)),\"Si prega selezionare la riduzione del suono d'impatto\",IF(AND(H306=\"F\",ISBLANK(J306)),\"Inserire la dimensione A in mm\",IF(AND(H306=\"L\",OR(ISBLANK(J306),ISBLANK(K306))),\"Inserire le dimensioni A e B in mm\",IF(AND(OR(H306=\"Z\",H306=\"U\"),OR(ISBLANK(J306),ISBLANK(K306),ISBLANK(L306))),\"Inserire le dimensioni A, B e C in mm\",IF(AND(H306=\"F\",OR(NOT(ISBLANK(K306)),NOT(ISBLANK(L306)))),\"Inserire solo A per la forma F, si prega cancellare le dimensioni B e C\",IF(AND(H306=\"L\",NOT(ISBLANK(L306))),\"Inserire solo A e B per la forma a L, si prega cancellare la dimensione C\",IF(OR(AND(OR(Parameter!$D$7>J306,J306>Parameter!$F$7),OR(H306=\"F\",H306=\"U\")),AND(OR(Parameter!$H$7>J306,J306>Parameter!$J$7),OR(H306=\"L\",H306=\"Z\"))),\"Si prega correggere la dimensione A\",IF(AND(OR(Parameter!$D$8>K306,K306>Parameter!$F$8),OR(H306=\"L\",H306=\"Z\",H306=\"U\")),\"Si prega correggere la dimensione B\",IF(AND(OR(Parameter!$D$9>L306,L306>Parameter!$F$9),OR(H306=\"Z\",H306=\"U\")),\"Si prega correggere la dimensione C\",IF(ISBLANK(M306),\"Inserire la lunghezza in mm\",IF(OR(Parameter!$D$10>M306,M306>Parameter!$F$10),\"Si prega correggere la lunghezza\",IF(ISBLANK(N306),\"Inserire la quantità\",IF(NOT(ISNUMBER(N306)),\"Si prega correggere la quantità\",\"OK\")))))))))))))))))))))","v":""},0,"",null,null,null,null,null,null,null,null,null,null,"",null,"",null,""]
["26)  ISOTREPP 36 dB",{"$f":"IF(LEN(D307)=0,IF(NOT(B306=\"OK\"),IF(SUMPRODUCT(--(D306:P306<>\"\"))=0,IF(AND(NOT(SUMPRODUCT(--(E307:P307<>\"\"))=0),D306=\"\"),\"Si prega di non utilizzare righe vuote\",\"\"),IF(NOT(SUMPRODUCT(--(E307:P307<>\"\"))=0),\"Si prega correggere prima la riga precedente\",\"\")),\"\"),IF(LEN(E307)>Parameter!$C$2,\"Descrizione troppo lunga, si prega accorciare\",IF(NOT(COUNTIF(Parameter!$C$3:$G$3,F307)),\"Inserire la descrizione (facoltativa) e selezionare ingresso/uscita/pianerottolo/parete/vuoto\",IF(ISBLANK(G307),\"Ricerca Cuscinetto Scala\",IF(NOT(COUNTIF(Parameter!$C$4:$L$4,G307)),\"Si prega inserire un tipo Cuscinetto scala corretto \",IF(ISBLANK(H307),\"Selezionare la forma\",IF(NOT(COUNTIF(Parameter!$C$5:$F$5,H307)),\"Si prega inserire una forma corretta\",IF(ISBLANK(I307),\"Selezionare la riduzione del suono d'impatto\",IF(NOT(COUNTIF(Parameter!$E$6,I307)),\"Si prega selezionare la riduzione del suono d'impatto\",IF(AND(H307=\"F\",ISBLANK(J307)),\"Inserire la dimensione A in mm\",IF(AND(H307=\"L\",OR(ISBLANK(J307),ISBLANK(K307))),\"Inserire le dimensioni A e B in mm\",IF(AND(OR(H307=\"Z\",H307=\"U\"),OR(ISBLANK(J307),ISBLANK(K307),ISBLANK(L307))),\"Inserire le dimensioni A, B e C in mm\",IF(AND(H307=\"F\",OR(NOT(ISBLANK(K307)),NOT(ISBLANK(L307)))),\"Inserire solo A per la forma F, si prega cancellare le dimensioni B e C\",IF(AND(H307=\"L\",NOT(ISBLANK(L307))),\"Inserire solo A e B per la forma a L, si prega cancellare la dimensione C\",IF(OR(AND(OR(Parameter!$D$7>J307,J307>Parameter!$F$7),OR(H307=\"F\",H307=\"U\")),AND(OR(Parameter!$H$7>J307,J307>Parameter!$J$7),OR(H307=\"L\",H307=\"Z\"))),\"Si prega correggere la dimensione A\",IF(AND(OR(Parameter!$D$8>K307,K307>Parameter!$F$8),OR(H307=\"L\",H307=\"Z\",H307=\"U\")),\"Si prega correggere la dimensione B\",IF(AND(OR(Parameter!$D$9>L307,L307>Parameter!$F$9),OR(H307=\"Z\",H307=\"U\")),\"Si prega correggere la dimensione C\",IF(ISBLANK(M307),\"Inserire la lunghezza in mm\",IF(OR(Parameter!$D$10>M307,M307>Parameter!$F$10),\"Si prega correggere la lunghezza\",IF(ISBLANK(N307),\"Inserire la quantità\",IF(NOT(ISNUMBER(N307)),\"Si prega correggere la quantità\",\"OK\")))))))))))))))))))))","v":""},0,"",null,null,null,null,null,null,null,null,null,null,"",null,"",null,""]
["26)  ISOTREPP 36 dB",{"$f":"IF(LEN(D308)=0,IF(NOT(B307=\"OK\"),IF(SUMPRODUCT(--(D307:P307<>\"\"))=0,IF(AND(NOT(SUMPRODUCT(--(E308:P308<>\"\"))=0),D307=\"\"),\"Si prega di non utilizzare righe vuote\",\"\"),IF(NOT(SUMPRODUCT(--(E308:P308<>\"\"))=0),\"Si prega correggere prima la riga precedente\",\"\")),\"\"),IF(LEN(E308)>Parameter!$C$2,\"Descrizione troppo lunga, si prega accorciare\",IF(NOT(COUNTIF(Parameter!$C$3:$G$3,F308)),\"Inserire la descrizione (facoltativa) e selezionare ingresso/uscita/pianerottolo/parete/vuoto\",IF(ISBLANK(G308),\"Ricerca Cuscinetto Scala\",IF(NOT(COUNTIF(Parameter!$C$4:$L$4,G308)),\"Si prega inserire un tipo Cuscinetto scala corretto \",IF(ISBLANK(H308),\"Selezionare la forma\",IF(NOT(COUNTIF(Parameter!$C$5:$F$5,H308)),\"Si prega inserire una forma corretta\",IF(ISBLANK(I308),\"Selezionare la riduzione del suono d'impatto\",IF(NOT(COUNTIF(Parameter!$E$6,I308)),\"Si prega selezionare la riduzione del suono d'impatto\",IF(AND(H308=\"F\",ISBLANK(J308)),\"Inserire la dimensione A in mm\",IF(AND(H308=\"L\",OR(ISBLANK(J308),ISBLANK(K308))),\"Inserire le dimensioni A e B in mm\",IF(AND(OR(H308=\"Z\",H308=\"U\"),OR(ISBLANK(J308),ISBLANK(K308),ISBLANK(L308))),\"Inserire le dimensioni A, B e C in mm\",IF(AND(H308=\"F\",OR(NOT(ISBLANK(K308)),NOT(ISBLANK(L308)))),\"Inserire solo A per la forma F, si prega cancellare le dimensioni B e C\",IF(AND(H308=\"L\",NOT(ISBLANK(L308))),\"Inserire solo A e B per la forma a L, si prega cancellare la dimensione C\",IF(OR(AND(OR(Parameter!$D$7>J308,J308>Parameter!$F$7),OR(H308=\"F\",H308=\"U\")),AND(OR(Parameter!$H$7>J308,J308>Parameter!$J$7),OR(H308=\"L\",H308=\"Z\"))),\"Si prega correggere la dimensione A\",IF(AND(OR(Parameter!$D$8>K308,K308>Parameter!$F$8),OR(H308=\"L\",H308=\"Z\",H308=\"U\")),\"Si prega correggere la dimensione B\",IF(AND(OR(Parameter!$D$9>L308,L308>Parameter!$F$9),OR(H308=\"Z\",H308=\"U\")),\"Si prega correggere la dimensione C\",IF(ISBLANK(M308),\"Inserire la lunghezza in mm\",IF(OR(Parameter!$D$10>M308,M308>Parameter!$F$10),\"Si prega correggere la lunghezza\",IF(ISBLANK(N308),\"Inserire la quantità\",IF(NOT(ISNUMBER(N308)),\"Si prega correggere la quantità\",\"OK\")))))))))))))))))))))","v":""},0,"",null,null,null,null,null,null,null,null,null,null,"",null,"",null,""]
["26)  ISOTREPP 36 dB",{"$f":"IF(LEN(D309)=0,IF(NOT(B308=\"OK\"),IF(SUMPRODUCT(--(D308:P308<>\"\"))=0,IF(AND(NOT(SUMPRODUCT(--(E309:P309<>\"\"))=0),D308=\"\"),\"Si prega di non utilizzare righe vuote\",\"\"),IF(NOT(SUMPRODUCT(--(E309:P309<>\"\"))=0),\"Si prega correggere prima la riga precedente\",\"\")),\"\"),IF(LEN(E309)>Parameter!$C$2,\"Descrizione troppo lunga, si prega accorciare\",IF(NOT(COUNTIF(Parameter!$C$3:$G$3,F309)),\"Inserire la descrizione (facoltativa) e selezionare ingresso/uscita/pianerottolo/parete/vuoto\",IF(ISBLANK(G309),\"Ricerca Cuscinetto Scala\",IF(NOT(COUNTIF(Parameter!$C$4:$L$4,G309)),\"Si prega inserire un tipo Cuscinetto scala corretto \",IF(ISBLANK(H309),\"Selezionare la forma\",IF(NOT(COUNTIF(Parameter!$C$5:$F$5,H309)),\"Si prega inserire una forma corretta\",IF(ISBLANK(I309),\"Selezionare la riduzione del suono d'impatto\",IF(NOT(COUNTIF(Parameter!$E$6,I309)),\"Si prega selezionare la riduzione del suono d'impatto\",IF(AND(H309=\"F\",ISBLANK(J309)),\"Inserire la dimensione A in mm\",IF(AND(H309=\"L\",OR(ISBLANK(J309),ISBLANK(K309))),\"Inserire le dimensioni A e B in mm\",IF(AND(OR(H309=\"Z\",H309=\"U\"),OR(ISBLANK(J309),ISBLANK(K309),ISBLANK(L309))),\"Inserire le dimensioni A, B e C in mm\",IF(AND(H309=\"F\",OR(NOT(ISBLANK(K309)),NOT(ISBLANK(L309)))),\"Inserire solo A per la forma F, si prega cancellare le dimensioni B e C\",IF(AND(H309=\"L\",NOT(ISBLANK(L309))),\"Inserire solo A e B per la forma a L, si prega cancellare la dimensione C\",IF(OR(AND(OR(Parameter!$D$7>J309,J309>Parameter!$F$7),OR(H309=\"F\",H309=\"U\")),AND(OR(Parameter!$H$7>J309,J309>Parameter!$J$7),OR(H309=\"L\",H309=\"Z\"))),\"Si prega correggere la dimensione A\",IF(AND(OR(Parameter!$D$8>K309,K309>Parameter!$F$8),OR(H309=\"L\",H309=\"Z\",H309=\"U\")),\"Si prega correggere la dimensione B\",IF(AND(OR(Parameter!$D$9>L309,L309>Parameter!$F$9),OR(H309=\"Z\",H309=\"U\")),\"Si prega correggere la dimensione C\",IF(ISBLANK(M309),\"Inserire la lunghezza in mm\",IF(OR(Parameter!$D$10>M309,M309>Parameter!$F$10),\"Si prega correggere la lunghezza\",IF(ISBLANK(N309),\"Inserire la quantità\",IF(NOT(ISNUMBER(N309)),\"Si prega correggere la quantità\",\"OK\")))))))))))))))))))))","v":""},0,"",null,null,null,null,null,null,null,null,null,null,"",null,"",null,""]
["26)  ISOTREPP 36 dB",{"$f":"IF(LEN(D310)=0,IF(NOT(B309=\"OK\"),IF(SUMPRODUCT(--(D309:P309<>\"\"))=0,IF(AND(NOT(SUMPRODUCT(--(E310:P310<>\"\"))=0),D309=\"\"),\"Si prega di non utilizzare righe vuote\",\"\"),IF(NOT(SUMPRODUCT(--(E310:P310<>\"\"))=0),\"Si prega correggere prima la riga precedente\",\"\")),\"\"),IF(LEN(E310)>Parameter!$C$2,\"Descrizione troppo lunga, si prega accorciare\",IF(NOT(COUNTIF(Parameter!$C$3:$G$3,F310)),\"Inserire la descrizione (facoltativa) e selezionare ingresso/uscita/pianerottolo/parete/vuoto\",IF(ISBLANK(G310),\"Ricerca Cuscinetto Scala\",IF(NOT(COUNTIF(Parameter!$C$4:$L$4,G310)),\"Si prega inserire un tipo Cuscinetto scala corretto \",IF(ISBLANK(H310),\"Selezionare la forma\",IF(NOT(COUNTIF(Parameter!$C$5:$F$5,H310)),\"Si prega inserire una forma corretta\",IF(ISBLANK(I310),\"Selezionare la riduzione del suono d'impatto\",IF(NOT(COUNTIF(Parameter!$E$6,I310)),\"Si prega selezionare la riduzione del suono d'impatto\",IF(AND(H310=\"F\",ISBLANK(J310)),\"Inserire la dimensione A in mm\",IF(AND(H310=\"L\",OR(ISBLANK(J310),ISBLANK(K310))),\"Inserire le dimensioni A e B in mm\",IF(AND(OR(H310=\"Z\",H310=\"U\"),OR(ISBLANK(J310),ISBLANK(K310),ISBLANK(L310))),\"Inserire le dimensioni A, B e C in mm\",IF(AND(H310=\"F\",OR(NOT(ISBLANK(K310)),NOT(ISBLANK(L310)))),\"Inserire solo A per la forma F, si prega cancellare le dimensioni B e C\",IF(AND(H310=\"L\",NOT(ISBLANK(L310))),\"Inserire solo A e B per la forma a L, si prega cancellare la dimensione C\",IF(OR(AND(OR(Parameter!$D$7>J310,J310>Parameter!$F$7),OR(H310=\"F\",H310=\"U\")),AND(OR(Parameter!$H$7>J310,J310>Parameter!$J$7),OR(H310=\"L\",H310=\"Z\"))),\"Si prega correggere la dimensione A\",IF(AND(OR(Parameter!$D$8>K310,K310>Parameter!$F$8),OR(H310=\"L\",H310=\"Z\",H310=\"U\")),\"Si prega correggere la dimensione B\",IF(AND(OR(Parameter!$D$9>L310,L310>Parameter!$F$9),OR(H310=\"Z\",H310=\"U\")),\"Si prega correggere la dimensione C\",IF(ISBLANK(M310),\"Inserire la lunghezza in mm\",IF(OR(Parameter!$D$10>M310,M310>Parameter!$F$10),\"Si prega correggere la lunghezza\",IF(ISBLANK(N310),\"Inserire la quantità\",IF(NOT(ISNUMBER(N310)),\"Si prega correggere la quantità\",\"OK\")))))))))))))))))))))","v":""},0,"",null,null,null,null,null,null,null,null,null,null,"",null,"",null,""]
["26)  ISOTREPP 36 dB",{"$f":"IF(LEN(D311)=0,IF(NOT(B310=\"OK\"),IF(SUMPRODUCT(--(D310:P310<>\"\"))=0,IF(AND(NOT(SUMPRODUCT(--(E311:P311<>\"\"))=0),D310=\"\"),\"Si prega di non utilizzare righe vuote\",\"\"),IF(NOT(SUMPRODUCT(--(E311:P311<>\"\"))=0),\"Si prega correggere prima la riga precedente\",\"\")),\"\"),IF(LEN(E311)>Parameter!$C$2,\"Descrizione troppo lunga, si prega accorciare\",IF(NOT(COUNTIF(Parameter!$C$3:$G$3,F311)),\"Inserire la descrizione (facoltativa) e selezionare ingresso/uscita/pianerottolo/parete/vuoto\",IF(ISBLANK(G311),\"Ricerca Cuscinetto Scala\",IF(NOT(COUNTIF(Parameter!$C$4:$L$4,G311)),\"Si prega inserire un tipo Cuscinetto scala corretto \",IF(ISBLANK(H311),\"Selezionare la forma\",IF(NOT(COUNTIF(Parameter!$C$5:$F$5,H311)),\"Si prega inserire una forma corretta\",IF(ISBLANK(I311),\"Selezionare la riduzione del suono d'impatto\",IF(NOT(COUNTIF(Parameter!$E$6,I311)),\"Si prega selezionare la riduzione del suono d'impatto\",IF(AND(H311=\"F\",ISBLANK(J311)),\"Inserire la dimensione A in mm\",IF(AND(H311=\"L\",OR(ISBLANK(J311),ISBLANK(K311))),\"Inserire le dimensioni A e B in mm\",IF(AND(OR(H311=\"Z\",H311=\"U\"),OR(ISBLANK(J311),ISBLANK(K311),ISBLANK(L311))),\"Inserire le dimensioni A, B e C in mm\",IF(AND(H311=\"F\",OR(NOT(ISBLANK(K311)),NOT(ISBLANK(L311)))),\"Inserire solo A per la forma F, si prega cancellare le dimensioni B e C\",IF(AND(H311=\"L\",NOT(ISBLANK(L311))),\"Inserire solo A e B per la forma a L, si prega cancellare la dimensione C\",IF(OR(AND(OR(Parameter!$D$7>J311,J311>Parameter!$F$7),OR(H311=\"F\",H311=\"U\")),AND(OR(Parameter!$H$7>J311,J311>Parameter!$J$7),OR(H311=\"L\",H311=\"Z\"))),\"Si prega correggere la dimensione A\",IF(AND(OR(Parameter!$D$8>K311,K311>Parameter!$F$8),OR(H311=\"L\",H311=\"Z\",H311=\"U\")),\"Si prega correggere la dimensione B\",IF(AND(OR(Parameter!$D$9>L311,L311>Parameter!$F$9),OR(H311=\"Z\",H311=\"U\")),\"Si prega correggere la dimensione C\",IF(ISBLANK(M311),\"Inserire la lunghezza in mm\",IF(OR(Parameter!$D$10>M311,M311>Parameter!$F$10),\"Si prega correggere la lunghezza\",IF(ISBLANK(N311),\"Inserire la quantità\",IF(NOT(ISNUMBER(N311)),\"Si prega correggere la quantità\",\"OK\")))))))))))))))))))))","v":""},0,"",null,null,null,null,null,null,null,null,null,null,"",null,"",null,""]
["26)  ISOTREPP 36 dB",{"$f":"IF(LEN(D312)=0,IF(NOT(B311=\"OK\"),IF(SUMPRODUCT(--(D311:P311<>\"\"))=0,IF(AND(NOT(SUMPRODUCT(--(E312:P312<>\"\"))=0),D311=\"\"),\"Si prega di non utilizzare righe vuote\",\"\"),IF(NOT(SUMPRODUCT(--(E312:P312<>\"\"))=0),\"Si prega correggere prima la riga precedente\",\"\")),\"\"),IF(LEN(E312)>Parameter!$C$2,\"Descrizione troppo lunga, si prega accorciare\",IF(NOT(COUNTIF(Parameter!$C$3:$G$3,F312)),\"Inserire la descrizione (facoltativa) e selezionare ingresso/uscita/pianerottolo/parete/vuoto\",IF(ISBLANK(G312),\"Ricerca Cuscinetto Scala\",IF(NOT(COUNTIF(Parameter!$C$4:$L$4,G312)),\"Si prega inserire un tipo Cuscinetto scala corretto \",IF(ISBLANK(H312),\"Selezionare la forma\",IF(NOT(COUNTIF(Parameter!$C$5:$F$5,H312)),\"Si prega inserire una forma corretta\",IF(ISBLANK(I312),\"Selezionare la riduzione del suono d'impatto\",IF(NOT(COUNTIF(Parameter!$E$6,I312)),\"Si prega selezionare la riduzione del suono d'impatto\",IF(AND(H312=\"F\",ISBLANK(J312)),\"Inserire la dimensione A in mm\",IF(AND(H312=\"L\",OR(ISBLANK(J312),ISBLANK(K312))),\"Inserire le dimensioni A e B in mm\",IF(AND(OR(H312=\"Z\",H312=\"U\"),OR(ISBLANK(J312),ISBLANK(K312),ISBLANK(L312))),\"Inserire le dimensioni A, B e C in mm\",IF(AND(H312=\"F\",OR(NOT(ISBLANK(K312)),NOT(ISBLANK(L312)))),\"Inserire solo A per la forma F, si prega cancellare le dimensioni B e C\",IF(AND(H312=\"L\",NOT(ISBLANK(L312))),\"Inserire solo A e B per la forma a L, si prega cancellare la dimensione C\",IF(OR(AND(OR(Parameter!$D$7>J312,J312>Parameter!$F$7),OR(H312=\"F\",H312=\"U\")),AND(OR(Parameter!$H$7>J312,J312>Parameter!$J$7),OR(H312=\"L\",H312=\"Z\"))),\"Si prega correggere la dimensione A\",IF(AND(OR(Parameter!$D$8>K312,K312>Parameter!$F$8),OR(H312=\"L\",H312=\"Z\",H312=\"U\")),\"Si prega correggere la dimensione B\",IF(AND(OR(Parameter!$D$9>L312,L312>Parameter!$F$9),OR(H312=\"Z\",H312=\"U\")),\"Si prega correggere la dimensione C\",IF(ISBLANK(M312),\"Inserire la lunghezza in mm\",IF(OR(Parameter!$D$10>M312,M312>Parameter!$F$10),\"Si prega correggere la lunghezza\",IF(ISBLANK(N312),\"Inserire la quantità\",IF(NOT(ISNUMBER(N312)),\"Si prega correggere la quantità\",\"OK\")))))))))))))))))))))","v":""},0,"",null,null,null,null,null,null,null,null,null,null,"",null,"",null,""]
["26)  ISOTREPP 36 dB",{"$f":"IF(LEN(D313)=0,IF(NOT(B312=\"OK\"),IF(SUMPRODUCT(--(D312:P312<>\"\"))=0,IF(AND(NOT(SUMPRODUCT(--(E313:P313<>\"\"))=0),D312=\"\"),\"Si prega di non utilizzare righe vuote\",\"\"),IF(NOT(SUMPRODUCT(--(E313:P313<>\"\"))=0),\"Si prega correggere prima la riga precedente\",\"\")),\"\"),IF(LEN(E313)>Parameter!$C$2,\"Descrizione troppo lunga, si prega accorciare\",IF(NOT(COUNTIF(Parameter!$C$3:$G$3,F313)),\"Inserire la descrizione (facoltativa) e selezionare ingresso/uscita/pianerottolo/parete/vuoto\",IF(ISBLANK(G313),\"Ricerca Cuscinetto Scala\",IF(NOT(COUNTIF(Parameter!$C$4:$L$4,G313)),\"Si prega inserire un tipo Cuscinetto scala corretto \",IF(ISBLANK(H313),\"Selezionare la forma\",IF(NOT(COUNTIF(Parameter!$C$5:$F$5,H313)),\"Si prega inserire una forma corretta\",IF(ISBLANK(I313),\"Selezionare la riduzione del suono d'impatto\",IF(NOT(COUNTIF(Parameter!$E$6,I313)),\"Si prega selezionare la riduzione del suono d'impatto\",IF(AND(H313=\"F\",ISBLANK(J313)),\"Inserire la dimensione A in mm\",IF(AND(H313=\"L\",OR(ISBLANK(J313),ISBLANK(K313))),\"Inserire le dimensioni A e B in mm\",IF(AND(OR(H313=\"Z\",H313=\"U\"),OR(ISBLANK(J313),ISBLANK(K313),ISBLANK(L313))),\"Inserire le dimensioni A, B e C in mm\",IF(AND(H313=\"F\",OR(NOT(ISBLANK(K313)),NOT(ISBLANK(L313)))),\"Inserire solo A per la forma F, si prega cancellare le dimensioni B e C\",IF(AND(H313=\"L\",NOT(ISBLANK(L313))),\"Inserire solo A e B per la forma a L, si prega cancellare la dimensione C\",IF(OR(AND(OR(Parameter!$D$7>J313,J313>Parameter!$F$7),OR(H313=\"F\",H313=\"U\")),AND(OR(Parameter!$H$7>J313,J313>Parameter!$J$7),OR(H313=\"L\",H313=\"Z\"))),\"Si prega correggere la dimensione A\",IF(AND(OR(Parameter!$D$8>K313,K313>Parameter!$F$8),OR(H313=\"L\",H313=\"Z\",H313=\"U\")),\"Si prega correggere la dimensione B\",IF(AND(OR(Parameter!$D$9>L313,L313>Parameter!$F$9),OR(H313=\"Z\",H313=\"U\")),\"Si prega correggere la dimensione C\",IF(ISBLANK(M313),\"Inserire la lunghezza in mm\",IF(OR(Parameter!$D$10>M313,M313>Parameter!$F$10),\"Si prega correggere la lunghezza\",IF(ISBLANK(N313),\"Inserire la quantità\",IF(NOT(ISNUMBER(N313)),\"Si prega correggere la quantità\",\"OK\")))))))))))))))))))))","v":""},0,"",null,null,null,null,null,null,null,null,null,null,"",null,"",null,""]
["26)  ISOTREPP 36 dB",{"$f":"IF(LEN(D314)=0,IF(NOT(B313=\"OK\"),IF(SUMPRODUCT(--(D313:P313<>\"\"))=0,IF(AND(NOT(SUMPRODUCT(--(E314:P314<>\"\"))=0),D313=\"\"),\"Si prega di non utilizzare righe vuote\",\"\"),IF(NOT(SUMPRODUCT(--(E314:P314<>\"\"))=0),\"Si prega correggere prima la riga precedente\",\"\")),\"\"),IF(LEN(E314)>Parameter!$C$2,\"Descrizione troppo lunga, si prega accorciare\",IF(NOT(COUNTIF(Parameter!$C$3:$G$3,F314)),\"Inserire la descrizione (facoltativa) e selezionare ingresso/uscita/pianerottolo/parete/vuoto\",IF(ISBLANK(G314),\"Ricerca Cuscinetto Scala\",IF(NOT(COUNTIF(Parameter!$C$4:$L$4,G314)),\"Si prega inserire un tipo Cuscinetto scala corretto \",IF(ISBLANK(H314),\"Selezionare la forma\",IF(NOT(COUNTIF(Parameter!$C$5:$F$5,H314)),\"Si prega inserire una forma corretta\",IF(ISBLANK(I314),\"Selezionare la riduzione del suono d'impatto\",IF(NOT(COUNTIF(Parameter!$E$6,I314)),\"Si prega selezionare la riduzione del suono d'impatto\",IF(AND(H314=\"F\",ISBLANK(J314)),\"Inserire la dimensione A in mm\",IF(AND(H314=\"L\",OR(ISBLANK(J314),ISBLANK(K314))),\"Inserire le dimensioni A e B in mm\",IF(AND(OR(H314=\"Z\",H314=\"U\"),OR(ISBLANK(J314),ISBLANK(K314),ISBLANK(L314))),\"Inserire le dimensioni A, B e C in mm\",IF(AND(H314=\"F\",OR(NOT(ISBLANK(K314)),NOT(ISBLANK(L314)))),\"Inserire solo A per la forma F, si prega cancellare le dimensioni B e C\",IF(AND(H314=\"L\",NOT(ISBLANK(L314))),\"Inserire solo A e B per la forma a L, si prega cancellare la dimensione C\",IF(OR(AND(OR(Parameter!$D$7>J314,J314>Parameter!$F$7),OR(H314=\"F\",H314=\"U\")),AND(OR(Parameter!$H$7>J314,J314>Parameter!$J$7),OR(H314=\"L\",H314=\"Z\"))),\"Si prega correggere la dimensione A\",IF(AND(OR(Parameter!$D$8>K314,K314>Parameter!$F$8),OR(H314=\"L\",H314=\"Z\",H314=\"U\")),\"Si prega correggere la dimensione B\",IF(AND(OR(Parameter!$D$9>L314,L314>Parameter!$F$9),OR(H314=\"Z\",H314=\"U\")),\"Si prega correggere la dimensione C\",IF(ISBLANK(M314),\"Inserire la lunghezza in mm\",IF(OR(Parameter!$D$10>M314,M314>Parameter!$F$10),\"Si prega correggere la lunghezza\",IF(ISBLANK(N314),\"Inserire la quantità\",IF(NOT(ISNUMBER(N314)),\"Si prega correggere la quantità\",\"OK\")))))))))))))))))))))","v":""},0,"",null,null,null,null,null,null,null,null,null,null,"",null,"",null,""]
["26)  ISOTREPP 36 dB",{"$f":"IF(B314=\"OK\",\"Se si desidera ordinare più cuscinetti per scale, creare un secondo Excel e inviarlo.\",\"\")","v":""},null,null,null,null,null,null,null,null,"Totale",null,null,{"$f":"SUM(N280:N314)","v":0}]
["26)  ISOTREPP 36 dB"]

{"sheet":"Parameter","index":1,"n_rows":15,"n_cols":13,"rows_kept":15,"cut":false,"hidden":true,"merged":[]}
[]
[null,"Max. Zeichen bei Beschreibung:",25]
[null,"Antritt/Antritt","Ingresso","Uscita","Pianerottolo","Parete"," "]
[null,"Lagertyp",1500,2000,3000,4000,5000,6000,8000,10000,12000,14000,16000]
[null,"Form","F","L","Z","U"]
[null,"Trittschallminderung",28,32,36]
[null,"A","F/U-Min:",70,"F/U-Max:",2000,"L/Z-Min:",70,"L/Z-Max:",600]
[null,"B","Min:",30,"Max:",600]
[null,"C","Min:",30,"Max:",600]
[null,"Länge","Min:",600,"Max:",1500]
[]
[]
[]
[null,"Max. Zeichen bei Bauobjekt",35]
[null,"Max. Zeichen bei Firmenname",20]